﻿Body,Body name,Date,Transaction number,Invoice Number,Amount,Supplier Name,Supplier ID,VAT Registration Number,Expense Area,Expense Type,Expense Code,BVACOP,ProClass,ProClass Description,Extended Description,Profit Centre
http://statistics.data.gov.uk/id/local-authority/00BU,Trafford,11/01/2019,1901291790,19,"1,727.00",Altrincham Grammar School for Boys,403,GB121527841,YP:Altrincham Gramma,SCHOOL BUDGET SHARE,280040,,,,,103403
http://statistics.data.gov.uk/id/local-authority/00BU,Trafford,11/01/2019,1901291757,19,"350,076.00",Sale High School,406,GB149191256,YP:Sale High School,SCHOOL BUDGET SHARE,280040,,171011,EDUCATION :  Children,,101406
http://statistics.data.gov.uk/id/local-authority/00BU,Trafford,17/01/2019,1901293073,18,297.62,Sale High School,406,GB149191256,YP:Sale High School,Schools' Unall Ch Bk,220852,,171011,EDUCATION :  Children,,102406
http://statistics.data.gov.uk/id/local-authority/00BU,Trafford,17/01/2019,1901293073,18,"8,029.88",Sale High School,406,GB149191256,YP:Sale High School,Schools' Unall Ch Bk,220852,,171011,EDUCATION :  Children,,102406
http://statistics.data.gov.uk/id/local-authority/00BU,Trafford,17/01/2019,1901293073,18,"27,596.25",Sale High School,406,GB149191256,YP:Sale High School,Schools' Unall Ch Bk,220852,,171011,EDUCATION :  Children,,102406
http://statistics.data.gov.uk/id/local-authority/00BU,Trafford,17/01/2019,1901293073,18,"18,280.09",Sale High School,406,GB149191256,YP:Sale High School,Schools' Unall Ch Bk,220852,,171011,EDUCATION :  Children,,102406
http://statistics.data.gov.uk/id/local-authority/00BU,Trafford,17/01/2019,1901293073,18,-630.05,Sale High School,406,GB149191256,YP:Sale High School,SCH UNALL CHQ BK INC,360107,,171011,EDUCATION :  Children,,102406
http://statistics.data.gov.uk/id/local-authority/00BU,Trafford,17/01/2019,1901293073,18,"-366,353.20",Sale High School,406,GB149191256,YP:Sale High School,SCH UNALL CHQ BK INC,360107,,171011,EDUCATION :  Children,,102406
http://statistics.data.gov.uk/id/local-authority/00BU,Trafford,17/01/2019,1901293073,18,"-54,203.84",Sale High School,406,GB149191256,School Cash Advances,CB Schs Contra Entry,290025,,171011,EDUCATION :  Children,,900110
http://statistics.data.gov.uk/id/local-authority/00BU,Trafford,17/01/2019,1901293073,18,"366,983.25",Sale High School,406,GB149191256,School Cash Advances,SCH UNALL CHQ BK INC,360107,,171011,EDUCATION :  Children,,900110
http://statistics.data.gov.uk/id/local-authority/00BU,Trafford,11/01/2019,1901291822,18,"7,547.00",BROADOAK  SCHOOL,412,,YP:Broadoak High Sch,SCHOOL BUDGET SHARE,280040,,,,,103412
http://statistics.data.gov.uk/id/local-authority/00BU,Trafford,09/01/2019,1901291569,19488,600.00,Flixton Girls School Academy Trust,413,GB124660431,PUPIL PREMIUM PLUS,CLIENTS PERS NEEDS,220412,,201700,FINANCIAL SERVICES : Grants,Redacted,130713
http://statistics.data.gov.uk/id/local-authority/00BU,Trafford,11/01/2019,1901291767,Redacted,"5,358.00",Flixton Girls School Academy Trust,413,GB124660431,YP:Flixton Girls Hig,SCHOOL BUDGET SHARE,280040,,201700,FINANCIAL SERVICES : Grants,,103413
http://statistics.data.gov.uk/id/local-authority/00BU,Trafford,16/01/2019,1901292746,19810,550.00,Flixton Girls School Academy Trust,413,GB124660431,PUPIL PREMIUM PLUS,CLIENTS PERS NEEDS,220412,,201700,FINANCIAL SERVICES : Grants,Redacted,130713
http://statistics.data.gov.uk/id/local-authority/00BU,Trafford,16/01/2019,1901292746,19810,200.00,Flixton Girls School Academy Trust,413,GB124660431,PUPIL PREMIUM PLUS,CLIENTS PERS NEEDS,220412,,201700,FINANCIAL SERVICES : Grants,Redacted,130713
http://statistics.data.gov.uk/id/local-authority/00BU,Trafford,16/01/2019,1901292746,19810,400.00,Flixton Girls School Academy Trust,413,GB124660431,PUPIL PREMIUM PLUS,CLIENTS PERS NEEDS,220412,,201700,FINANCIAL SERVICES : Grants,Redacted,130713
http://statistics.data.gov.uk/id/local-authority/00BU,Trafford,16/01/2019,1901292746,19810,30.00,Flixton Girls School Academy Trust,413,GB124660431,PUPIL PREMIUM PLUS,CLIENTS PERS NEEDS,220412,,201700,FINANCIAL SERVICES : Grants,Redacted,130713
http://statistics.data.gov.uk/id/local-authority/00BU,Trafford,16/01/2019,1901292746,19810,110.00,Flixton Girls School Academy Trust,413,GB124660431,PUPIL PREMIUM PLUS,CLIENTS PERS NEEDS,220412,,201700,FINANCIAL SERVICES : Grants,Redacted,130713
http://statistics.data.gov.uk/id/local-authority/00BU,Trafford,23/01/2019,1901293562,19888,70.00,Flixton Girls School Academy Trust,413,GB124660431,PUPIL PREMIUM PLUS,CLIENTS PERS NEEDS,220412,,201700,FINANCIAL SERVICES : Grants,Redacted,130713
http://statistics.data.gov.uk/id/local-authority/00BU,Trafford,23/01/2019,1901293562,19888,268.00,Flixton Girls School Academy Trust,413,GB124660431,PUPIL PREMIUM PLUS,CLIENTS PERS NEEDS,220412,,201700,FINANCIAL SERVICES : Grants,Redacted,130713
http://statistics.data.gov.uk/id/local-authority/00BU,Trafford,09/01/2019,1901291562,19481,369.97,Lostock College,414,,PUPIL PREMIUM PLUS,CLIENTS PERS NEEDS,220412,,171011,EDUCATION :  Children,Redacted,130713
http://statistics.data.gov.uk/id/local-authority/00BU,Trafford,11/01/2019,1901291763,19,"46,638.00",Lostock College,414,,School Cash Advances,SCHOOL BUDGET SHARE,280040,,171011,EDUCATION :  Children,,900110
http://statistics.data.gov.uk/id/local-authority/00BU,Trafford,23/01/2019,1901293572,19898,150.00,Lostock College,414,,PUPIL PREMIUM PLUS,CLIENTS PERS NEEDS,220412,,171011,EDUCATION :  Children,Redacted,130713
http://statistics.data.gov.uk/id/local-authority/00BU,Trafford,23/01/2019,1901293572,19898,368.97,Lostock College,414,,PUPIL PREMIUM PLUS,CLIENTS PERS NEEDS,220412,,171011,EDUCATION :  Children,Redacted,130713
http://statistics.data.gov.uk/id/local-authority/00BU,Trafford,30/01/2019,1901294625,1,"6,374.98",Lostock College,414,,YP:Lostock College,Schools' Unall Ch Bk,220852,,171011,EDUCATION :  Children,,102414
http://statistics.data.gov.uk/id/local-authority/00BU,Trafford,30/01/2019,1901294625,1,"45,949.50",Lostock College,414,,YP:Lostock College,Schools' Unall Ch Bk,220852,,171011,EDUCATION :  Children,,102414
http://statistics.data.gov.uk/id/local-authority/00BU,Trafford,30/01/2019,1901294625,1,"31,637.33",Lostock College,414,,YP:Lostock College,Schools' Unall Ch Bk,220852,,171011,EDUCATION :  Children,,102414
http://statistics.data.gov.uk/id/local-authority/00BU,Trafford,30/01/2019,1901294625,1,"-83,961.81",Lostock College,414,,School Cash Advances,CB Schs Contra Entry,290025,,171011,EDUCATION :  Children,,900110
http://statistics.data.gov.uk/id/local-authority/00BU,Trafford,09/01/2019,1901291571,19490,120.00,Blessed Thomas Halford Sch,424,,PUPIL PREMIUM PLUS,CLIENTS PERS NEEDS,220412,,171000,EDUCATION : Services,Redacted,130713
http://statistics.data.gov.uk/id/local-authority/00BU,Trafford,09/01/2019,1901291571,19490,420.00,Blessed Thomas Halford Sch,424,,PUPIL PREMIUM PLUS,CLIENTS PERS NEEDS,220412,,171000,EDUCATION : Services,Redacted,130713
http://statistics.data.gov.uk/id/local-authority/00BU,Trafford,09/01/2019,1901291571,19490,80.00,Blessed Thomas Halford Sch,424,,PUPIL PREMIUM PLUS,CLIENTS PERS NEEDS,220412,,171000,EDUCATION : Services,Redacted,130713
http://statistics.data.gov.uk/id/local-authority/00BU,Trafford,09/01/2019,1901291571,19490,168.00,Blessed Thomas Halford Sch,424,,PUPIL PREMIUM PLUS,CLIENTS PERS NEEDS,220412,,171000,EDUCATION : Services,Redacted,130713
http://statistics.data.gov.uk/id/local-authority/00BU,Trafford,09/01/2019,1901291571,19490,10.72,Blessed Thomas Halford Sch,424,,PUPIL PREMIUM PLUS,CLIENTS PERS NEEDS,220412,,171000,EDUCATION : Services,Redacted,130713
http://statistics.data.gov.uk/id/local-authority/00BU,Trafford,09/01/2019,1901291571,19490,120.00,Blessed Thomas Halford Sch,424,,PUPIL PREMIUM PLUS,CLIENTS PERS NEEDS,220412,,171000,EDUCATION : Services,Redacted,130713
http://statistics.data.gov.uk/id/local-authority/00BU,Trafford,09/01/2019,1901291571,19490,130.00,Blessed Thomas Halford Sch,424,,PUPIL PREMIUM PLUS,CLIENTS PERS NEEDS,220412,,171000,EDUCATION : Services,Redacted,130713
http://statistics.data.gov.uk/id/local-authority/00BU,Trafford,09/01/2019,1901291571,19490,339.82,Blessed Thomas Halford Sch,424,,PUPIL PREMIUM PLUS,CLIENTS PERS NEEDS,220412,,171000,EDUCATION : Services,Redacted,130713
http://statistics.data.gov.uk/id/local-authority/00BU,Trafford,11/01/2019,1901291877,19,"563,986.00",Blessed Thomas Halford Sch,424,,YP:Blessed Thomas Ho,SCHOOL BUDGET SHARE,280040,,171000,EDUCATION : Services,,101424
http://statistics.data.gov.uk/id/local-authority/00BU,Trafford,28/01/2019,1901293699,18,"5,721.00",Blessed Thomas Halford Sch,424,,B.T.H. School,Schools' Unall Ch Bk,220852,,171000,EDUCATION : Services,,102424
http://statistics.data.gov.uk/id/local-authority/00BU,Trafford,28/01/2019,1901293699,18,"32,649.48",Blessed Thomas Halford Sch,424,,B.T.H. School,Schools' Unall Ch Bk,220852,,171000,EDUCATION : Services,,102424
http://statistics.data.gov.uk/id/local-authority/00BU,Trafford,28/01/2019,1901293699,18,"2,452.40",Blessed Thomas Halford Sch,424,,B.T.H. School,Schools' Unall Ch Bk,220852,,171000,EDUCATION : Services,,102424
http://statistics.data.gov.uk/id/local-authority/00BU,Trafford,28/01/2019,1901293699,18,"74,128.90",Blessed Thomas Halford Sch,424,,B.T.H. School,Schools' Unall Ch Bk,220852,,171000,EDUCATION : Services,,102424
http://statistics.data.gov.uk/id/local-authority/00BU,Trafford,28/01/2019,1901293699,18,"83,883.91",Blessed Thomas Halford Sch,424,,B.T.H. School,Schools' Unall Ch Bk,220852,,171000,EDUCATION : Services,,102424
http://statistics.data.gov.uk/id/local-authority/00BU,Trafford,28/01/2019,1901293699,18,44.00,Blessed Thomas Halford Sch,424,,B.T.H. School,SCH UNALL CHQ BK INC,360107,,171000,EDUCATION : Services,,102424
http://statistics.data.gov.uk/id/local-authority/00BU,Trafford,28/01/2019,1901293699,18,"-1,708.80",Blessed Thomas Halford Sch,424,,B.T.H. School,SCH UNALL CHQ BK INC,360107,,171000,EDUCATION : Services,,102424
http://statistics.data.gov.uk/id/local-authority/00BU,Trafford,28/01/2019,1901293699,18,"-28,384.88",Blessed Thomas Halford Sch,424,,B.T.H. School,SCH UNALL CHQ BK INC,360107,,171000,EDUCATION : Services,,102424
http://statistics.data.gov.uk/id/local-authority/00BU,Trafford,28/01/2019,1901293699,18,"-198,835.69",Blessed Thomas Halford Sch,424,,B.T.H. School,Schools' Unall Ch Bk,220852,,171000,EDUCATION : Services,,102424
http://statistics.data.gov.uk/id/local-authority/00BU,Trafford,28/01/2019,1901293699,18,"30,049.68",Blessed Thomas Halford Sch,424,,B.T.H. School,SCH UNALL CHQ BK INC,360107,,171000,EDUCATION : Services,,102424
http://statistics.data.gov.uk/id/local-authority/00BU,Trafford,09/01/2019,1901291568,19487,200.00,Ashton on Mersey School,426,GB132924425,PUPIL PREMIUM PLUS,CLIENTS PERS NEEDS,220412,,171011,EDUCATION :  Children,Redacted,130713
http://statistics.data.gov.uk/id/local-authority/00BU,Trafford,09/01/2019,1901291568,19487,300.00,Ashton on Mersey School,426,GB132924425,PUPIL PREMIUM PLUS,CLIENTS PERS NEEDS,220412,,171011,EDUCATION :  Children,Redacted,130713
http://statistics.data.gov.uk/id/local-authority/00BU,Trafford,09/01/2019,1901291568,19487,300.00,Ashton on Mersey School,426,GB132924425,PUPIL PREMIUM PLUS,CLIENTS PERS NEEDS,220412,,171011,EDUCATION :  Children,Redacted,130713
http://statistics.data.gov.uk/id/local-authority/00BU,Trafford,09/01/2019,1901291568,19487,120.00,Ashton on Mersey School,426,GB132924425,PUPIL PREMIUM PLUS,CLIENTS PERS NEEDS,220412,,171011,EDUCATION :  Children,Redacted,130713
http://statistics.data.gov.uk/id/local-authority/00BU,Trafford,09/01/2019,1901291568,19487,300.00,Ashton on Mersey School,426,GB132924425,PUPIL PREMIUM PLUS,CLIENTS PERS NEEDS,220412,,171011,EDUCATION :  Children,Redacted,130713
http://statistics.data.gov.uk/id/local-authority/00BU,Trafford,09/01/2019,1901291568,19487,120.00,Ashton on Mersey School,426,GB132924425,PUPIL PREMIUM PLUS,CLIENTS PERS NEEDS,220412,,171011,EDUCATION :  Children,Redacted,130713
http://statistics.data.gov.uk/id/local-authority/00BU,Trafford,09/01/2019,1901291568,19487,300.00,Ashton on Mersey School,426,GB132924425,PUPIL PREMIUM PLUS,CLIENTS PERS NEEDS,220412,,171011,EDUCATION :  Children,Redacted,130713
http://statistics.data.gov.uk/id/local-authority/00BU,Trafford,09/01/2019,1901291568,19487,120.00,Ashton on Mersey School,426,GB132924425,PUPIL PREMIUM PLUS,CLIENTS PERS NEEDS,220412,,171011,EDUCATION :  Children,Redacted,130713
http://statistics.data.gov.uk/id/local-authority/00BU,Trafford,09/01/2019,1901291568,19487,300.00,Ashton on Mersey School,426,GB132924425,PUPIL PREMIUM PLUS,CLIENTS PERS NEEDS,220412,,171011,EDUCATION :  Children,Redacted,130713
http://statistics.data.gov.uk/id/local-authority/00BU,Trafford,09/01/2019,1901291568,19487,120.00,Ashton on Mersey School,426,GB132924425,PUPIL PREMIUM PLUS,CLIENTS PERS NEEDS,220412,,171011,EDUCATION :  Children,Redacted,130713
http://statistics.data.gov.uk/id/local-authority/00BU,Trafford,09/01/2019,1901291568,19487,300.00,Ashton on Mersey School,426,GB132924425,PUPIL PREMIUM PLUS,CLIENTS PERS NEEDS,220412,,171011,EDUCATION :  Children,Redacted,130713
http://statistics.data.gov.uk/id/local-authority/00BU,Trafford,09/01/2019,1901291568,19487,200.00,Ashton on Mersey School,426,GB132924425,PUPIL PREMIUM PLUS,CLIENTS PERS NEEDS,220412,,171011,EDUCATION :  Children,Redacted,130713
http://statistics.data.gov.uk/id/local-authority/00BU,Trafford,09/01/2019,1901291568,19487,300.00,Ashton on Mersey School,426,GB132924425,PUPIL PREMIUM PLUS,CLIENTS PERS NEEDS,220412,,171011,EDUCATION :  Children,Redacted,130713
http://statistics.data.gov.uk/id/local-authority/00BU,Trafford,09/01/2019,1901291568,19487,120.00,Ashton on Mersey School,426,GB132924425,PUPIL PREMIUM PLUS,CLIENTS PERS NEEDS,220412,,171011,EDUCATION :  Children,Redacted,130713
http://statistics.data.gov.uk/id/local-authority/00BU,Trafford,09/01/2019,1901291568,19487,300.00,Ashton on Mersey School,426,GB132924425,PUPIL PREMIUM PLUS,CLIENTS PERS NEEDS,220412,,171011,EDUCATION :  Children,Redacted,130713
http://statistics.data.gov.uk/id/local-authority/00BU,Trafford,09/01/2019,1901291568,19487,100.00,Ashton on Mersey School,426,GB132924425,PUPIL PREMIUM PLUS,CLIENTS PERS NEEDS,220412,,171011,EDUCATION :  Children,Redacted,130713
http://statistics.data.gov.uk/id/local-authority/00BU,Trafford,09/01/2019,1901291568,19487,200.00,Ashton on Mersey School,426,GB132924425,PUPIL PREMIUM PLUS,CLIENTS PERS NEEDS,220412,,171011,EDUCATION :  Children,Redacted,130713
http://statistics.data.gov.uk/id/local-authority/00BU,Trafford,09/01/2019,1901291568,19487,300.00,Ashton on Mersey School,426,GB132924425,PUPIL PREMIUM PLUS,CLIENTS PERS NEEDS,220412,,171011,EDUCATION :  Children,Redacted,130713
http://statistics.data.gov.uk/id/local-authority/00BU,Trafford,09/01/2019,1901291568,19487,120.00,Ashton on Mersey School,426,GB132924425,PUPIL PREMIUM PLUS,CLIENTS PERS NEEDS,220412,,171011,EDUCATION :  Children,Redacted,130713
http://statistics.data.gov.uk/id/local-authority/00BU,Trafford,09/01/2019,1901291568,19487,300.00,Ashton on Mersey School,426,GB132924425,PUPIL PREMIUM PLUS,CLIENTS PERS NEEDS,220412,,171011,EDUCATION :  Children,Redacted,130713
http://statistics.data.gov.uk/id/local-authority/00BU,Trafford,09/01/2019,1901291568,19487,300.00,Ashton on Mersey School,426,GB132924425,PUPIL PREMIUM PLUS,CLIENTS PERS NEEDS,220412,,171011,EDUCATION :  Children,Redacted,130713
http://statistics.data.gov.uk/id/local-authority/00BU,Trafford,09/01/2019,1901291568,19487,300.00,Ashton on Mersey School,426,GB132924425,PUPIL PREMIUM PLUS,CLIENTS PERS NEEDS,220412,,171011,EDUCATION :  Children,Redacted,130713
http://statistics.data.gov.uk/id/local-authority/00BU,Trafford,09/01/2019,1901291568,19487,300.00,Ashton on Mersey School,426,GB132924425,PUPIL PREMIUM PLUS,CLIENTS PERS NEEDS,220412,,171011,EDUCATION :  Children,Redacted,130713
http://statistics.data.gov.uk/id/local-authority/00BU,Trafford,09/01/2019,1901291568,19487,300.00,Ashton on Mersey School,426,GB132924425,PUPIL PREMIUM PLUS,CLIENTS PERS NEEDS,220412,,171011,EDUCATION :  Children,Redacted,130713
http://statistics.data.gov.uk/id/local-authority/00BU,Trafford,09/01/2019,1901291568,19487,100.00,Ashton on Mersey School,426,GB132924425,PUPIL PREMIUM PLUS,CLIENTS PERS NEEDS,220412,,171011,EDUCATION :  Children,Redacted,130713
http://statistics.data.gov.uk/id/local-authority/00BU,Trafford,09/01/2019,1901291568,19487,200.00,Ashton on Mersey School,426,GB132924425,PUPIL PREMIUM PLUS,CLIENTS PERS NEEDS,220412,,171011,EDUCATION :  Children,Redacted,130713
http://statistics.data.gov.uk/id/local-authority/00BU,Trafford,09/01/2019,1901291568,19487,300.00,Ashton on Mersey School,426,GB132924425,PUPIL PREMIUM PLUS,CLIENTS PERS NEEDS,220412,,171011,EDUCATION :  Children,Redacted,130713
http://statistics.data.gov.uk/id/local-authority/00BU,Trafford,09/01/2019,1901291568,19487,120.00,Ashton on Mersey School,426,GB132924425,PUPIL PREMIUM PLUS,CLIENTS PERS NEEDS,220412,,171011,EDUCATION :  Children,Redacted,130713
http://statistics.data.gov.uk/id/local-authority/00BU,Trafford,09/01/2019,1901291568,19487,300.00,Ashton on Mersey School,426,GB132924425,PUPIL PREMIUM PLUS,CLIENTS PERS NEEDS,220412,,171011,EDUCATION :  Children,Redacted,130713
http://statistics.data.gov.uk/id/local-authority/00BU,Trafford,09/01/2019,1901291568,19487,300.00,Ashton on Mersey School,426,GB132924425,PUPIL PREMIUM PLUS,CLIENTS PERS NEEDS,220412,,171011,EDUCATION :  Children,Redacted,130713
http://statistics.data.gov.uk/id/local-authority/00BU,Trafford,09/01/2019,1901291568,19487,120.00,Ashton on Mersey School,426,GB132924425,PUPIL PREMIUM PLUS,CLIENTS PERS NEEDS,220412,,171011,EDUCATION :  Children,Redacted,130713
http://statistics.data.gov.uk/id/local-authority/00BU,Trafford,09/01/2019,1901291568,19487,300.00,Ashton on Mersey School,426,GB132924425,PUPIL PREMIUM PLUS,CLIENTS PERS NEEDS,220412,,171011,EDUCATION :  Children,Redacted,130713
http://statistics.data.gov.uk/id/local-authority/00BU,Trafford,09/01/2019,1901291568,19487,300.00,Ashton on Mersey School,426,GB132924425,PUPIL PREMIUM PLUS,CLIENTS PERS NEEDS,220412,,171011,EDUCATION :  Children,Redacted,130713
http://statistics.data.gov.uk/id/local-authority/00BU,Trafford,09/01/2019,1901291568,19487,300.00,Ashton on Mersey School,426,GB132924425,PUPIL PREMIUM PLUS,CLIENTS PERS NEEDS,220412,,171011,EDUCATION :  Children,Redacted,130713
http://statistics.data.gov.uk/id/local-authority/00BU,Trafford,09/01/2019,1901291568,19487,120.00,Ashton on Mersey School,426,GB132924425,PUPIL PREMIUM PLUS,CLIENTS PERS NEEDS,220412,,171011,EDUCATION :  Children,Redacted,130713
http://statistics.data.gov.uk/id/local-authority/00BU,Trafford,09/01/2019,1901291568,19487,300.00,Ashton on Mersey School,426,GB132924425,PUPIL PREMIUM PLUS,CLIENTS PERS NEEDS,220412,,171011,EDUCATION :  Children,Redacted,130713
http://statistics.data.gov.uk/id/local-authority/00BU,Trafford,09/01/2019,1901291568,19487,120.00,Ashton on Mersey School,426,GB132924425,PUPIL PREMIUM PLUS,CLIENTS PERS NEEDS,220412,,171011,EDUCATION :  Children,Redacted,130713
http://statistics.data.gov.uk/id/local-authority/00BU,Trafford,09/01/2019,1901291568,19487,300.00,Ashton on Mersey School,426,GB132924425,PUPIL PREMIUM PLUS,CLIENTS PERS NEEDS,220412,,171011,EDUCATION :  Children,Redacted,130713
http://statistics.data.gov.uk/id/local-authority/00BU,Trafford,11/01/2019,1901291737,19,"42,916.00",Ashton on Mersey School,426,GB132924425,YP:Ashton on Mersey,SCHOOL BUDGET SHARE,280040,,171011,EDUCATION :  Children,,103426
http://statistics.data.gov.uk/id/local-authority/00BU,Trafford,02/01/2019,1901290006,11662,"10,156.00",Stretford Grammar School,428,,Capital Schemes,A&M PAY TO CONTRACTO,400400,,171011,EDUCATION :  Children,CAPITAL,990000
http://statistics.data.gov.uk/id/local-authority/00BU,Trafford,09/01/2019,1901291439,18,"13,605.72",Stretford Grammar School,428,,Stretford Grammar,Schools' Unall Ch Bk,220852,,171011,EDUCATION :  Children,,102428
http://statistics.data.gov.uk/id/local-authority/00BU,Trafford,09/01/2019,1901291439,18,"13,815.91",Stretford Grammar School,428,,Stretford Grammar,Schools' Unall Ch Bk,220852,,171011,EDUCATION :  Children,,102428
http://statistics.data.gov.uk/id/local-authority/00BU,Trafford,09/01/2019,1901291439,18,"10,142.20",Stretford Grammar School,428,,Stretford Grammar,Schools' Unall Ch Bk,220852,,171011,EDUCATION :  Children,,102428
http://statistics.data.gov.uk/id/local-authority/00BU,Trafford,09/01/2019,1901291439,18,"56,202.05",Stretford Grammar School,428,,Stretford Grammar,Schools' Unall Ch Bk,220852,,171011,EDUCATION :  Children,,102428
http://statistics.data.gov.uk/id/local-authority/00BU,Trafford,09/01/2019,1901291439,18,"30,499.53",Stretford Grammar School,428,,Stretford Grammar,Schools' Unall Ch Bk,220852,,171011,EDUCATION :  Children,,102428
http://statistics.data.gov.uk/id/local-authority/00BU,Trafford,09/01/2019,1901291439,18,-6.95,Stretford Grammar School,428,,Stretford Grammar,SCH UNALL CHQ BK INC,360107,,171011,EDUCATION :  Children,,102428
http://statistics.data.gov.uk/id/local-authority/00BU,Trafford,09/01/2019,1901291439,18,"-393,656.89",Stretford Grammar School,428,,Stretford Grammar,SCH UNALL CHQ BK INC,360107,,171011,EDUCATION :  Children,,102428
http://statistics.data.gov.uk/id/local-authority/00BU,Trafford,09/01/2019,1901291439,18,"-124,265.41",Stretford Grammar School,428,,Stretford Grammar,Schools' Unall Ch Bk,220852,,171011,EDUCATION :  Children,,102428
http://statistics.data.gov.uk/id/local-authority/00BU,Trafford,09/01/2019,1901291439,18,"393,663.84",Stretford Grammar School,428,,Stretford Grammar,SCH UNALL CHQ BK INC,360107,,171011,EDUCATION :  Children,,102428
http://statistics.data.gov.uk/id/local-authority/00BU,Trafford,11/01/2019,1901291736,19,"325,765.00",Stretford Grammar School,428,,YP:Stretford Grammar,SCHOOL BUDGET SHARE,280040,,171011,EDUCATION :  Children,,101428
http://statistics.data.gov.uk/id/local-authority/00BU,Trafford,21/01/2019,1901293120,18,"2,340.24",Stretford Grammar School,428,,Stretford Grammar,Schools' Unall Ch Bk,220852,,171011,EDUCATION :  Children,,102428
http://statistics.data.gov.uk/id/local-authority/00BU,Trafford,21/01/2019,1901293120,18,"2,967.90",Stretford Grammar School,428,,Stretford Grammar,Schools' Unall Ch Bk,220852,,171011,EDUCATION :  Children,,102428
http://statistics.data.gov.uk/id/local-authority/00BU,Trafford,21/01/2019,1901293120,18,"7,364.00",Stretford Grammar School,428,,Stretford Grammar,Schools' Unall Ch Bk,220852,,171011,EDUCATION :  Children,,102428
http://statistics.data.gov.uk/id/local-authority/00BU,Trafford,21/01/2019,1901293120,18,"34,262.40",Stretford Grammar School,428,,Stretford Grammar,Schools' Unall Ch Bk,220852,,171011,EDUCATION :  Children,,102428
http://statistics.data.gov.uk/id/local-authority/00BU,Trafford,21/01/2019,1901293120,18,"34,669.00",Stretford Grammar School,428,,Stretford Grammar,Schools' Unall Ch Bk,220852,,171011,EDUCATION :  Children,,102428
http://statistics.data.gov.uk/id/local-authority/00BU,Trafford,21/01/2019,1901293120,18,422.50,Stretford Grammar School,428,,Stretford Grammar,SCH UNALL CHQ BK INC,360107,,171011,EDUCATION :  Children,,102428
http://statistics.data.gov.uk/id/local-authority/00BU,Trafford,21/01/2019,1901293120,18,"-356,204.34",Stretford Grammar School,428,,Stretford Grammar,SCH UNALL CHQ BK INC,360107,,171011,EDUCATION :  Children,,102428
http://statistics.data.gov.uk/id/local-authority/00BU,Trafford,21/01/2019,1901293120,18,"-81,603.54",Stretford Grammar School,428,,Stretford Grammar,Schools' Unall Ch Bk,220852,,171011,EDUCATION :  Children,,102428
http://statistics.data.gov.uk/id/local-authority/00BU,Trafford,21/01/2019,1901293120,18,"355,781.84",Stretford Grammar School,428,,Stretford Grammar,SCH UNALL CHQ BK INC,360107,,171011,EDUCATION :  Children,,102428
http://statistics.data.gov.uk/id/local-authority/00BU,Trafford,11/01/2019,1901291819,19,"1,922.00",Urmston Grammar School,429,GB120165661,YP:Urmston Grammar S,SCHOOL BUDGET SHARE,280040,,171011,EDUCATION :  Children,,103429
http://statistics.data.gov.uk/id/local-authority/00BU,Trafford,11/01/2019,1901291820,19,"3,128.00",Wellington School,430,,YP:Wellington Sch,SCHOOL BUDGET SHARE,280040,,171000,EDUCATION : Services,,103430
http://statistics.data.gov.uk/id/local-authority/00BU,Trafford,11/01/2019,1901291733,19,"463,098.00",STRETFORD HIGH SCHOOL,431,,YP:Stretford High Sc,SCHOOL BUDGET SHARE,280040,,,,,101431
http://statistics.data.gov.uk/id/local-authority/00BU,Trafford,23/01/2019,1901293560,19886,233.31,STRETFORD HIGH SCHOOL,431,,PUPIL PREMIUM PLUS,CLIENTS PERS NEEDS,220412,,,,Redacted,130713
http://statistics.data.gov.uk/id/local-authority/00BU,Trafford,11/01/2019,1901291802,1,"2,189.00",Sale Grammar School,432,GB120951441,YP:Sale Grammar Sch,SCHOOL BUDGET SHARE,280040,,291000,LEISURE SERVICES : Events,,103432
http://statistics.data.gov.uk/id/local-authority/00BU,Trafford,11/01/2019,1901291784,19,"27,630.00",St Antonys Catholic College,433,GB149191256,School Cash Advances,SCHOOL BUDGET SHARE,280040,,171011,EDUCATION :  Children,,900110
http://statistics.data.gov.uk/id/local-authority/00BU,Trafford,23/01/2019,1901293440,18,170.40,St Antonys Catholic College,433,GB149191256,YP:St Antony's RC Hi,Schools' Unall Ch Bk,220852,,171011,EDUCATION :  Children,,102433
http://statistics.data.gov.uk/id/local-authority/00BU,Trafford,23/01/2019,1901293440,18,"10,495.32",St Antonys Catholic College,433,GB149191256,YP:St Antony's RC Hi,Schools' Unall Ch Bk,220852,,171011,EDUCATION :  Children,,102433
http://statistics.data.gov.uk/id/local-authority/00BU,Trafford,23/01/2019,1901293440,18,"6,609.98",St Antonys Catholic College,433,GB149191256,YP:St Antony's RC Hi,Schools' Unall Ch Bk,220852,,171011,EDUCATION :  Children,,102433
http://statistics.data.gov.uk/id/local-authority/00BU,Trafford,23/01/2019,1901293440,18,"20,202.00",St Antonys Catholic College,433,GB149191256,YP:St Antony's RC Hi,Schools' Unall Ch Bk,220852,,171011,EDUCATION :  Children,,102433
http://statistics.data.gov.uk/id/local-authority/00BU,Trafford,23/01/2019,1901293440,18,"18,068.72",St Antonys Catholic College,433,GB149191256,YP:St Antony's RC Hi,Schools' Unall Ch Bk,220852,,171011,EDUCATION :  Children,,102433
http://statistics.data.gov.uk/id/local-authority/00BU,Trafford,23/01/2019,1901293440,18,-430.00,St Antonys Catholic College,433,GB149191256,YP:St Antony's RC Hi,SCH UNALL CHQ BK INC,360107,,171011,EDUCATION :  Children,,102433
http://statistics.data.gov.uk/id/local-authority/00BU,Trafford,23/01/2019,1901293440,18,"-1,907.13",St Antonys Catholic College,433,GB149191256,YP:St Antony's RC Hi,SCH UNALL CHQ BK INC,360107,,171011,EDUCATION :  Children,,102433
http://statistics.data.gov.uk/id/local-authority/00BU,Trafford,23/01/2019,1901293440,18,"-55,546.42",St Antonys Catholic College,433,GB149191256,School Cash Advances,CB Schs Contra Entry,290025,,171011,EDUCATION :  Children,,900110
http://statistics.data.gov.uk/id/local-authority/00BU,Trafford,23/01/2019,1901293440,18,"2,337.13",St Antonys Catholic College,433,GB149191256,School Cash Advances,SCH UNALL CHQ BK INC,360107,,171011,EDUCATION :  Children,,900110
http://statistics.data.gov.uk/id/local-authority/00BU,Trafford,11/01/2019,1901291806,19,955.00,Loreto Grammar School,434,,YP:Loreto Grammar Sc,SCHOOL BUDGET SHARE,280040,,171000,EDUCATION : Services,,103434
http://statistics.data.gov.uk/id/local-authority/00BU,Trafford,09/01/2019,1901291567,19486,300.00,Altrincham College of Arts Academy,436,GB149191256,PUPIL PREMIUM PLUS,CLIENTS PERS NEEDS,220412,,171011,EDUCATION :  Children,Redacted,130713
http://statistics.data.gov.uk/id/local-authority/00BU,Trafford,09/01/2019,1901291567,19486,600.00,Altrincham College of Arts Academy,436,GB149191256,PUPIL PREMIUM PLUS,CLIENTS PERS NEEDS,220412,,171011,EDUCATION :  Children,Redacted,130713
http://statistics.data.gov.uk/id/local-authority/00BU,Trafford,09/01/2019,1901291567,19486,600.00,Altrincham College of Arts Academy,436,GB149191256,PUPIL PREMIUM PLUS,CLIENTS PERS NEEDS,220412,,171011,EDUCATION :  Children,Redacted,130713
http://statistics.data.gov.uk/id/local-authority/00BU,Trafford,09/01/2019,1901291567,19486,300.00,Altrincham College of Arts Academy,436,GB149191256,PUPIL PREMIUM PLUS,CLIENTS PERS NEEDS,220412,,171011,EDUCATION :  Children,Redacted,130713
http://statistics.data.gov.uk/id/local-authority/00BU,Trafford,09/01/2019,1901291567,19486,300.00,Altrincham College of Arts Academy,436,GB149191256,PUPIL PREMIUM PLUS,CLIENTS PERS NEEDS,220412,,171011,EDUCATION :  Children,Redacted,130713
http://statistics.data.gov.uk/id/local-authority/00BU,Trafford,11/01/2019,1901291778,19,"7,289.00",Altrincham College of Arts Academy,436,GB149191256,YP:AltrinchamCollege,SCHOOL BUDGET SHARE,280040,,171011,EDUCATION :  Children,,103427
http://statistics.data.gov.uk/id/local-authority/00BU,Trafford,16/01/2019,1901292745,19809,450.00,Altrincham College of Arts Academy,436,GB149191256,PUPIL PREMIUM PLUS,CLIENTS PERS NEEDS,220412,,171011,EDUCATION :  Children,Redacted,130713
http://statistics.data.gov.uk/id/local-authority/00BU,Trafford,23/01/2019,1901293561,19887,242.00,Altrincham College of Arts Academy,436,GB149191256,PUPIL PREMIUM PLUS,CLIENTS PERS NEEDS,220412,,171011,EDUCATION :  Children,Redacted,130713
http://statistics.data.gov.uk/id/local-authority/00BU,Trafford,23/01/2019,1901293561,19887,72.00,Altrincham College of Arts Academy,436,GB149191256,PUPIL PREMIUM PLUS,CLIENTS PERS NEEDS,220412,,171011,EDUCATION :  Children,Redacted,130713
http://statistics.data.gov.uk/id/local-authority/00BU,Trafford,23/01/2019,1901293561,19887,300.00,Altrincham College of Arts Academy,436,GB149191256,PUPIL PREMIUM PLUS,CLIENTS PERS NEEDS,220412,,171011,EDUCATION :  Children,Redacted,130713
http://statistics.data.gov.uk/id/local-authority/00BU,Trafford,23/01/2019,1901293436,18,"3,211.45",Brentwood School,501,GB149191256,Brentwood,Schools' Unall Ch Bk,220852,,201700,FINANCIAL SERVICES : Grants,,102501
http://statistics.data.gov.uk/id/local-authority/00BU,Trafford,23/01/2019,1901293436,18,398.67,Brentwood School,501,GB149191256,Brentwood,Schools' Unall Ch Bk,220852,,201700,FINANCIAL SERVICES : Grants,,102501
http://statistics.data.gov.uk/id/local-authority/00BU,Trafford,23/01/2019,1901293436,18,"22,569.45",Brentwood School,501,GB149191256,Brentwood,Schools' Unall Ch Bk,220852,,201700,FINANCIAL SERVICES : Grants,,102501
http://statistics.data.gov.uk/id/local-authority/00BU,Trafford,23/01/2019,1901293436,18,"18,341.04",Brentwood School,501,GB149191256,Brentwood,Schools' Unall Ch Bk,220852,,201700,FINANCIAL SERVICES : Grants,,102501
http://statistics.data.gov.uk/id/local-authority/00BU,Trafford,23/01/2019,1901293436,18,-26.95,Brentwood School,501,GB149191256,Brentwood,SCH UNALL CHQ BK INC,360107,,201700,FINANCIAL SERVICES : Grants,,102501
http://statistics.data.gov.uk/id/local-authority/00BU,Trafford,23/01/2019,1901293436,18,-29.12,Brentwood School,501,GB149191256,Brentwood,SCH UNALL CHQ BK INC,360107,,201700,FINANCIAL SERVICES : Grants,,102501
http://statistics.data.gov.uk/id/local-authority/00BU,Trafford,23/01/2019,1901293436,18,"-44,520.61",Brentwood School,501,GB149191256,School Cash Advances,CB Schs Contra Entry,290025,,201700,FINANCIAL SERVICES : Grants,,900110
http://statistics.data.gov.uk/id/local-authority/00BU,Trafford,23/01/2019,1901293436,18,56.07,Brentwood School,501,GB149191256,School Cash Advances,SCH UNALL CHQ BK INC,360107,,201700,FINANCIAL SERVICES : Grants,,900110
http://statistics.data.gov.uk/id/local-authority/00BU,Trafford,28/01/2019,1901293670,18,"1,983.95",Brentwood School,501,GB149191256,Brentwood,Schools' Unall Ch Bk,220852,,201700,FINANCIAL SERVICES : Grants,,102501
http://statistics.data.gov.uk/id/local-authority/00BU,Trafford,28/01/2019,1901293670,18,"1,482.74",Brentwood School,501,GB149191256,Brentwood,Schools' Unall Ch Bk,220852,,201700,FINANCIAL SERVICES : Grants,,102501
http://statistics.data.gov.uk/id/local-authority/00BU,Trafford,28/01/2019,1901293670,18,"66,592.35",Brentwood School,501,GB149191256,Brentwood,Schools' Unall Ch Bk,220852,,201700,FINANCIAL SERVICES : Grants,,102501
http://statistics.data.gov.uk/id/local-authority/00BU,Trafford,28/01/2019,1901293670,18,"18,924.74",Brentwood School,501,GB149191256,Brentwood,Schools' Unall Ch Bk,220852,,201700,FINANCIAL SERVICES : Grants,,102501
http://statistics.data.gov.uk/id/local-authority/00BU,Trafford,28/01/2019,1901293670,18,-582.54,Brentwood School,501,GB149191256,Brentwood,SCH UNALL CHQ BK INC,360107,,201700,FINANCIAL SERVICES : Grants,,102501
http://statistics.data.gov.uk/id/local-authority/00BU,Trafford,28/01/2019,1901293670,18,"-43,478.25",Brentwood School,501,GB149191256,Brentwood,SCH UNALL CHQ BK INC,360107,,201700,FINANCIAL SERVICES : Grants,,102501
http://statistics.data.gov.uk/id/local-authority/00BU,Trafford,28/01/2019,1901293670,18,"-88,983.78",Brentwood School,501,GB149191256,School Cash Advances,CB Schs Contra Entry,290025,,201700,FINANCIAL SERVICES : Grants,,900110
http://statistics.data.gov.uk/id/local-authority/00BU,Trafford,28/01/2019,1901293670,18,"44,060.79",Brentwood School,501,GB149191256,School Cash Advances,SCH UNALL CHQ BK INC,360107,,201700,FINANCIAL SERVICES : Grants,,900110
http://statistics.data.gov.uk/id/local-authority/00BU,Trafford,09/01/2019,1901291577,19496,50.00,Longford Park School,502,,PUPIL PREMIUM PLUS,CLIENTS PERS NEEDS,220412,,281100,LEGAL SERVICES : Elections,Redacted,130713
http://statistics.data.gov.uk/id/local-authority/00BU,Trafford,09/01/2019,1901291577,19496,250.00,Longford Park School,502,,PUPIL PREMIUM PLUS,CLIENTS PERS NEEDS,220412,,281100,LEGAL SERVICES : Elections,Redacted,130713
http://statistics.data.gov.uk/id/local-authority/00BU,Trafford,09/01/2019,1901291577,19496,300.00,Longford Park School,502,,PUPIL PREMIUM PLUS,CLIENTS PERS NEEDS,220412,,281100,LEGAL SERVICES : Elections,Redacted,130713
http://statistics.data.gov.uk/id/local-authority/00BU,Trafford,09/01/2019,1901291577,19496,300.00,Longford Park School,502,,PUPIL PREMIUM PLUS,CLIENTS PERS NEEDS,220412,,281100,LEGAL SERVICES : Elections,Redacted,130713
http://statistics.data.gov.uk/id/local-authority/00BU,Trafford,09/01/2019,1901291577,19496,300.00,Longford Park School,502,,PUPIL PREMIUM PLUS,CLIENTS PERS NEEDS,220412,,281100,LEGAL SERVICES : Elections,Redacted,130713
http://statistics.data.gov.uk/id/local-authority/00BU,Trafford,09/01/2019,1901291577,19496,300.00,Longford Park School,502,,PUPIL PREMIUM PLUS,CLIENTS PERS NEEDS,220412,,281100,LEGAL SERVICES : Elections,Redacted,130713
http://statistics.data.gov.uk/id/local-authority/00BU,Trafford,09/01/2019,1901291577,19496,300.00,Longford Park School,502,,PUPIL PREMIUM PLUS,CLIENTS PERS NEEDS,220412,,281100,LEGAL SERVICES : Elections,Redacted,130713
http://statistics.data.gov.uk/id/local-authority/00BU,Trafford,16/01/2019,1901292750,19814,150.00,Longford Park School,502,,PUPIL PREMIUM PLUS,CLIENTS PERS NEEDS,220412,,281100,LEGAL SERVICES : Elections,Redacted,130713
http://statistics.data.gov.uk/id/local-authority/00BU,Trafford,16/01/2019,1901292750,19814,350.00,Longford Park School,502,,PUPIL PREMIUM PLUS,CLIENTS PERS NEEDS,220412,,281100,LEGAL SERVICES : Elections,Redacted,130713
http://statistics.data.gov.uk/id/local-authority/00BU,Trafford,28/01/2019,1901293698,18,"1,933.54",Longford Park School,502,,YP:Longford Park,Schools' Unall Ch Bk,220852,,281100,LEGAL SERVICES : Elections,,102502
http://statistics.data.gov.uk/id/local-authority/00BU,Trafford,28/01/2019,1901293698,18,"1,212.91",Longford Park School,502,,YP:Longford Park,Schools' Unall Ch Bk,220852,,281100,LEGAL SERVICES : Elections,,102502
http://statistics.data.gov.uk/id/local-authority/00BU,Trafford,28/01/2019,1901293698,18,"3,835.95",Longford Park School,502,,YP:Longford Park,Schools' Unall Ch Bk,220852,,281100,LEGAL SERVICES : Elections,,102502
http://statistics.data.gov.uk/id/local-authority/00BU,Trafford,28/01/2019,1901293698,18,"2,192.13",Longford Park School,502,,YP:Longford Park,Schools' Unall Ch Bk,220852,,281100,LEGAL SERVICES : Elections,,102502
http://statistics.data.gov.uk/id/local-authority/00BU,Trafford,28/01/2019,1901293698,18,-0.30,Longford Park School,502,,YP:Longford Park,SCH UNALL CHQ BK INC,360107,,281100,LEGAL SERVICES : Elections,,102502
http://statistics.data.gov.uk/id/local-authority/00BU,Trafford,28/01/2019,1901293698,18,"-17,135.62",Longford Park School,502,,YP:Longford Park,SCH UNALL CHQ BK INC,360107,,281100,LEGAL SERVICES : Elections,,102502
http://statistics.data.gov.uk/id/local-authority/00BU,Trafford,28/01/2019,1901293698,18,"-9,174.53",Longford Park School,502,,School Cash Advances,CB Schs Contra Entry,290025,,281100,LEGAL SERVICES : Elections,,900110
http://statistics.data.gov.uk/id/local-authority/00BU,Trafford,28/01/2019,1901293698,18,"17,135.92",Longford Park School,502,,School Cash Advances,SCH UNALL CHQ BK INC,360107,,281100,LEGAL SERVICES : Elections,,900110
http://statistics.data.gov.uk/id/local-authority/00BU,Trafford,11/01/2019,1901291798,Redacted,"19,361.00",The Orchards School,505,,YP:The Orchards,SCHOOL BUDGET SHARE,280040,,,,,103515
http://statistics.data.gov.uk/id/local-authority/00BU,Trafford,16/01/2019,1901292755,Redacted,143.20,ASCOT HOUSE IMPREST,1005,,ASCOT HOUSE PENNINE,TRAVELLING EXPENSES,210400,,,,,154013
http://statistics.data.gov.uk/id/local-authority/00BU,Trafford,16/01/2019,1901292755,Redacted,21.20,ASCOT HOUSE IMPREST,1005,,ASCOT HOUSE PENNINE,TRAVELLING EXPENSES,210400,,,,,154013
http://statistics.data.gov.uk/id/local-authority/00BU,Trafford,16/01/2019,1901292755,Redacted,35.68,ASCOT HOUSE IMPREST,1005,,ASCOT HOUSE PENNINE,CATERING PROVISIONS,220100,,,,,154013
http://statistics.data.gov.uk/id/local-authority/00BU,Trafford,16/01/2019,1901292755,Redacted,0.08,ASCOT HOUSE IMPREST,1005,,ASCOT HOUSE PENNINE,CATERING PROVISIONS,220100,,,,,154013
http://statistics.data.gov.uk/id/local-authority/00BU,Trafford,16/01/2019,1901292755,Redacted,29.96,ASCOT HOUSE IMPREST,1005,,ASCOT HOUSE PENNINE,MEDICAL REQUISITES,220076,,,,,154013
http://statistics.data.gov.uk/id/local-authority/00BU,Trafford,16/01/2019,1901292755,Redacted,5.09,ASCOT HOUSE IMPREST,1005,,ASCOT HOUSE PENNINE,POSTAGES,220515,,,,,154013
http://statistics.data.gov.uk/id/local-authority/00BU,Trafford,16/01/2019,1901292755,Redacted,83.94,ASCOT HOUSE IMPREST,1005,,Care at Home,EQUIPMENT - PURCHASE,220048,,,,,153045
http://statistics.data.gov.uk/id/local-authority/00BU,Trafford,16/01/2019,1901292755,Redacted,3.66,ASCOT HOUSE IMPREST,1005,,Care at Home,POSTAGES,220515,,,,,153045
http://statistics.data.gov.uk/id/local-authority/00BU,Trafford,16/01/2019,1901292783,Redacted,143.20,ASCOT HOUSE IMPREST,1005,,ASCOT HOUSE PENNINE,TRAVELLING EXPENSES,210400,,,,,154013
http://statistics.data.gov.uk/id/local-authority/00BU,Trafford,16/01/2019,1901292783,Redacted,21.20,ASCOT HOUSE IMPREST,1005,,ASCOT HOUSE PENNINE,TRAVELLING EXPENSES,210400,,,,,154013
http://statistics.data.gov.uk/id/local-authority/00BU,Trafford,16/01/2019,1901292783,Redacted,35.68,ASCOT HOUSE IMPREST,1005,,ASCOT HOUSE PENNINE,CATERING PROVISIONS,220100,,,,,154013
http://statistics.data.gov.uk/id/local-authority/00BU,Trafford,16/01/2019,1901292783,Redacted,0.08,ASCOT HOUSE IMPREST,1005,,ASCOT HOUSE PENNINE,CATERING PROVISIONS,220100,,,,,154013
http://statistics.data.gov.uk/id/local-authority/00BU,Trafford,16/01/2019,1901292783,Redacted,29.96,ASCOT HOUSE IMPREST,1005,,ASCOT HOUSE PENNINE,MEDICAL REQUISITES,220076,,,,,154013
http://statistics.data.gov.uk/id/local-authority/00BU,Trafford,16/01/2019,1901292783,Redacted,5.09,ASCOT HOUSE IMPREST,1005,,ASCOT HOUSE PENNINE,POSTAGES,220515,,,,,154013
http://statistics.data.gov.uk/id/local-authority/00BU,Trafford,16/01/2019,1901292783,Redacted,83.94,ASCOT HOUSE IMPREST,1005,,Care at Home,EQUIPMENT - PURCHASE,220048,,,,,153045
http://statistics.data.gov.uk/id/local-authority/00BU,Trafford,16/01/2019,1901292783,Redacted,3.66,ASCOT HOUSE IMPREST,1005,,Care at Home,POSTAGES,220515,,,,,153045
http://statistics.data.gov.uk/id/local-authority/00BU,Trafford,07/01/2019,1901291051,Redacted,540.00,ADOLESCENT RESOURCE CENTRE,1008,,Leaving Care Placeme,BOARDED OUT SEC23,230849,,,,Redacted,130102
http://statistics.data.gov.uk/id/local-authority/00BU,Trafford,07/01/2019,1901291051,Redacted,235.10,ADOLESCENT RESOURCE CENTRE,1008,,Leaving Care Placeme,CLIENTS PERS NEEDS,220412,,,,Redacted,130102
http://statistics.data.gov.uk/id/local-authority/00BU,Trafford,07/01/2019,1901291051,Redacted,"1,495.85",ADOLESCENT RESOURCE CENTRE,1008,,Leaving Care Placeme,CLIENTS PERS NEEDS,220412,,,,Redacted,130102
http://statistics.data.gov.uk/id/local-authority/00BU,Trafford,07/01/2019,1901291051,Redacted,381.14,ADOLESCENT RESOURCE CENTRE,1008,,PERM TEAM: CLIENTS,FAM CONT PERS NEEDS,220828,,,,,130712
http://statistics.data.gov.uk/id/local-authority/00BU,Trafford,07/01/2019,1901291051,Redacted,370.42,ADOLESCENT RESOURCE CENTRE,1008,,PLACEMENT FOSTERING,FOSTER LOAN ADVANCE,230804,,,,,130435
http://statistics.data.gov.uk/id/local-authority/00BU,Trafford,07/01/2019,1901291051,Redacted,13.50,ADOLESCENT RESOURCE CENTRE,1008,,PLACEMENT FOSTERING,VOCATIONAL TRAINING,190002,,,,,130435
http://statistics.data.gov.uk/id/local-authority/00BU,Trafford,07/01/2019,1901291051,Redacted,48.00,ADOLESCENT RESOURCE CENTRE,1008,,PLACEMENT FOSTERING,EQUIPMENT - PURCHASE,220048,,,,,130435
http://statistics.data.gov.uk/id/local-authority/00BU,Trafford,07/01/2019,1901291051,Redacted,183.26,ADOLESCENT RESOURCE CENTRE,1008,,SUPPORTED LODGES,BOARDED OUT SEC23,230849,,,,,130115
http://statistics.data.gov.uk/id/local-authority/00BU,Trafford,07/01/2019,1901291051,Redacted,160.00,ADOLESCENT RESOURCE CENTRE,1008,,Youth Homeless place,CHILD IN CARE SEC 20,230851,,,,,130104
http://statistics.data.gov.uk/id/local-authority/00BU,Trafford,07/01/2019,1901291051,Redacted,75.00,ADOLESCENT RESOURCE CENTRE,1008,,PERMANENCE TEAM,TRAVELLING EXPENSES,210400,,,,,130150
http://statistics.data.gov.uk/id/local-authority/00BU,Trafford,07/01/2019,1901291051,Redacted,14.50,ADOLESCENT RESOURCE CENTRE,1008,,MARAT SECTION 17,CLIENTS PERS NEEDS,220412,,,,,130705
http://statistics.data.gov.uk/id/local-authority/00BU,Trafford,07/01/2019,1901291051,Redacted,25.00,ADOLESCENT RESOURCE CENTRE,1008,,NEW SOUTH:S17&CLIENT,FAM CONT PERS NEEDS,220828,,,,,130682
http://statistics.data.gov.uk/id/local-authority/00BU,Trafford,07/01/2019,1901291051,Redacted,30.00,ADOLESCENT RESOURCE CENTRE,1008,,Troubled Families,CLIENTS PERS NEEDS,220412,,,,,130002
http://statistics.data.gov.uk/id/local-authority/00BU,Trafford,07/01/2019,1901291051,Redacted,409.07,ADOLESCENT RESOURCE CENTRE,1008,,CHILDRENS RIGHTS,CLIENTS PERS NEEDS,220412,,,,,130390
http://statistics.data.gov.uk/id/local-authority/00BU,Trafford,21/01/2019,1901293173,Redacted,340.00,ADOLESCENT RESOURCE CENTRE,1008,,Leaving Care Placeme,BOARDED OUT SEC23,230849,,,,Redacted,130102
http://statistics.data.gov.uk/id/local-authority/00BU,Trafford,21/01/2019,1901293173,Redacted,50.00,ADOLESCENT RESOURCE CENTRE,1008,,Leaving Care Placeme,CLIENTS PERS NEEDS,220412,,,,Redacted,130102
http://statistics.data.gov.uk/id/local-authority/00BU,Trafford,21/01/2019,1901293173,Redacted,672.23,ADOLESCENT RESOURCE CENTRE,1008,,PERM TEAM: CLIENTS,CLIENTS PERS NEEDS,220412,,,,,130712
http://statistics.data.gov.uk/id/local-authority/00BU,Trafford,21/01/2019,1901293173,Redacted,244.03,ADOLESCENT RESOURCE CENTRE,1008,,PERM TEAM: CLIENTS,FAM CONT PERS NEEDS,220828,,,,,130712
http://statistics.data.gov.uk/id/local-authority/00BU,Trafford,21/01/2019,1901293173,Redacted,164.22,ADOLESCENT RESOURCE CENTRE,1008,,PLACEMENT FOSTERING,FOSTERING IN HOUSE,230806,,,,,130435
http://statistics.data.gov.uk/id/local-authority/00BU,Trafford,21/01/2019,1901293173,Redacted,78.60,ADOLESCENT RESOURCE CENTRE,1008,,PERMANENCE TEAM,TRAVELLING EXPENSES,210400,,,,,130150
http://statistics.data.gov.uk/id/local-authority/00BU,Trafford,21/01/2019,1901293173,Redacted,198.75,ADOLESCENT RESOURCE CENTRE,1008,,PLACEMENT FOSTERING,CLIENTS PERS NEEDS,220412,,,,,130435
http://statistics.data.gov.uk/id/local-authority/00BU,Trafford,21/01/2019,1901293173,Redacted,25.00,ADOLESCENT RESOURCE CENTRE,1008,,NEW SOUTH:S17&CLIENT,FAM CONT PERS NEEDS,220828,,,,,130682
http://statistics.data.gov.uk/id/local-authority/00BU,Trafford,21/01/2019,1901293173,Redacted,183.41,ADOLESCENT RESOURCE CENTRE,1008,,SUPPORTED LODGES,BOARDED OUT SEC23,230849,,,,,130115
http://statistics.data.gov.uk/id/local-authority/00BU,Trafford,21/01/2019,1901293173,Redacted,20.00,ADOLESCENT RESOURCE CENTRE,1008,,PLACEMENT FOSTERING,PROFESSIONAL FEES,220456,,,,,130435
http://statistics.data.gov.uk/id/local-authority/00BU,Trafford,23/01/2019,1901293424,Redacted,60.00,ADOLESCENT RESOURCE CENTRE,1008,,Leaving Care Placeme,BOARDED OUT SEC23,230849,,,,Redacted,130102
http://statistics.data.gov.uk/id/local-authority/00BU,Trafford,23/01/2019,1901293424,Redacted,85.00,ADOLESCENT RESOURCE CENTRE,1008,,Leaving Care Placeme,CLIENTS PERS NEEDS,220412,,,,Redacted,130102
http://statistics.data.gov.uk/id/local-authority/00BU,Trafford,23/01/2019,1901293424,Redacted,65.14,ADOLESCENT RESOURCE CENTRE,1008,,PERM TEAM: CLIENTS,CLIENTS PERS NEEDS,220412,,,,,130712
http://statistics.data.gov.uk/id/local-authority/00BU,Trafford,23/01/2019,1901293424,Redacted,105.00,ADOLESCENT RESOURCE CENTRE,1008,,PERM TEAM: CLIENTS,FAM CONT PERS NEEDS,220828,,,,,130712
http://statistics.data.gov.uk/id/local-authority/00BU,Trafford,23/01/2019,1901293424,Redacted,340.00,ADOLESCENT RESOURCE CENTRE,1008,,PLACEMENT ADOPTION,LEGAL FEES,220438,,,,,130440
http://statistics.data.gov.uk/id/local-authority/00BU,Trafford,23/01/2019,1901293424,Redacted,80.00,ADOLESCENT RESOURCE CENTRE,1008,,PERMANENCE TEAM,TRAVELLING EXPENSES,210400,,,,,130150
http://statistics.data.gov.uk/id/local-authority/00BU,Trafford,23/01/2019,1901293424,Redacted,150.00,ADOLESCENT RESOURCE CENTRE,1008,,OLD HALL ROAD,CLIENTS PERS NEEDS,220412,,,,,130465
http://statistics.data.gov.uk/id/local-authority/00BU,Trafford,30/01/2019,1901294232,Redacted,240.00,ADOLESCENT RESOURCE CENTRE,1008,,Leaving Care Placeme,BOARDED OUT SEC23,230849,,,,Redacted,130102
http://statistics.data.gov.uk/id/local-authority/00BU,Trafford,30/01/2019,1901294232,Redacted,258.35,ADOLESCENT RESOURCE CENTRE,1008,,Leaving Care Placeme,CLIENTS PERS NEEDS,220412,,,,Redacted,130102
http://statistics.data.gov.uk/id/local-authority/00BU,Trafford,30/01/2019,1901294232,Redacted,15.58,ADOLESCENT RESOURCE CENTRE,1008,,PERM TEAM: CLIENTS,CLIENTS PERS NEEDS,220412,,,,,130712
http://statistics.data.gov.uk/id/local-authority/00BU,Trafford,30/01/2019,1901294232,Redacted,9.98,ADOLESCENT RESOURCE CENTRE,1008,,PERM TEAM: CLIENTS,CLIENTS PERS NEEDS,220412,,,,,130712
http://statistics.data.gov.uk/id/local-authority/00BU,Trafford,30/01/2019,1901294232,Redacted,202.57,ADOLESCENT RESOURCE CENTRE,1008,,CHILDRENS RIGHTS,LEGAL FEES,220438,,,,,130390
http://statistics.data.gov.uk/id/local-authority/00BU,Trafford,09/01/2019,1901291469,Redacted,136.66,OLD HALL ROAD,1009,,OLD HALL ROAD,EQUIPMENT - PURCHASE,220048,,,,,130465
http://statistics.data.gov.uk/id/local-authority/00BU,Trafford,09/01/2019,1901291469,Redacted,542.40,OLD HALL ROAD,1009,,OLD HALL ROAD,CATERING PROVISIONS,220100,,,,,130465
http://statistics.data.gov.uk/id/local-authority/00BU,Trafford,09/01/2019,1901291469,Redacted,107.90,OLD HALL ROAD,1009,,OLD HALL ROAD,CATERING PROVISIONS,220100,,,,,130465
http://statistics.data.gov.uk/id/local-authority/00BU,Trafford,09/01/2019,1901291469,Redacted,16.45,OLD HALL ROAD,1009,,OLD HALL ROAD,CLIENTS HOLS & OUTIN,220402,,,,,130465
http://statistics.data.gov.uk/id/local-authority/00BU,Trafford,09/01/2019,1901291469,Redacted,93.45,OLD HALL ROAD,1009,,OLD HALL ROAD,CLIENTS HOLS & OUTIN,220402,,,,,130465
http://statistics.data.gov.uk/id/local-authority/00BU,Trafford,09/01/2019,1901291469,Redacted,156.67,OLD HALL ROAD,1009,,OLD HALL ROAD,CLIENTS PERS NEEDS,220412,,,,,130465
http://statistics.data.gov.uk/id/local-authority/00BU,Trafford,09/01/2019,1901291469,Redacted,102.27,OLD HALL ROAD,1009,,OLD HALL ROAD,CLIENTS PERS NEEDS,220412,,,,,130465
http://statistics.data.gov.uk/id/local-authority/00BU,Trafford,09/01/2019,1901291469,Redacted,50.50,OLD HALL ROAD,1009,,OLD HALL ROAD,CLIENTS TRAV EXP,220416,,,,,130465
http://statistics.data.gov.uk/id/local-authority/00BU,Trafford,09/01/2019,1901291469,Redacted,125.20,OLD HALL ROAD,1009,,OLD HALL ROAD,CLIENTS POCK MON GIF,240310,,,,,130465
http://statistics.data.gov.uk/id/local-authority/00BU,Trafford,11/01/2019,1901291835,Redacted,3.74,OLD HALL ROAD,1009,,OLD HALL ROAD,EQUIPMENT - PURCHASE,220048,,,,,130465
http://statistics.data.gov.uk/id/local-authority/00BU,Trafford,11/01/2019,1901291835,Redacted,6.00,OLD HALL ROAD,1009,,OLD HALL ROAD,EQUIPMENT - REPAIRS,220050,,,,,130465
http://statistics.data.gov.uk/id/local-authority/00BU,Trafford,11/01/2019,1901291835,Redacted,275.85,OLD HALL ROAD,1009,,OLD HALL ROAD,CATERING PROVISIONS,220100,,,,,130465
http://statistics.data.gov.uk/id/local-authority/00BU,Trafford,11/01/2019,1901291835,Redacted,69.91,OLD HALL ROAD,1009,,OLD HALL ROAD,CATERING PROVISIONS,220100,,,,,130465
http://statistics.data.gov.uk/id/local-authority/00BU,Trafford,11/01/2019,1901291835,Redacted,34.62,OLD HALL ROAD,1009,,OLD HALL ROAD,UNIFORMS,220220,,,,,130465
http://statistics.data.gov.uk/id/local-authority/00BU,Trafford,11/01/2019,1901291835,Redacted,4.20,OLD HALL ROAD,1009,,OLD HALL ROAD,CLIENTS HOLS & OUTIN,220402,,,,,130465
http://statistics.data.gov.uk/id/local-authority/00BU,Trafford,11/01/2019,1901291835,Redacted,16.87,OLD HALL ROAD,1009,,OLD HALL ROAD,CLIENTS HOLS & OUTIN,220402,,,,,130465
http://statistics.data.gov.uk/id/local-authority/00BU,Trafford,11/01/2019,1901291835,Redacted,45.99,OLD HALL ROAD,1009,,OLD HALL ROAD,CLIENTS PERS NEEDS,220412,,,,,130465
http://statistics.data.gov.uk/id/local-authority/00BU,Trafford,11/01/2019,1901291835,Redacted,26.33,OLD HALL ROAD,1009,,OLD HALL ROAD,CLIENTS PERS NEEDS,220412,,,,,130465
http://statistics.data.gov.uk/id/local-authority/00BU,Trafford,11/01/2019,1901291835,Redacted,19.20,OLD HALL ROAD,1009,,OLD HALL ROAD,CLIENTS TRAV EXP,220416,,,,,130465
http://statistics.data.gov.uk/id/local-authority/00BU,Trafford,11/01/2019,1901291835,Redacted,80.83,OLD HALL ROAD,1009,,OLD HALL ROAD,T.V. LIC AND RENTAL,220424,,,,,130465
http://statistics.data.gov.uk/id/local-authority/00BU,Trafford,11/01/2019,1901291835,Redacted,62.60,OLD HALL ROAD,1009,,OLD HALL ROAD,CLIENTS POCK MON GIF,240310,,,,,130465
http://statistics.data.gov.uk/id/local-authority/00BU,Trafford,30/01/2019,1901294270,Redacted,24.22,OLD HALL ROAD,1009,,OLD HALL ROAD,CLEANING MATERIALS,201130,,,,,130465
http://statistics.data.gov.uk/id/local-authority/00BU,Trafford,30/01/2019,1901294270,Redacted,388.98,OLD HALL ROAD,1009,,OLD HALL ROAD,EQUIPMENT - PURCHASE,220048,,,,,130465
http://statistics.data.gov.uk/id/local-authority/00BU,Trafford,30/01/2019,1901294270,Redacted,373.88,OLD HALL ROAD,1009,,OLD HALL ROAD,EQUIPMENT - PURCHASE,220048,,,,,130465
http://statistics.data.gov.uk/id/local-authority/00BU,Trafford,30/01/2019,1901294270,Redacted,5.29,OLD HALL ROAD,1009,,OLD HALL ROAD,EQUIPMENT - REPAIRS,220050,,,,,130465
http://statistics.data.gov.uk/id/local-authority/00BU,Trafford,30/01/2019,1901294270,Redacted,488.48,OLD HALL ROAD,1009,,OLD HALL ROAD,CATERING PROVISIONS,220100,,,,,130465
http://statistics.data.gov.uk/id/local-authority/00BU,Trafford,30/01/2019,1901294270,Redacted,103.07,OLD HALL ROAD,1009,,OLD HALL ROAD,CATERING PROVISIONS,220100,,,,,130465
http://statistics.data.gov.uk/id/local-authority/00BU,Trafford,30/01/2019,1901294270,Redacted,29.95,OLD HALL ROAD,1009,,OLD HALL ROAD,UNIFORMS,220220,,,,,130465
http://statistics.data.gov.uk/id/local-authority/00BU,Trafford,30/01/2019,1901294270,Redacted,62.50,OLD HALL ROAD,1009,,OLD HALL ROAD,UNIFORMS,220220,,,,,130465
http://statistics.data.gov.uk/id/local-authority/00BU,Trafford,30/01/2019,1901294270,Redacted,7.00,OLD HALL ROAD,1009,,OLD HALL ROAD,CLIENTS HOLS & OUTIN,220402,,,,,130465
http://statistics.data.gov.uk/id/local-authority/00BU,Trafford,30/01/2019,1901294270,Redacted,43.58,OLD HALL ROAD,1009,,OLD HALL ROAD,CLIENTS PERS NEEDS,220412,,,,,130465
http://statistics.data.gov.uk/id/local-authority/00BU,Trafford,30/01/2019,1901294270,Redacted,25.17,OLD HALL ROAD,1009,,OLD HALL ROAD,CLIENTS PERS NEEDS,220412,,,,,130465
http://statistics.data.gov.uk/id/local-authority/00BU,Trafford,30/01/2019,1901294270,Redacted,26.00,OLD HALL ROAD,1009,,OLD HALL ROAD,CLIENTS TRAV EXP,220416,,,,,130465
http://statistics.data.gov.uk/id/local-authority/00BU,Trafford,30/01/2019,1901294270,Redacted,87.84,OLD HALL ROAD,1009,,OLD HALL ROAD,CLIENTS POCK MON GIF,240310,,,,,130465
http://statistics.data.gov.uk/id/local-authority/00BU,Trafford,16/01/2019,1901293032,111018080119,13.92,CASH,1019,,Early Help Hub Parti,MATERIALS PURCHASE,220058,,,,,149000
http://statistics.data.gov.uk/id/local-authority/00BU,Trafford,16/01/2019,1901293032,111018080119,76.32,CASH,1019,,Early Help Hub Parti,CATERING PROVISIONS,220100,,,,,149000
http://statistics.data.gov.uk/id/local-authority/00BU,Trafford,16/01/2019,1901293032,111018080119,15.86,CASH,1019,,Early Help Hub Parti,MATERIALS PURCHASE,220058,,,,,149000
http://statistics.data.gov.uk/id/local-authority/00BU,Trafford,11/01/2019,1901291836,Redacted,5.48,Registrar Office Imprest,1026,,REGISTRATION OF BIRT,HOSPITALITY,220625,,,,,603000
http://statistics.data.gov.uk/id/local-authority/00BU,Trafford,11/01/2019,1901291836,Redacted,0.89,Registrar Office Imprest,1026,,REGISTRATION OF BIRT,HOSPITALITY,220625,,,,,603000
http://statistics.data.gov.uk/id/local-authority/00BU,Trafford,11/01/2019,1901291836,Redacted,45.25,Registrar Office Imprest,1026,,REGISTRATION OF BIRT,CATERING PROVISIONS,220100,,,,,603000
http://statistics.data.gov.uk/id/local-authority/00BU,Trafford,23/01/2019,1901293426,19041814121,1.82,CASH,1029,,Early Years Team,CLEANING MATERIALS,201130,,,,,141000
http://statistics.data.gov.uk/id/local-authority/00BU,Trafford,23/01/2019,1901293426,19041814121,45.30,CASH,1029,,Early Years Team,EDUCATION MATERIALS,220010,,,,,141000
http://statistics.data.gov.uk/id/local-authority/00BU,Trafford,23/01/2019,1901293426,19041814121,9.99,CASH,1029,,Early Years Service,EDUCATION MATERIALS,220010,,,,,141300
http://statistics.data.gov.uk/id/local-authority/00BU,Trafford,23/01/2019,1901293426,19041814121,10.06,CASH,1029,,Early Years Team,MATERIALS PURCHASE,220058,,,,,141000
http://statistics.data.gov.uk/id/local-authority/00BU,Trafford,23/01/2019,1901293426,19041814121,2.00,CASH,1029,,Early Years Team,MATERIALS PURCHASE,220058,,,,,141000
http://statistics.data.gov.uk/id/local-authority/00BU,Trafford,23/01/2019,1901293426,19041814121,41.72,CASH,1029,,Early Years Service,MATERIALS PURCHASE,220058,,,,,141300
http://statistics.data.gov.uk/id/local-authority/00BU,Trafford,23/01/2019,1901293426,19041814121,4.63,CASH,1029,,Early Years Service,CATERING PROVISIONS,220100,,,,,141300
http://statistics.data.gov.uk/id/local-authority/00BU,Trafford,23/01/2019,1901293426,19041814121,8.99,CASH,1029,,Early Years Team,CATERING PROVISIONS,220100,,,,,141000
http://statistics.data.gov.uk/id/local-authority/00BU,Trafford,23/01/2019,1901293426,19041814121,10.21,CASH,1029,,Early Years Service,STATIONERY,220310,,,,,141300
http://statistics.data.gov.uk/id/local-authority/00BU,Trafford,23/01/2019,1901293426,19041814121,6.63,CASH,1029,,Early Years Team,STATIONERY,220310,,,,,141000
http://statistics.data.gov.uk/id/local-authority/00BU,Trafford,23/01/2019,1901293427,Redacted,15.94,ALTRINCHAM TIMPERLEY & HALE LIBRAR,1040,,Acc Traff Timperley,HOSPITALITY,220625,,,,,532035
http://statistics.data.gov.uk/id/local-authority/00BU,Trafford,23/01/2019,1901293427,Redacted,27.53,ALTRINCHAM TIMPERLEY & HALE LIBRAR,1040,,Acc Traff Timperley,MATERIALS PURCHASE,220058,,,,,532035
http://statistics.data.gov.uk/id/local-authority/00BU,Trafford,23/01/2019,1901293427,Redacted,27.71,ALTRINCHAM TIMPERLEY & HALE LIBRAR,1040,,Acc Traff Timperley,SECURITY MEASURES,201015,,,,,532035
http://statistics.data.gov.uk/id/local-authority/00BU,Trafford,23/01/2019,1901293534,Redacted,3.49,ALTRINCHAM TIMPERLEY & HALE LIBRAR,1040,,Acc Traff Timperley,HOSPITALITY,220625,,,,,532035
http://statistics.data.gov.uk/id/local-authority/00BU,Trafford,23/01/2019,1901293534,Redacted,32.75,ALTRINCHAM TIMPERLEY & HALE LIBRAR,1040,,Acc Traff Altrincham,OFF EQ PURCHASE,220032,,,,,532025
http://statistics.data.gov.uk/id/local-authority/00BU,Trafford,23/01/2019,1901293534,Redacted,4.90,ALTRINCHAM TIMPERLEY & HALE LIBRAR,1040,,Acc Traff Altrincham,EQUIPMENT - PURCHASE,220048,,,,,532025
http://statistics.data.gov.uk/id/local-authority/00BU,Trafford,30/01/2019,1901294202,Redacted,30.25,ALTRINCHAM TIMPERLEY & HALE LIBRAR,1040,,Acc Traff Altrincham,HOSPITALITY,220625,,,,,532025
http://statistics.data.gov.uk/id/local-authority/00BU,Trafford,30/01/2019,1901294202,Redacted,27.07,ALTRINCHAM TIMPERLEY & HALE LIBRAR,1040,,Acc Traff Altrincham,MATERIALS PURCHASE,220058,,,,,532025
http://statistics.data.gov.uk/id/local-authority/00BU,Trafford,30/01/2019,1901294202,Redacted,8.33,ALTRINCHAM TIMPERLEY & HALE LIBRAR,1040,,Acc Traff Altrincham,SECURITY MEASURES,201015,,,,,532025
http://statistics.data.gov.uk/id/local-authority/00BU,Trafford,30/01/2019,1901294202,Redacted,7.50,ALTRINCHAM TIMPERLEY & HALE LIBRAR,1040,,Acc Traff Altrincham,SECURITY MEASURES,201015,,,,,532025
http://statistics.data.gov.uk/id/local-authority/00BU,Trafford,30/01/2019,1901294202,Redacted,3.33,ALTRINCHAM TIMPERLEY & HALE LIBRAR,1040,,Acc Traff Altrincham,STATIONERY,220310,,,,,532025
http://statistics.data.gov.uk/id/local-authority/00BU,Trafford,30/01/2019,1901294202,Redacted,5.83,ALTRINCHAM TIMPERLEY & HALE LIBRAR,1040,,Acc Traff Timperley,EQUIPMENT - PURCHASE,220048,,,,,532035
http://statistics.data.gov.uk/id/local-authority/00BU,Trafford,30/01/2019,1901294202,Redacted,4.13,ALTRINCHAM TIMPERLEY & HALE LIBRAR,1040,,Acc Traff Altrincham,EQUIPMENT - PURCHASE,220048,,,,,532025
http://statistics.data.gov.uk/id/local-authority/00BU,Trafford,28/01/2019,1901293743,141224012019,15.78,CASH,1058,,Early Help Hub Stret,EDUCATION MATERIALS,220010,,,,,149001
http://statistics.data.gov.uk/id/local-authority/00BU,Trafford,28/01/2019,1901293743,141224012019,12.46,CASH,1058,,Early Help Hub Stret,EDUCATION MATERIALS,220010,,,,,149001
http://statistics.data.gov.uk/id/local-authority/00BU,Trafford,28/01/2019,1901293743,141224012019,32.37,CASH,1058,,Early Help Hub Stret,MATERIALS PURCHASE,220058,,,,,149001
http://statistics.data.gov.uk/id/local-authority/00BU,Trafford,28/01/2019,1901293743,141224012019,35.99,CASH,1058,,Early Help Hub Stret,CATERING PROVISIONS,220100,,,,,149001
http://statistics.data.gov.uk/id/local-authority/00BU,Trafford,28/01/2019,1901293743,141224012019,4.14,CASH,1058,,Early Help Hub Stret,CATERING PROVISIONS,220100,,,,,149001
http://statistics.data.gov.uk/id/local-authority/00BU,Trafford,28/01/2019,1901293743,141224012019,20.88,CASH,1058,,Early Help Hub Stret,POSTAGES,220515,,,,,149001
http://statistics.data.gov.uk/id/local-authority/00BU,Trafford,16/01/2019,1901293031,Redacted,64.40,CASH,1092,,AT SALE,MATERIALS PURCHASE,220058,,,,,532010
http://statistics.data.gov.uk/id/local-authority/00BU,Trafford,16/01/2019,1901293031,Redacted,10.14,CASH,1092,,AT LOCAL STUDIES,BOOKS PURCHASE,220012,,,,,532021
http://statistics.data.gov.uk/id/local-authority/00BU,Trafford,16/01/2019,1901293031,Redacted,19.05,CASH,1092,,AT LOCAL STUDIES,HOSPITALITY,220625,,,,,532021
http://statistics.data.gov.uk/id/local-authority/00BU,Trafford,16/01/2019,1901293031,Redacted,11.25,CASH,1092,,AT SALE,HOSPITALITY,220625,,,,,532010
http://statistics.data.gov.uk/id/local-authority/00BU,Trafford,30/01/2019,1901294196,Redacted,10.00,Access & Inclusion,1151,,PUPIL PREMIUM PLUS,TRAVELLING EXPENSES,210400,,,,,130713
http://statistics.data.gov.uk/id/local-authority/00BU,Trafford,30/01/2019,1901294196,Redacted,20.00,Access & Inclusion,1151,,PUPIL PREMIUM PLUS,TRAVELLING EXPENSES,210400,,,,,130713
http://statistics.data.gov.uk/id/local-authority/00BU,Trafford,30/01/2019,1901294196,Redacted,22.60,Access & Inclusion,1151,,Governor Support Del,TRAVELLING EXPENSES,210400,,,,,100300
http://statistics.data.gov.uk/id/local-authority/00BU,Trafford,30/01/2019,1901294196,Redacted,58.44,Access & Inclusion,1151,,Educ Psychology S,TRAVELLING EXPENSES,210400,,,,,110003
http://statistics.data.gov.uk/id/local-authority/00BU,Trafford,30/01/2019,1901294196,Redacted,9.60,Access & Inclusion,1151,,Ed of Vulnerable Chi,TRAVELLING EXPENSES,210400,,,,,120612
http://statistics.data.gov.uk/id/local-authority/00BU,Trafford,30/01/2019,1901294196,Redacted,6.00,Access & Inclusion,1151,,ADVISORY INSP ADMIN,TRAVELLING EXPENSES,210400,,,,,120006
http://statistics.data.gov.uk/id/local-authority/00BU,Trafford,30/01/2019,1901294196,Redacted,20.00,Access & Inclusion,1151,,SEN CENTRAL TEAM,CATERING Reimbursmen,220195,,,,,110332
http://statistics.data.gov.uk/id/local-authority/00BU,Trafford,30/01/2019,1901294196,Redacted,4.08,Access & Inclusion,1151,,PUPIL PREMIUM PLUS,CATERING Reimbursmen,220195,,,,,130713
http://statistics.data.gov.uk/id/local-authority/00BU,Trafford,30/01/2019,1901294196,Redacted,26.00,Access & Inclusion,1151,,PUPIL PREMIUM PLUS,STATIONERY,220310,,,,,130713
http://statistics.data.gov.uk/id/local-authority/00BU,Trafford,30/01/2019,1901294196,Redacted,12.70,Access & Inclusion,1151,,Educ Psychology S,STATIONERY,220310,,,,,110003
http://statistics.data.gov.uk/id/local-authority/00BU,Trafford,30/01/2019,1901294196,Redacted,13.79,Access & Inclusion,1151,,Educ Psychology S,STATIONERY,220310,,,,,110003
http://statistics.data.gov.uk/id/local-authority/00BU,Trafford,30/01/2019,1901294196,Redacted,26.11,Access & Inclusion,1151,,SENSORY IMPAIRMEN,STATIONERY,220310,,,,,110315
http://statistics.data.gov.uk/id/local-authority/00BU,Trafford,30/01/2019,1901294196,Redacted,14.54,Access & Inclusion,1151,,ADVISORY INSP ADMIN,STATIONERY,220310,,,,,120006
http://statistics.data.gov.uk/id/local-authority/00BU,Trafford,30/01/2019,1901294196,Redacted,22.91,Access & Inclusion,1151,,ADVISORY INSP ADMIN,STATIONERY,220310,,,,,120006
http://statistics.data.gov.uk/id/local-authority/00BU,Trafford,30/01/2019,1901294196,Redacted,27.59,Access & Inclusion,1151,,SEN CENTRAL TEAM,STATIONERY,220310,,,,,110332
http://statistics.data.gov.uk/id/local-authority/00BU,Trafford,30/01/2019,1901294196,Redacted,37.74,Access & Inclusion,1151,,PUPIL PREMIUM PLUS,CLIENTS PERS NEEDS,220412,,,,,130713
http://statistics.data.gov.uk/id/local-authority/00BU,Trafford,30/01/2019,1901294196,Redacted,15.00,Access & Inclusion,1151,,PUPIL PREMIUM PLUS,CLIENTS PERS NEEDS,220412,,,,,130713
http://statistics.data.gov.uk/id/local-authority/00BU,Trafford,30/01/2019,1901294196,Redacted,7.00,Access & Inclusion,1151,,SENSORY IMPAIRMEN,EDUCATION MATERIALS,220010,,,,,110315
http://statistics.data.gov.uk/id/local-authority/00BU,Trafford,30/01/2019,1901294196,Redacted,3.00,Access & Inclusion,1151,,SEN CENTRAL TEAM,EDUCATION MATERIALS,220010,,,,,110332
http://statistics.data.gov.uk/id/local-authority/00BU,Trafford,30/01/2019,1901294196,Redacted,58.95,Access & Inclusion,1151,,PUPIL PREMIUM PLUS,EDUCATION MATERIALS,220010,,,,,130713
http://statistics.data.gov.uk/id/local-authority/00BU,Trafford,30/01/2019,1901294196,Redacted,47.35,Access & Inclusion,1151,,SENSORY IMPAIRMEN,EDUC.APP PURCH CURR,220047,,,,,110315
http://statistics.data.gov.uk/id/local-authority/00BU,Trafford,30/01/2019,1901294196,Redacted,13.85,Access & Inclusion,1151,,SENSORY IMPAIRMEN,EDUC.APP PURCH CURR,220047,,,,,110315
http://statistics.data.gov.uk/id/local-authority/00BU,Trafford,30/01/2019,1901294196,Redacted,5.00,Access & Inclusion,1151,,ADVISORY INSP ADMIN,OTHER MISC EXPENSES,220850,,,,,120006
http://statistics.data.gov.uk/id/local-authority/00BU,Trafford,14/01/2019,1901291975,031218221218,256.34,CASH,1195,,Creative Ind Traffor,TRAVELLING EXPENSES,210400,,,,,526022
http://statistics.data.gov.uk/id/local-authority/00BU,Trafford,14/01/2019,1901291975,031218221218,1.67,CASH,1195,,Creative Ind Traffor,EVENT EQUIP PURCHASE,220045,,,,,526022
http://statistics.data.gov.uk/id/local-authority/00BU,Trafford,14/01/2019,1901291975,031218221218,70.48,CASH,1195,,Creative Ind Traffor,EVENT CATERING PURCH,220162,,,,,526022
http://statistics.data.gov.uk/id/local-authority/00BU,Trafford,14/01/2019,1901291975,031218221218,59.94,CASH,1195,,Creative Ind Traffor,PROFESSIONAL FEES,220456,,,,,526022
http://statistics.data.gov.uk/id/local-authority/00BU,Trafford,14/01/2019,1901291976,161118241218,38.27,CASH,1195,,Arts- Sale Waterside,BAR STOCK PURCHASES,220161,,,,,526100
http://statistics.data.gov.uk/id/local-authority/00BU,Trafford,14/01/2019,1901291976,161118241218,25.57,CASH,1195,,Arts- Sale Waterside,BAR STOCK PURCHASES,220161,,,,,526100
http://statistics.data.gov.uk/id/local-authority/00BU,Trafford,14/01/2019,1901291976,161118241218,5.42,CASH,1195,,Arts- Sale Waterside,TRAVELLING EXPENSES,210400,,,,,526100
http://statistics.data.gov.uk/id/local-authority/00BU,Trafford,14/01/2019,1901291976,161118241218,14.85,CASH,1195,,Arts- Sale Waterside,GENERAL ADVERTISING,220804,,,,,526100
http://statistics.data.gov.uk/id/local-authority/00BU,Trafford,14/01/2019,1901291976,161118241218,10.00,CASH,1195,,Arts- Sale Waterside,EQUIPMENT - REPAIRS,220050,,,,,526100
http://statistics.data.gov.uk/id/local-authority/00BU,Trafford,14/01/2019,1901291976,161118241218,6.67,CASH,1195,,Arts- Sale Waterside,MATERIALS PURCHASE,220058,,,,,526100
http://statistics.data.gov.uk/id/local-authority/00BU,Trafford,17/01/2019,1901293072,120918110119,45.59,CASH,1195,,Arts- Sale Waterside,TRAVELLING EXPENSES,210400,,,,,526100
http://statistics.data.gov.uk/id/local-authority/00BU,Trafford,17/01/2019,1901293072,120918110119,6.67,CASH,1195,,Arts- Sale Waterside,EVENT EQUIP PURCHASE,220045,,,,,526100
http://statistics.data.gov.uk/id/local-authority/00BU,Trafford,17/01/2019,1901293072,120918110119,63.90,CASH,1195,,Arts- Sale Waterside,TRAVELLING EXPENSES,210400,,,,,526100
http://statistics.data.gov.uk/id/local-authority/00BU,Trafford,23/01/2019,1901293433,16472,552.40,SOCIAL SERVICES CLIENT FINANCE,1210,,LEARN DIS 65-74 LT,MAINT CONT EXT RES,330232,,,,,157013
http://statistics.data.gov.uk/id/local-authority/00BU,Trafford,23/01/2019,1901293435,10244670,5.00,SOCIAL SERVICES CLIENT FINANCE,1210,,MENT HLT 18-64 LT,MAINT CONT EXT NURS,330234,,,,,157004
http://statistics.data.gov.uk/id/local-authority/00BU,Trafford,11/01/2019,1901291864,09011,476.50,AA IMPREST,1280,,AA Project,ASSISTANCE TO PUPILS,240300,,,,,144163
http://statistics.data.gov.uk/id/local-authority/00BU,Trafford,11/01/2019,1901291864,09011,77.34,AA IMPREST,1280,,AA Project,ASSISTANCE TO PUPILS,240300,,,,,144163
http://statistics.data.gov.uk/id/local-authority/00BU,Trafford,16/01/2019,1901292754,150119,258.00,AA IMPREST,1280,,Early Help Hub 11-18,ASSISTANCE TO PUPILS,240300,,,,,149005
http://statistics.data.gov.uk/id/local-authority/00BU,Trafford,16/01/2019,1901292754,150119,77.89,AA IMPREST,1280,,Early Help Hub 11-18,ASSISTANCE TO PUPILS,240300,,,,,149005
http://statistics.data.gov.uk/id/local-authority/00BU,Trafford,28/01/2019,1901293641,22011,116.41,AA IMPREST,1280,,AA Project,ASSISTANCE TO PUPILS,240300,,,,,144163
http://statistics.data.gov.uk/id/local-authority/00BU,Trafford,28/01/2019,1901293641,22011,210.92,AA IMPREST,1280,,AA Project,ASSISTANCE TO PUPILS,240300,,,,,144163
http://statistics.data.gov.uk/id/local-authority/00BU,Trafford,30/01/2019,1901294545,29011,150.73,AA IMPREST,1280,,AA Project,ASSISTANCE TO PUPILS,240300,,,,,144163
http://statistics.data.gov.uk/id/local-authority/00BU,Trafford,30/01/2019,1901294545,29011,236.62,AA IMPREST,1280,,AA Project,ASSISTANCE TO PUPILS,240300,,,,,144163
http://statistics.data.gov.uk/id/local-authority/00BU,Trafford,02/01/2019,1901289941,Redacted,42.60,The Contact Centre,1395,,NORTH : S17 & CLIENT,FAM CONT PERS NEEDS,220828,,,,IMPREST,130660
http://statistics.data.gov.uk/id/local-authority/00BU,Trafford,02/01/2019,1901289941,Redacted,28.50,The Contact Centre,1395,,WEST : S17 & CLIENT,FAM CONT PERS NEEDS,220828,,,,IMPREST,130670
http://statistics.data.gov.uk/id/local-authority/00BU,Trafford,02/01/2019,1901289941,Redacted,22.20,The Contact Centre,1395,,CENTRAL : S17&CLIENT,FAM CONT PERS NEEDS,220828,,,,IMPREST,130680
http://statistics.data.gov.uk/id/local-authority/00BU,Trafford,02/01/2019,1901289941,Redacted,212.78,The Contact Centre,1395,,PERM TEAM: CLIENTS,FAM CONT PERS NEEDS,220828,,,,IMPREST,130712
http://statistics.data.gov.uk/id/local-authority/00BU,Trafford,02/01/2019,1901289941,Redacted,85.80,The Contact Centre,1395,,NEW SOUTH:S17&CLIENT,FAM CONT PERS NEEDS,220828,,,,IMPREST,130682
http://statistics.data.gov.uk/id/local-authority/00BU,Trafford,02/01/2019,1901289941,Redacted,13.10,The Contact Centre,1395,,CAN : S17 & CLIENTS,FAM CONT PERS NEEDS,220828,,,,IMPREST,130650
http://statistics.data.gov.uk/id/local-authority/00BU,Trafford,02/01/2019,1901289941,Redacted,6.00,The Contact Centre,1395,,CONTACT CENTRE,EQUIPMENT - PURCHASE,220048,,,,IMPREST,130212
http://statistics.data.gov.uk/id/local-authority/00BU,Trafford,02/01/2019,1901289942,Redacted,46.00,The Contact Centre,1395,,NORTH : S17 & CLIENT,FAM CONT PERS NEEDS,220828,,,,IMPREST,130660
http://statistics.data.gov.uk/id/local-authority/00BU,Trafford,02/01/2019,1901289942,Redacted,33.50,The Contact Centre,1395,,WEST : S17 & CLIENT,FAM CONT PERS NEEDS,220828,,,,IMPREST,130670
http://statistics.data.gov.uk/id/local-authority/00BU,Trafford,02/01/2019,1901289942,Redacted,27.70,The Contact Centre,1395,,CENTRAL : S17&CLIENT,FAM CONT PERS NEEDS,220828,,,,IMPREST,130680
http://statistics.data.gov.uk/id/local-authority/00BU,Trafford,02/01/2019,1901289942,Redacted,79.23,The Contact Centre,1395,,PERM TEAM: CLIENTS,FAM CONT PERS NEEDS,220828,,,,IMPREST,130712
http://statistics.data.gov.uk/id/local-authority/00BU,Trafford,02/01/2019,1901289942,Redacted,88.30,The Contact Centre,1395,,NEW SOUTH:S17&CLIENT,FAM CONT PERS NEEDS,220828,,,,IMPREST,130682
http://statistics.data.gov.uk/id/local-authority/00BU,Trafford,16/01/2019,1901292296,Redacted,56.00,The Contact Centre,1395,,NORTH : S17 & CLIENT,FAM CONT PERS NEEDS,220828,,,,,130660
http://statistics.data.gov.uk/id/local-authority/00BU,Trafford,16/01/2019,1901292296,Redacted,20.60,The Contact Centre,1395,,WEST : S17 & CLIENT,FAM CONT PERS NEEDS,220828,,,,,130670
http://statistics.data.gov.uk/id/local-authority/00BU,Trafford,16/01/2019,1901292296,Redacted,23.40,The Contact Centre,1395,,CENTRAL : S17&CLIENT,FAM CONT PERS NEEDS,220828,,,,,130680
http://statistics.data.gov.uk/id/local-authority/00BU,Trafford,16/01/2019,1901292296,Redacted,135.30,The Contact Centre,1395,,PERM TEAM: CLIENTS,FAM CONT PERS NEEDS,220828,,,,,130712
http://statistics.data.gov.uk/id/local-authority/00BU,Trafford,16/01/2019,1901292296,Redacted,103.70,The Contact Centre,1395,,NEW SOUTH:S17&CLIENT,FAM CONT PERS NEEDS,220828,,,,,130682
http://statistics.data.gov.uk/id/local-authority/00BU,Trafford,16/01/2019,1901292296,Redacted,154.56,The Contact Centre,1395,,CONTACT CENTRE,EDUCATION MATERIALS,220010,,,,,130212
http://statistics.data.gov.uk/id/local-authority/00BU,Trafford,16/01/2019,1901292312,Redacted,34.87,The Contact Centre,1395,,NORTH : S17 & CLIENT,FAM CONT PERS NEEDS,220828,,,,,130660
http://statistics.data.gov.uk/id/local-authority/00BU,Trafford,16/01/2019,1901292312,Redacted,25.70,The Contact Centre,1395,,WEST : S17 & CLIENT,FAM CONT PERS NEEDS,220828,,,,,130670
http://statistics.data.gov.uk/id/local-authority/00BU,Trafford,16/01/2019,1901292312,Redacted,31.60,The Contact Centre,1395,,CENTRAL : S17&CLIENT,FAM CONT PERS NEEDS,220828,,,,,130680
http://statistics.data.gov.uk/id/local-authority/00BU,Trafford,16/01/2019,1901292312,Redacted,26.58,The Contact Centre,1395,,PERM TEAM: CLIENTS,FAM CONT PERS NEEDS,220828,,,,,130712
http://statistics.data.gov.uk/id/local-authority/00BU,Trafford,16/01/2019,1901292312,Redacted,57.90,The Contact Centre,1395,,NEW SOUTH:S17&CLIENT,FAM CONT PERS NEEDS,220828,,,,,130682
http://statistics.data.gov.uk/id/local-authority/00BU,Trafford,16/01/2019,1901292312,Redacted,10.00,The Contact Centre,1395,,CAN : S17 & CLIENTS,FAM CONT PERS NEEDS,220828,,,,,130650
http://statistics.data.gov.uk/id/local-authority/00BU,Trafford,16/01/2019,1901292312,Redacted,43.20,The Contact Centre,1395,,CONTACT CENTRE,EDUCATION MATERIALS,220010,,,,,130212
http://statistics.data.gov.uk/id/local-authority/00BU,Trafford,23/01/2019,1901293425,Redacted,47.60,The Contact Centre,1395,,NORTH : S17 & CLIENT,FAM CONT PERS NEEDS,220828,,,,,130660
http://statistics.data.gov.uk/id/local-authority/00BU,Trafford,23/01/2019,1901293425,Redacted,19.20,The Contact Centre,1395,,WEST : S17 & CLIENT,FAM CONT PERS NEEDS,220828,,,,,130670
http://statistics.data.gov.uk/id/local-authority/00BU,Trafford,23/01/2019,1901293425,Redacted,32.40,The Contact Centre,1395,,CENTRAL : S17&CLIENT,FAM CONT PERS NEEDS,220828,,,,,130680
http://statistics.data.gov.uk/id/local-authority/00BU,Trafford,23/01/2019,1901293425,Redacted,119.48,The Contact Centre,1395,,PERM TEAM: CLIENTS,FAM CONT PERS NEEDS,220828,,,,,130712
http://statistics.data.gov.uk/id/local-authority/00BU,Trafford,23/01/2019,1901293425,Redacted,109.60,The Contact Centre,1395,,NEW SOUTH:S17&CLIENT,FAM CONT PERS NEEDS,220828,,,,,130682
http://statistics.data.gov.uk/id/local-authority/00BU,Trafford,23/01/2019,1901293425,Redacted,19.01,The Contact Centre,1395,,CONTACT CENTRE,EQUIPMENT - PURCHASE,220048,,,,,130212
http://statistics.data.gov.uk/id/local-authority/00BU,Trafford,30/01/2019,1901294271,Redacted,29.20,The Contact Centre,1395,,NORTH : S17 & CLIENT,FAM CONT PERS NEEDS,220828,,,,,130660
http://statistics.data.gov.uk/id/local-authority/00BU,Trafford,30/01/2019,1901294271,Redacted,25.20,The Contact Centre,1395,,CENTRAL : S17&CLIENT,FAM CONT PERS NEEDS,220828,,,,,130680
http://statistics.data.gov.uk/id/local-authority/00BU,Trafford,30/01/2019,1901294271,Redacted,85.01,The Contact Centre,1395,,PERM TEAM: CLIENTS,FAM CONT PERS NEEDS,220828,,,,,130712
http://statistics.data.gov.uk/id/local-authority/00BU,Trafford,30/01/2019,1901294271,Redacted,85.20,The Contact Centre,1395,,NEW SOUTH:S17&CLIENT,FAM CONT PERS NEEDS,220828,,,,,130682
http://statistics.data.gov.uk/id/local-authority/00BU,Trafford,30/01/2019,1901294271,Redacted,4.87,The Contact Centre,1395,,CAN : S17 & CLIENTS,FAM CONT PERS NEEDS,220828,,,,,130650
http://statistics.data.gov.uk/id/local-authority/00BU,Trafford,02/01/2019,1901289939,111218,"1,183.69",CYPS NORTH AREA FAMILY SUPPORT TEAM,1405,,NORTH : S17 & CLIENT,SECT 17 PAY ITEM 6,220760,,,,IMPREST,130660
http://statistics.data.gov.uk/id/local-authority/00BU,Trafford,02/01/2019,1901289939,111218,19.99,CYPS NORTH AREA FAMILY SUPPORT TEAM,1405,,NORTH : S17 & CLIENT,CLIENTS PERS NEEDS,220412,,,,IMPREST,130660
http://statistics.data.gov.uk/id/local-authority/00BU,Trafford,02/01/2019,1901289939,111218,29.10,CYPS NORTH AREA FAMILY SUPPORT TEAM,1405,,NORTH : S17 & CLIENT,FAM CONT PERS NEEDS,220828,,,,IMPREST,130660
http://statistics.data.gov.uk/id/local-authority/00BU,Trafford,02/01/2019,1901289939,111218,272.00,CYPS NORTH AREA FAMILY SUPPORT TEAM,1405,,MARAT SECTION 17,SECT 17 PAY ITEM 6,220760,,,,IMPREST,130705
http://statistics.data.gov.uk/id/local-authority/00BU,Trafford,16/01/2019,1901292313,Redacted,479.60,CYPS NORTH AREA FAMILY SUPPORT TEAM,1405,,NORTH : S17 & CLIENT,SECT 17 PAY ITEM 6,220760,,,,,130660
http://statistics.data.gov.uk/id/local-authority/00BU,Trafford,16/01/2019,1901292313,Redacted,141.99,CYPS NORTH AREA FAMILY SUPPORT TEAM,1405,,NORTH : S17 & CLIENT,CLIENTS PERS NEEDS,220412,,,,,130660
http://statistics.data.gov.uk/id/local-authority/00BU,Trafford,16/01/2019,1901292313,Redacted,21.90,CYPS NORTH AREA FAMILY SUPPORT TEAM,1405,,NORTH : S17 & CLIENT,FAM CONT PERS NEEDS,220828,,,,,130660
http://statistics.data.gov.uk/id/local-authority/00BU,Trafford,16/01/2019,1901292313,Redacted,316.00,CYPS NORTH AREA FAMILY SUPPORT TEAM,1405,,MARAT SECTION 17,SECT 17 PAY ITEM 6,220760,,,,,130705
http://statistics.data.gov.uk/id/local-authority/00BU,Trafford,16/01/2019,1901292313,Redacted,140.00,CYPS NORTH AREA FAMILY SUPPORT TEAM,1405,,PLACEMENT FOSTERING,PROFESSIONAL FEES,220456,,,,,130435
http://statistics.data.gov.uk/id/local-authority/00BU,Trafford,16/01/2019,1901292313,Redacted,9.00,CYPS NORTH AREA FAMILY SUPPORT TEAM,1405,,MARAT SECTION 17,FAM CONT PERS NEEDS,220828,,,,,130705
http://statistics.data.gov.uk/id/local-authority/00BU,Trafford,16/01/2019,1901292313,Redacted,80.00,CYPS NORTH AREA FAMILY SUPPORT TEAM,1405,,PERM TEAM: CLIENTS,FAM CONT PERS NEEDS,220828,,,,,130712
http://statistics.data.gov.uk/id/local-authority/00BU,Trafford,02/01/2019,1901289940,101118101218,155.96,CYPS SOUTH AREA FAMILY SUPPORT TEAM,1406,,LEGAL/EXPERT COSTS,PROFESSIONAL FEES,220456,,,,IMPREST,130693
http://statistics.data.gov.uk/id/local-authority/00BU,Trafford,02/01/2019,1901289940,101118101218,160.00,CYPS SOUTH AREA FAMILY SUPPORT TEAM,1406,,CENTRAL : S17&CLIENT,SECT 17 PAY ITEM 6,220760,,,,IMPREST,130680
http://statistics.data.gov.uk/id/local-authority/00BU,Trafford,02/01/2019,1901289940,101118101218,239.00,CYPS SOUTH AREA FAMILY SUPPORT TEAM,1406,,NEW SOUTH:S17&CLIENT,SECT 17 PAY ITEM 6,220760,,,,IMPREST,130682
http://statistics.data.gov.uk/id/local-authority/00BU,Trafford,02/01/2019,1901289940,101118101218,172.00,CYPS SOUTH AREA FAMILY SUPPORT TEAM,1406,,CENTRAL : S17&CLIENT,CLIENTS PERS NEEDS,220412,,,,IMPREST,130680
http://statistics.data.gov.uk/id/local-authority/00BU,Trafford,02/01/2019,1901289940,101118101218,109.55,CYPS SOUTH AREA FAMILY SUPPORT TEAM,1406,,CENTRAL : S17&CLIENT,FAM CONT PERS NEEDS,220828,,,,IMPREST,130680
http://statistics.data.gov.uk/id/local-authority/00BU,Trafford,02/01/2019,1901289940,101118101218,101.40,CYPS SOUTH AREA FAMILY SUPPORT TEAM,1406,,NEW SOUTH:S17&CLIENT,FAM CONT PERS NEEDS,220828,,,,IMPREST,130682
http://statistics.data.gov.uk/id/local-authority/00BU,Trafford,07/01/2019,1901291043,24122018,42.30,CYPS SOUTH AREA FAMILY SUPPORT TEAM,1406,,CENTRAL : S17&CLIENT,SECT 17 PAY ITEM 6,220760,,,,,130680
http://statistics.data.gov.uk/id/local-authority/00BU,Trafford,07/01/2019,1901291043,24122018,138.29,CYPS SOUTH AREA FAMILY SUPPORT TEAM,1406,,CENTRAL : S17&CLIENT,FAM CONT PERS NEEDS,220828,,,,,130680
http://statistics.data.gov.uk/id/local-authority/00BU,Trafford,07/01/2019,1901291043,24122018,290.76,CYPS SOUTH AREA FAMILY SUPPORT TEAM,1406,,CENTRAL : S17&CLIENT,CLIENTS PERS NEEDS,220412,,,,,130680
http://statistics.data.gov.uk/id/local-authority/00BU,Trafford,07/01/2019,1901291043,24122018,296.87,CYPS SOUTH AREA FAMILY SUPPORT TEAM,1406,,NEW SOUTH:S17&CLIENT,SECT 17 PAY ITEM 6,220760,,,,,130682
http://statistics.data.gov.uk/id/local-authority/00BU,Trafford,07/01/2019,1901291043,24122018,128.70,CYPS SOUTH AREA FAMILY SUPPORT TEAM,1406,,NEW SOUTH:S17&CLIENT,FAM CONT PERS NEEDS,220828,,,,,130682
http://statistics.data.gov.uk/id/local-authority/00BU,Trafford,07/01/2019,1901291043,24122018,20.85,CYPS SOUTH AREA FAMILY SUPPORT TEAM,1406,,NEW SOUTH:S17&CLIENT,CLIENTS PERS NEEDS,220412,,,,,130682
http://statistics.data.gov.uk/id/local-authority/00BU,Trafford,07/01/2019,1901291043,24122018,475.00,CYPS SOUTH AREA FAMILY SUPPORT TEAM,1406,,Leisure Passes,CLIENTS PERS NEEDS,220412,,,,,130709
http://statistics.data.gov.uk/id/local-authority/00BU,Trafford,07/01/2019,1901291043,24122018,100.00,CYPS SOUTH AREA FAMILY SUPPORT TEAM,1406,,HOME FROM HOME,EQUIPMENT - PURCHASE,220048,,,,,130600
http://statistics.data.gov.uk/id/local-authority/00BU,Trafford,07/01/2019,1901291043,24122018,10.00,CYPS SOUTH AREA FAMILY SUPPORT TEAM,1406,,FAMILY SUP. CENTRAL,STATIONERY,220310,,,,,130210
http://statistics.data.gov.uk/id/local-authority/00BU,Trafford,28/01/2019,1901293704,2412201818,125.75,CYPS SOUTH AREA FAMILY SUPPORT TEAM,1406,,CENTRAL : S17&CLIENT,SECT 17 PAY ITEM 6,220760,,,,,130680
http://statistics.data.gov.uk/id/local-authority/00BU,Trafford,28/01/2019,1901293704,2412201818,90.00,CYPS SOUTH AREA FAMILY SUPPORT TEAM,1406,,CENTRAL : S17&CLIENT,CLIENTS PERS NEEDS,220412,,,,,130680
http://statistics.data.gov.uk/id/local-authority/00BU,Trafford,28/01/2019,1901293704,2412201818,113.30,CYPS SOUTH AREA FAMILY SUPPORT TEAM,1406,,CENTRAL : S17&CLIENT,FAM CONT PERS NEEDS,220828,,,,,130680
http://statistics.data.gov.uk/id/local-authority/00BU,Trafford,28/01/2019,1901293704,2412201818,20.00,CYPS SOUTH AREA FAMILY SUPPORT TEAM,1406,,NEW SOUTH:S17&CLIENT,SECT 17 PAY ITEM 6,220760,,,,,130682
http://statistics.data.gov.uk/id/local-authority/00BU,Trafford,28/01/2019,1901293704,2412201818,29.60,CYPS SOUTH AREA FAMILY SUPPORT TEAM,1406,,NEW SOUTH:S17&CLIENT,FAM CONT PERS NEEDS,220828,,,,,130682
http://statistics.data.gov.uk/id/local-authority/00BU,Trafford,28/01/2019,1901293704,2412201818,20.00,CYPS SOUTH AREA FAMILY SUPPORT TEAM,1406,,NEW SOUTH:S17&CLIENT,CLIENTS PERS NEEDS,220412,,,,,130682
http://statistics.data.gov.uk/id/local-authority/00BU,Trafford,28/01/2019,1901293704,2412201818,260.00,CYPS SOUTH AREA FAMILY SUPPORT TEAM,1406,,Leisure Passes,CLIENTS PERS NEEDS,220412,,,,,130709
http://statistics.data.gov.uk/id/local-authority/00BU,Trafford,17/01/2019,1901293033,Redacted,74.17,CASH,1415,,Sanyu Daycare,EQUIPMENT - PURCHASE,220048,,,,,130570
http://statistics.data.gov.uk/id/local-authority/00BU,Trafford,11/01/2019,1901291834,Redacted,109.15,Kingsway Park Chlidrens Home (NEW),1425,,KINGSWAY PARK,EQUIPMENT - PURCHASE,220048,,,,,130450
http://statistics.data.gov.uk/id/local-authority/00BU,Trafford,11/01/2019,1901291834,Redacted,520.29,Kingsway Park Chlidrens Home (NEW),1425,,KINGSWAY PARK,CATERING PROVISIONS,220100,,,,,130450
http://statistics.data.gov.uk/id/local-authority/00BU,Trafford,11/01/2019,1901291834,Redacted,172.32,Kingsway Park Chlidrens Home (NEW),1425,,KINGSWAY PARK,CATERING PROVISIONS,220100,,,,,130450
http://statistics.data.gov.uk/id/local-authority/00BU,Trafford,11/01/2019,1901291834,Redacted,2.91,Kingsway Park Chlidrens Home (NEW),1425,,KINGSWAY PARK,STATIONERY,220310,,,,,130450
http://statistics.data.gov.uk/id/local-authority/00BU,Trafford,11/01/2019,1901291834,Redacted,29.10,Kingsway Park Chlidrens Home (NEW),1425,,KINGSWAY PARK,CLIENTS HOLS & OUTIN,220402,,,,,130450
http://statistics.data.gov.uk/id/local-authority/00BU,Trafford,11/01/2019,1901291834,Redacted,121.34,Kingsway Park Chlidrens Home (NEW),1425,,KINGSWAY PARK,CLIENTS HOLS & OUTIN,220402,,,,,130450
http://statistics.data.gov.uk/id/local-authority/00BU,Trafford,11/01/2019,1901291834,Redacted,50.50,Kingsway Park Chlidrens Home (NEW),1425,,KINGSWAY PARK,CLIENTS PERS NEEDS,220412,,,,,130450
http://statistics.data.gov.uk/id/local-authority/00BU,Trafford,11/01/2019,1901291834,Redacted,49.16,Kingsway Park Chlidrens Home (NEW),1425,,KINGSWAY PARK,CLIENTS PERS NEEDS,220412,,,,,130450
http://statistics.data.gov.uk/id/local-authority/00BU,Trafford,11/01/2019,1901291834,Redacted,90.80,Kingsway Park Chlidrens Home (NEW),1425,,KINGSWAY PARK,CLIENTS TRAV EXP,220416,,,,,130450
http://statistics.data.gov.uk/id/local-authority/00BU,Trafford,11/01/2019,1901291834,Redacted,11.23,Kingsway Park Chlidrens Home (NEW),1425,,KINGSWAY PARK,BANK CHARGES,220818,,,,,130450
http://statistics.data.gov.uk/id/local-authority/00BU,Trafford,11/01/2019,1901291834,Redacted,87.88,Kingsway Park Chlidrens Home (NEW),1425,,KINGSWAY PARK,CLIENTS POCK MON GIF,240310,,,,,130450
http://statistics.data.gov.uk/id/local-authority/00BU,Trafford,11/01/2019,1901291834,Redacted,1.32,Kingsway Park Chlidrens Home (NEW),1425,,KINGSWAY PARK,CLIENTS POCK MON GIF,240310,,,,,130450
http://statistics.data.gov.uk/id/local-authority/00BU,Trafford,16/01/2019,1901293026,Redacted,28.00,Kingsway Park Chlidrens Home (NEW),1425,,KINGSWAY PARK,EQUIPMENT - PURCHASE,220048,,,,,130450
http://statistics.data.gov.uk/id/local-authority/00BU,Trafford,16/01/2019,1901293026,Redacted,138.27,Kingsway Park Chlidrens Home (NEW),1425,,KINGSWAY PARK,EQUIPMENT - PURCHASE,220048,,,,,130450
http://statistics.data.gov.uk/id/local-authority/00BU,Trafford,16/01/2019,1901293026,Redacted,0.98,Kingsway Park Chlidrens Home (NEW),1425,,KINGSWAY PARK,MEDICAL REQUISITES,220076,,,,,130450
http://statistics.data.gov.uk/id/local-authority/00BU,Trafford,16/01/2019,1901293026,Redacted,315.94,Kingsway Park Chlidrens Home (NEW),1425,,KINGSWAY PARK,CATERING PROVISIONS,220100,,,,,130450
http://statistics.data.gov.uk/id/local-authority/00BU,Trafford,16/01/2019,1901293026,Redacted,42.33,Kingsway Park Chlidrens Home (NEW),1425,,KINGSWAY PARK,CATERING PROVISIONS,220100,,,,,130450
http://statistics.data.gov.uk/id/local-authority/00BU,Trafford,16/01/2019,1901293026,Redacted,17.72,Kingsway Park Chlidrens Home (NEW),1425,,KINGSWAY PARK,STATIONERY,220310,,,,,130450
http://statistics.data.gov.uk/id/local-authority/00BU,Trafford,16/01/2019,1901293026,Redacted,59.38,Kingsway Park Chlidrens Home (NEW),1425,,KINGSWAY PARK,CLIENTS HOLS & OUTIN,220402,,,,,130450
http://statistics.data.gov.uk/id/local-authority/00BU,Trafford,16/01/2019,1901293026,Redacted,153.06,Kingsway Park Chlidrens Home (NEW),1425,,KINGSWAY PARK,CLIENTS HOLS & OUTIN,220402,,,,,130450
http://statistics.data.gov.uk/id/local-authority/00BU,Trafford,16/01/2019,1901293026,Redacted,4.16,Kingsway Park Chlidrens Home (NEW),1425,,KINGSWAY PARK,CLIENTS PERS NEEDS,220412,,,,,130450
http://statistics.data.gov.uk/id/local-authority/00BU,Trafford,16/01/2019,1901293026,Redacted,69.30,Kingsway Park Chlidrens Home (NEW),1425,,KINGSWAY PARK,CLIENTS TRAV EXP,220416,,,,,130450
http://statistics.data.gov.uk/id/local-authority/00BU,Trafford,16/01/2019,1901293026,Redacted,25.07,Kingsway Park Chlidrens Home (NEW),1425,,KINGSWAY PARK,CLIENTS POCK MON GIF,240310,,,,,130450
http://statistics.data.gov.uk/id/local-authority/00BU,Trafford,16/01/2019,1901293026,Redacted,75.00,Kingsway Park Chlidrens Home (NEW),1425,,KINGSWAY PARK,CLIENTS POCK MON GIF,240310,,,,,130450
http://statistics.data.gov.uk/id/local-authority/00BU,Trafford,21/01/2019,1901293174,131220191001,138.90,CASH,1435,,FLIXTON HOUSE EVENTS,CATRNG EQ PURCH HVY,220165,,,,,710128
http://statistics.data.gov.uk/id/local-authority/00BU,Trafford,21/01/2019,1901293175,Redacted,100.00,CASH,1435,,FLIXTON HOUSE EVENTS,CASH IMPREST,608010,,,,,710128
http://statistics.data.gov.uk/id/local-authority/00BU,Trafford,09/01/2019,1901291515,Redacted,22.50,Family Focus Imprest,1440,,Family Focus,CLIENTS PERS NEEDS,220412,,,,,130320
http://statistics.data.gov.uk/id/local-authority/00BU,Trafford,09/01/2019,1901291515,Redacted,19.84,Family Focus Imprest,1440,,Family Focus,CATERING PROVISIONS,220100,,,,,130320
http://statistics.data.gov.uk/id/local-authority/00BU,Trafford,09/01/2019,1901291515,Redacted,17.99,Family Focus Imprest,1440,,Family Focus,STATIONERY,220310,,,,,130320
http://statistics.data.gov.uk/id/local-authority/00BU,Trafford,09/01/2019,1901291515,Redacted,12.52,Family Focus Imprest,1440,,Family Focus,CLIENTS PERS NEEDS,220412,,,,,130320
http://statistics.data.gov.uk/id/local-authority/00BU,Trafford,09/01/2019,1901291515,Redacted,48.17,Family Focus Imprest,1440,,Family Focus,CLIENTS PERS NEEDS,220412,,,,,130320
http://statistics.data.gov.uk/id/local-authority/00BU,Trafford,09/01/2019,1901291515,Redacted,15.00,Family Focus Imprest,1440,,Family Focus,CLIENTS PERS NEEDS,220412,,,,,130320
http://statistics.data.gov.uk/id/local-authority/00BU,Trafford,09/01/2019,1901291515,Redacted,47.65,Family Focus Imprest,1440,,Family Focus,CLIENTS PERS NEEDS,220412,,,,,130320
http://statistics.data.gov.uk/id/local-authority/00BU,Trafford,09/01/2019,1901291515,Redacted,11.76,Family Focus Imprest,1440,,Family Focus,CLIENTS PERS NEEDS,220412,,,,,130320
http://statistics.data.gov.uk/id/local-authority/00BU,Trafford,09/01/2019,1901291515,Redacted,9.99,Family Focus Imprest,1440,,Family Focus,CLIENTS PERS NEEDS,220412,,,,,130320
http://statistics.data.gov.uk/id/local-authority/00BU,Trafford,09/01/2019,1901291515,Redacted,32.99,Family Focus Imprest,1440,,Family Focus,STATIONERY,220310,,,,,130320
http://statistics.data.gov.uk/id/local-authority/00BU,Trafford,09/01/2019,1901291515,Redacted,13.26,Family Focus Imprest,1440,,Family Focus,CLIENTS PERS NEEDS,220412,,,,,130320
http://statistics.data.gov.uk/id/local-authority/00BU,Trafford,09/01/2019,1901291515,Redacted,10.55,Family Focus Imprest,1440,,Family Focus,EXTERNAL DAY-TO-DAY,200100,,,,,130320
http://statistics.data.gov.uk/id/local-authority/00BU,Trafford,09/01/2019,1901291515,Redacted,25.23,Family Focus Imprest,1440,,Family Focus,CLIENTS PERS NEEDS,220412,,,,,130320
http://statistics.data.gov.uk/id/local-authority/00BU,Trafford,09/01/2019,1901291515,Redacted,51.16,Family Focus Imprest,1440,,Family Focus,STATIONERY,220310,,,,,130320
http://statistics.data.gov.uk/id/local-authority/00BU,Trafford,09/01/2019,1901291515,Redacted,8.50,Family Focus Imprest,1440,,Family Focus,CLIENTS PERS NEEDS,220412,,,,,130320
http://statistics.data.gov.uk/id/local-authority/00BU,Trafford,09/01/2019,1901291515,Redacted,9.07,Family Focus Imprest,1440,,Family Focus,CLIENTS PERS NEEDS,220412,,,,,130320
http://statistics.data.gov.uk/id/local-authority/00BU,Trafford,23/01/2019,1901293442,311020181301,38.87,CASH,1450,,YP:Music Centres,CLEANING MATERIALS,201130,,,,,120410
http://statistics.data.gov.uk/id/local-authority/00BU,Trafford,23/01/2019,1901293442,311020181301,7.50,CASH,1450,,YP:Music Centres,STATIONERY,220310,,,,,120410
http://statistics.data.gov.uk/id/local-authority/00BU,Trafford,23/01/2019,1901293442,311020181301,3.96,CASH,1450,,YP:Music Centres,STATIONERY,220310,,,,,120410
http://statistics.data.gov.uk/id/local-authority/00BU,Trafford,23/01/2019,1901293442,311020181301,20.00,CASH,1450,,YP:Music Centres,EXT GR MAINT CONT WK,200405,,,,,120410
http://statistics.data.gov.uk/id/local-authority/00BU,Trafford,23/01/2019,1901293442,311020181301,20.15,CASH,1450,,YP:Music Centres,REPAIRS TO FIXTURES,201010,,,,,120410
http://statistics.data.gov.uk/id/local-authority/00BU,Trafford,23/01/2019,1901293442,311020181301,56.77,CASH,1450,,YP:Music Centres,REPAIRS TO FIXTURES,201010,,,,,120410
http://statistics.data.gov.uk/id/local-authority/00BU,Trafford,23/01/2019,1901293442,311020181301,52.92,CASH,1450,,YP:Music Centres,HIRE OF ROOMS,200735,,,,,120410
http://statistics.data.gov.uk/id/local-authority/00BU,Trafford,02/01/2019,1901289903,23112018131,28.21,CASH,1455,,NETWORK - SUPP LIVIN,CHC - Learning Dis,230863,,,,,251317
http://statistics.data.gov.uk/id/local-authority/00BU,Trafford,02/01/2019,1901289903,23112018131,45.00,CASH,1455,,NETWORK - SUPP LIVIN,CHC - Learning Dis,230863,,,,,251317
http://statistics.data.gov.uk/id/local-authority/00BU,Trafford,11/01/2019,5100361444,085099716,"4,356.00",Stannah Lift Services Ltd,3008,GB236778328,Capital Schemes,A&M PAY TO CONTRACTO,400400,,321311,SOCIAL CARE : Equipment,Disabled facilities Grant DF2/16337,990000
http://statistics.data.gov.uk/id/local-authority/00BU,Trafford,11/01/2019,5100361447,085100769,"3,155.00",Stannah Lift Services Ltd,3008,GB236778328,Capital Schemes,A&M PAY TO CONTRACTO,400400,,321311,SOCIAL CARE : Equipment,Disabled Facilities Grant DF6/16586,990000
http://statistics.data.gov.uk/id/local-authority/00BU,Trafford,11/01/2019,5100361502,040108959,218.96,Stannah Lift Services Ltd,3008,GB236778328,LIFT REPAIRS & MTCE,CLIENTS LIFT REP & M,220406,,321311,SOCIAL CARE : Equipment,Callout,250210
http://statistics.data.gov.uk/id/local-authority/00BU,Trafford,11/01/2019,5100361502,040108959,-36.49,Stannah Lift Services Ltd,3008,GB236778328,LIFT REPAIRS & MTCE,CLIENTS LIFT REP & M,220406,,321311,SOCIAL CARE : Equipment,Callout,250210
http://statistics.data.gov.uk/id/local-authority/00BU,Trafford,11/01/2019,5100361532,1085102329,963.00,Stannah Lift Services Ltd,3008,GB236778328,LIFT REPAIRS & MTCE,CLIENTS LIFT REP & M,220406,,321311,SOCIAL CARE : Equipment,Fit Re-conditioned stairlift,250210
http://statistics.data.gov.uk/id/local-authority/00BU,Trafford,11/01/2019,5100361543,085099755,895.00,Stannah Lift Services Ltd,3008,GB236778328,LIFT REPAIRS & MTCE,CLIENTS LIFT REP & M,220406,,321311,SOCIAL CARE : Equipment,Fit Re-conditioned stairlift,250210
http://statistics.data.gov.uk/id/local-authority/00BU,Trafford,11/01/2019,5100361549,1085102328,-895.00,Stannah Lift Services Ltd,3008,GB236778328,LIFT REPAIRS & MTCE,CLIENTS LIFT REP & M,220406,,321311,SOCIAL CARE : Equipment,Fit Re-conditioned stairlift,250210
http://statistics.data.gov.uk/id/local-authority/00BU,Trafford,11/01/2019,5100361678,1085101967,"1,578.00",Stannah Lift Services Ltd,3008,GB236778328,Capital Schemes,A&M PAY TO CONTRACTO,400400,,321311,SOCIAL CARE : Equipment,Disabled Facilities Grant DF2-17206,990000
http://statistics.data.gov.uk/id/local-authority/00BU,Trafford,11/01/2019,5100361444,085099716,"4,356.00",Stannah Lift Services Ltd,3008,GB236778328,Capital Schemes,A&M PAY TO CONTRACTO,400400,,321311,SOCIAL CARE : Equipment,Disabled facilities Grant DF2/16337,990000
http://statistics.data.gov.uk/id/local-authority/00BU,Trafford,11/01/2019,5100361447,085100769,"3,155.00",Stannah Lift Services Ltd,3008,GB236778328,Capital Schemes,A&M PAY TO CONTRACTO,400400,,321311,SOCIAL CARE : Equipment,Disabled Facilities Grant DF6/16586,990000
http://statistics.data.gov.uk/id/local-authority/00BU,Trafford,11/01/2019,5100361502,040108959,218.96,Stannah Lift Services Ltd,3008,GB236778328,LIFT REPAIRS & MTCE,CLIENTS LIFT REP & M,220406,,321311,SOCIAL CARE : Equipment,Callout,250210
http://statistics.data.gov.uk/id/local-authority/00BU,Trafford,11/01/2019,5100361502,040108959,-36.49,Stannah Lift Services Ltd,3008,GB236778328,LIFT REPAIRS & MTCE,CLIENTS LIFT REP & M,220406,,321311,SOCIAL CARE : Equipment,Callout,250210
http://statistics.data.gov.uk/id/local-authority/00BU,Trafford,11/01/2019,5100361532,1085102329,963.00,Stannah Lift Services Ltd,3008,GB236778328,LIFT REPAIRS & MTCE,CLIENTS LIFT REP & M,220406,,321311,SOCIAL CARE : Equipment,Fit Re-conditioned stairlift,250210
http://statistics.data.gov.uk/id/local-authority/00BU,Trafford,11/01/2019,5100361543,085099755,895.00,Stannah Lift Services Ltd,3008,GB236778328,LIFT REPAIRS & MTCE,CLIENTS LIFT REP & M,220406,,321311,SOCIAL CARE : Equipment,Fit Re-conditioned stairlift,250210
http://statistics.data.gov.uk/id/local-authority/00BU,Trafford,11/01/2019,5100361549,1085102328,-895.00,Stannah Lift Services Ltd,3008,GB236778328,LIFT REPAIRS & MTCE,CLIENTS LIFT REP & M,220406,,321311,SOCIAL CARE : Equipment,Fit Re-conditioned stairlift,250210
http://statistics.data.gov.uk/id/local-authority/00BU,Trafford,11/01/2019,5100361678,1085101967,"1,578.00",Stannah Lift Services Ltd,3008,GB236778328,Capital Schemes,A&M PAY TO CONTRACTO,400400,,321311,SOCIAL CARE : Equipment,Disabled Facilities Grant DF2-17206,990000
http://statistics.data.gov.uk/id/local-authority/00BU,Trafford,23/01/2019,5100362409,1085102034,940.00,Stannah Lift Services Ltd,3008,GB236778328,Capital Schemes,A&M PAY TO CONTRACTO,400400,,321311,SOCIAL CARE : Equipment,Disabled Facilities Grant DF2/17013,990000
http://statistics.data.gov.uk/id/local-authority/00BU,Trafford,23/01/2019,5100362446,1085104199,50.00,Stannah Lift Services Ltd,3008,GB236778328,LIFT REPAIRS & MTCE,CLIENTS LIFT REP & M,220406,,321311,SOCIAL CARE : Equipment,Removal of a Stairlift,250210
http://statistics.data.gov.uk/id/local-authority/00BU,Trafford,23/01/2019,5100362452,1085104142,"4,728.00",Stannah Lift Services Ltd,3008,GB236778328,Capital Schemes,A&M PAY TO CONTRACTO,400400,,321311,SOCIAL CARE : Equipment,Disabled Facilities Grant DF2/17164,990000
http://statistics.data.gov.uk/id/local-authority/00BU,Trafford,23/01/2019,5100362483,1085102871,"2,353.00",Stannah Lift Services Ltd,3008,GB236778328,Capital Schemes,A&M PAY TO CONTRACTO,400400,,321311,SOCIAL CARE : Equipment,Disabled Facilities Grant-17113,990000
http://statistics.data.gov.uk/id/local-authority/00BU,Trafford,09/01/2019,5100361128,16856,13.50,Geoff Ashdown Master Locksmiths,3049,GB306266278,Early Years Service,EXT ALARMS/SEC,200015,,192200,FACILITIES MGT : Security,Cupboard Keys,141300
http://statistics.data.gov.uk/id/local-authority/00BU,Trafford,23/01/2019,5100362306,24317,"1,225.00",K J Lines Limited,3067,GB616037952,TT:OAKFIELD ROAD,EXTERNAL DAY-TO-DAY,200100,,391400,WORKS - CONSTRUCTION : Roads,Oldfield Road Car Park,400028
http://statistics.data.gov.uk/id/local-authority/00BU,Trafford,23/01/2019,5100362307,24358,240.00,K J Lines Limited,3067,GB616037952,TT:CECIL ROAD EAST,EXTERNAL DAY-TO-DAY,200100,,391400,WORKS - CONSTRUCTION : Roads,Cecil Road CP - no exit markings,400064
http://statistics.data.gov.uk/id/local-authority/00BU,Trafford,23/01/2019,5100362308,24359,250.00,K J Lines Limited,3067,GB616037952,TT:DECRIMINALISED PK,EXTERNAL DAY-TO-DAY,200100,,391400,WORKS - CONSTRUCTION : Roads,Thomas Street,400000
http://statistics.data.gov.uk/id/local-authority/00BU,Trafford,23/01/2019,5100362310,24360,290.00,K J Lines Limited,3067,GB616037952,TT:OAKFIELD ROAD,EXTERNAL DAY-TO-DAY,200100,,391400,WORKS - CONSTRUCTION : Roads,Oakfield Rd CP (Disabled Bay Markings),400028
http://statistics.data.gov.uk/id/local-authority/00BU,Trafford,23/01/2019,5100362310,24360,240.00,K J Lines Limited,3067,GB616037952,TT:ATKINSON ROAD,EXTERNAL DAY-TO-DAY,200100,,391400,WORKS - CONSTRUCTION : Roads,Atkinson Rd CP (Disabled Bay Markings),400024
http://statistics.data.gov.uk/id/local-authority/00BU,Trafford,16/01/2019,1901292785,2,"1,998.00",Trafford TDS Ltd,3079,GB305473573,Capital Schemes,CAP GRANTS TO IND,400500,,101400,BUILDING MATERIALS : General,,990000
http://statistics.data.gov.uk/id/local-authority/00BU,Trafford,16/01/2019,1901292785,2,-375.00,Trafford TDS Ltd,3079,GB305473573,HS:SHOUSING IMPROVEM,MISC SERVICE CHARGES,330118,,101400,BUILDING MATERIALS : General,,302100
http://statistics.data.gov.uk/id/local-authority/00BU,Trafford,16/01/2019,1901292785,2,-37.50,Trafford TDS Ltd,3079,GB305473573,HS:SHOUSING IMPROVEM,OTHER CHARGES,330420,,101400,BUILDING MATERIALS : General,,302100
http://statistics.data.gov.uk/id/local-authority/00BU,Trafford,16/01/2019,1901292785,2,-3.00,Trafford TDS Ltd,3079,GB305473573,HS:SHOUSING IMPROVEM,MISC SERVICE CHARGES,330118,,101400,BUILDING MATERIALS : General,,302100
http://statistics.data.gov.uk/id/local-authority/00BU,Trafford,23/01/2019,5100362402,41207,496.00,Clonshall Ltd T/a Young & Co,3241,GB151392382,MES,EXTERNAL DAY-TO-DAY,200100,,291000,LEISURE SERVICES : Events,Young & Co TMES Gutter cleaning,120615
http://statistics.data.gov.uk/id/local-authority/00BU,Trafford,28/01/2019,5100362890,71591,"1,295.54",Pollock Lifts Limited,3261,GB769009015,LIFT REPAIRS & MTCE,CLIENTS LIFT REP & M,220406,,321311,SOCIAL CARE : Equipment,Pollock lIfts - Remove & Store Steplift,250210
http://statistics.data.gov.uk/id/local-authority/00BU,Trafford,28/01/2019,5100361321,326112,"4,270.00",Paul Grainge Grounds Maintenance Lt,3332,GB794433206,William Wroe Golf Cl,ENVIRONMENTAL WORKS,200180,,241200,HORTICULTURAL : Services,HORTICULTURAL Services,622622
http://statistics.data.gov.uk/id/local-authority/00BU,Trafford,28/01/2019,5100361323,326113,546.50,Paul Grainge Grounds Maintenance Lt,3332,GB794433206,SAFER PROJECTS,EXTERNAL DAY-TO-DAY,200100,,241200,HORTICULTURAL : Services,HORTICULTURAL Services,510090
http://statistics.data.gov.uk/id/local-authority/00BU,Trafford,28/01/2019,5100362903,189052,549.00,Paul Grainge Grounds Maintenance Lt,3332,GB794433206,NEXUS EDUCATION CENT,EXT GR MAINT CONT WK,200405,,241200,HORTICULTURAL : Services,Redacted,120631
http://statistics.data.gov.uk/id/local-authority/00BU,Trafford,30/01/2019,5100363019,189053,700.00,Paul Grainge Grounds Maintenance Lt,3332,GB794433206,TT:THORLEY LANE,EXT GR MAINT CONT WK,200405,,241200,HORTICULTURAL : Services,Repair wall - Thorley Lane car park,400033
http://statistics.data.gov.uk/id/local-authority/00BU,Trafford,11/01/2019,5100361260,46667,45.00,VLC (Stairlifts) Limited,3536,GB812311285,LIFT REPAIRS & MTCE,CLIENTS LIFT REP & M,220406,,321311,SOCIAL CARE : Equipment,Callout,250210
http://statistics.data.gov.uk/id/local-authority/00BU,Trafford,11/01/2019,5100361261,46664,45.00,VLC (Stairlifts) Limited,3536,GB812311285,LIFT REPAIRS & MTCE,CLIENTS LIFT REP & M,220406,,321311,SOCIAL CARE : Equipment,Callout,250210
http://statistics.data.gov.uk/id/local-authority/00BU,Trafford,11/01/2019,5100361333,46792,"1,364.80",VLC (Stairlifts) Limited,3536,GB812311285,LIFT REPAIRS & MTCE,CLIENTS LIFT REP & M,220406,,321311,SOCIAL CARE : Equipment,Call out,250210
http://statistics.data.gov.uk/id/local-authority/00BU,Trafford,11/01/2019,5100361334,46793,403.44,VLC (Stairlifts) Limited,3536,GB812311285,LIFT REPAIRS & MTCE,CLIENTS LIFT REP & M,220406,,321311,SOCIAL CARE : Equipment,Call out,250210
http://statistics.data.gov.uk/id/local-authority/00BU,Trafford,11/01/2019,5100361335,46783,90.00,VLC (Stairlifts) Limited,3536,GB812311285,LIFT REPAIRS & MTCE,CLIENTS LIFT REP & M,220406,,321311,SOCIAL CARE : Equipment,Call out,250210
http://statistics.data.gov.uk/id/local-authority/00BU,Trafford,11/01/2019,5100361336,46784,137.50,VLC (Stairlifts) Limited,3536,GB812311285,LIFT REPAIRS & MTCE,CLIENTS LIFT REP & M,220406,,321311,SOCIAL CARE : Equipment,Call out,250210
http://statistics.data.gov.uk/id/local-authority/00BU,Trafford,11/01/2019,5100361337,46782,150.00,VLC (Stairlifts) Limited,3536,GB812311285,LIFT REPAIRS & MTCE,CLIENTS LIFT REP & M,220406,,321311,SOCIAL CARE : Equipment,Stairlift Removal,250210
http://statistics.data.gov.uk/id/local-authority/00BU,Trafford,11/01/2019,5100361338,46781,150.00,VLC (Stairlifts) Limited,3536,GB812311285,LIFT REPAIRS & MTCE,CLIENTS LIFT REP & M,220406,,321311,SOCIAL CARE : Equipment,Removal of Stairlift,250210
http://statistics.data.gov.uk/id/local-authority/00BU,Trafford,11/01/2019,5100361339,46779,150.00,VLC (Stairlifts) Limited,3536,GB812311285,LIFT REPAIRS & MTCE,CLIENTS LIFT REP & M,220406,,321311,SOCIAL CARE : Equipment,Removal of a stairlift,250210
http://statistics.data.gov.uk/id/local-authority/00BU,Trafford,11/01/2019,5100361340,46750,101.25,VLC (Stairlifts) Limited,3536,GB812311285,LIFT REPAIRS & MTCE,CLIENTS LIFT REP & M,220406,,321311,SOCIAL CARE : Equipment,Call out,250210
http://statistics.data.gov.uk/id/local-authority/00BU,Trafford,11/01/2019,5100361341,46780,150.00,VLC (Stairlifts) Limited,3536,GB812311285,LIFT REPAIRS & MTCE,CLIENTS LIFT REP & M,220406,,321311,SOCIAL CARE : Equipment,Removal of stairlift,250210
http://statistics.data.gov.uk/id/local-authority/00BU,Trafford,11/01/2019,5100361342,46747,45.00,VLC (Stairlifts) Limited,3536,GB812311285,LIFT REPAIRS & MTCE,CLIENTS LIFT REP & M,220406,,321311,SOCIAL CARE : Equipment,Call out,250210
http://statistics.data.gov.uk/id/local-authority/00BU,Trafford,11/01/2019,5100361343,46751,133.50,VLC (Stairlifts) Limited,3536,GB812311285,LIFT REPAIRS & MTCE,CLIENTS LIFT REP & M,220406,,321311,SOCIAL CARE : Equipment,Call out,250210
http://statistics.data.gov.uk/id/local-authority/00BU,Trafford,11/01/2019,5100361344,46749,465.75,VLC (Stairlifts) Limited,3536,GB812311285,LIFT REPAIRS & MTCE,CLIENTS LIFT REP & M,220406,,321311,SOCIAL CARE : Equipment,Call out,250210
http://statistics.data.gov.uk/id/local-authority/00BU,Trafford,11/01/2019,5100361345,46745,444.50,VLC (Stairlifts) Limited,3536,GB812311285,LIFT REPAIRS & MTCE,CLIENTS LIFT REP & M,220406,,321311,SOCIAL CARE : Equipment,Call out,250210
http://statistics.data.gov.uk/id/local-authority/00BU,Trafford,11/01/2019,5100361346,46748,95.00,VLC (Stairlifts) Limited,3536,GB812311285,LIFT REPAIRS & MTCE,CLIENTS LIFT REP & M,220406,,321311,SOCIAL CARE : Equipment,Call out,250210
http://statistics.data.gov.uk/id/local-authority/00BU,Trafford,11/01/2019,5100361347,46636,142.25,VLC (Stairlifts) Limited,3536,GB812311285,LIFT REPAIRS & MTCE,CLIENTS LIFT REP & M,220406,,321311,SOCIAL CARE : Equipment,Call Out,250210
http://statistics.data.gov.uk/id/local-authority/00BU,Trafford,11/01/2019,5100361348,46634,335.30,VLC (Stairlifts) Limited,3536,GB812311285,LIFT REPAIRS & MTCE,CLIENTS LIFT REP & M,220406,,321311,SOCIAL CARE : Equipment,Callout,250210
http://statistics.data.gov.uk/id/local-authority/00BU,Trafford,11/01/2019,5100361350,46633,123.15,VLC (Stairlifts) Limited,3536,GB812311285,LIFT REPAIRS & MTCE,CLIENTS LIFT REP & M,220406,,321311,SOCIAL CARE : Equipment,callout,250210
http://statistics.data.gov.uk/id/local-authority/00BU,Trafford,11/01/2019,5100361377,46635,417.06,VLC (Stairlifts) Limited,3536,GB812311285,LIFT REPAIRS & MTCE,CLIENTS LIFT REP & M,220406,,321311,SOCIAL CARE : Equipment,Call out,250210
http://statistics.data.gov.uk/id/local-authority/00BU,Trafford,11/01/2019,5100361424,46683,500.00,VLC (Stairlifts) Limited,3536,GB812311285,LIFT REPAIRS & MTCE,CLIENTS LIFT REP & M,220406,,191400,FACILITIES MGT : Lifts,Storage December 2018,250210
http://statistics.data.gov.uk/id/local-authority/00BU,Trafford,11/01/2019,5100361428,46684,"4,920.00",VLC (Stairlifts) Limited,3536,GB812311285,LIFT REPAIRS & MTCE,CLIENTS LIFT REP & M,220406,,191400,FACILITIES MGT : Lifts,Comprehensive Element December 2018,250210
http://statistics.data.gov.uk/id/local-authority/00BU,Trafford,11/01/2019,5100361625,46870,150.00,VLC (Stairlifts) Limited,3536,GB812311285,LIFT REPAIRS & MTCE,CLIENTS LIFT REP & M,220406,,321311,SOCIAL CARE : Equipment,removal of a stairlift,250210
http://statistics.data.gov.uk/id/local-authority/00BU,Trafford,11/01/2019,5100361626,46869,226.08,VLC (Stairlifts) Limited,3536,GB812311285,LIFT REPAIRS & MTCE,CLIENTS LIFT REP & M,220406,,321311,SOCIAL CARE : Equipment,Call out,250210
http://statistics.data.gov.uk/id/local-authority/00BU,Trafford,11/01/2019,5100361627,46850,95.00,VLC (Stairlifts) Limited,3536,GB812311285,LIFT REPAIRS & MTCE,CLIENTS LIFT REP & M,220406,,321311,SOCIAL CARE : Equipment,Call out,250210
http://statistics.data.gov.uk/id/local-authority/00BU,Trafford,11/01/2019,5100361628,46847,45.00,VLC (Stairlifts) Limited,3536,GB812311285,LIFT REPAIRS & MTCE,CLIENTS LIFT REP & M,220406,,321311,SOCIAL CARE : Equipment,call out,250210
http://statistics.data.gov.uk/id/local-authority/00BU,Trafford,11/01/2019,5100361629,46822,150.00,VLC (Stairlifts) Limited,3536,GB812311285,LIFT REPAIRS & MTCE,CLIENTS LIFT REP & M,220406,,321311,SOCIAL CARE : Equipment,Removal of a stairlift,250210
http://statistics.data.gov.uk/id/local-authority/00BU,Trafford,11/01/2019,5100361630,46823,150.00,VLC (Stairlifts) Limited,3536,GB812311285,LIFT REPAIRS & MTCE,CLIENTS LIFT REP & M,220406,,321311,SOCIAL CARE : Equipment,Removal of a stairlift,250210
http://statistics.data.gov.uk/id/local-authority/00BU,Trafford,16/01/2019,5100361860,46885,"1,005.00",VLC (Stairlifts) Limited,3536,GB812311285,LIFT REPAIRS & MTCE,CLIENTS LIFT REP & M,220406,,321311,SOCIAL CARE : Equipment,Service Charges December 2018,250210
http://statistics.data.gov.uk/id/local-authority/00BU,Trafford,30/01/2019,5100363057,46826,500.00,VLC (Stairlifts) Limited,3536,GB812311285,LIFT REPAIRS & MTCE,CLIENTS LIFT REP & M,220406,,321311,SOCIAL CARE : Equipment,Storage January 2019,250210
http://statistics.data.gov.uk/id/local-authority/00BU,Trafford,30/01/2019,5100363058,46846,380.25,VLC (Stairlifts) Limited,3536,GB812311285,LIFT REPAIRS & MTCE,CLIENTS LIFT REP & M,220406,,321311,SOCIAL CARE : Equipment,Call out,250210
http://statistics.data.gov.uk/id/local-authority/00BU,Trafford,30/01/2019,5100363059,46827,"4,732.50",VLC (Stairlifts) Limited,3536,GB812311285,LIFT REPAIRS & MTCE,CLIENTS LIFT REP & M,220406,,321311,SOCIAL CARE : Equipment,Comprehensive Element January 2019,250210
http://statistics.data.gov.uk/id/local-authority/00BU,Trafford,11/01/2019,5100361541,4480089,408.00,Glendale Countryside Ltd,3865,GB604576737,GM ARBOR - WORKS MGT,EXT GR MAINT CONT WK,200405,,391300,CONSTRUCTION : Open Spaces,Redacted,202408
http://statistics.data.gov.uk/id/local-authority/00BU,Trafford,28/01/2019,5100362849,4480094,"6,345.34",Glendale Countryside Ltd,3865,GB604576737,GM ARBOR - WORKS MGT,EXT GR MAINT CONT WK,200405,,391300,CONSTRUCTION : Open Spaces,Altrincham Phase 4,202408
http://statistics.data.gov.uk/id/local-authority/00BU,Trafford,28/01/2019,5100362877,4480095,"9,924.73",Glendale Countryside Ltd,3865,GB604576737,GM ARBOR - WORKS MGT,EXT GR MAINT CONT WK,200405,,391300,CONSTRUCTION : Open Spaces,Altrincham Phase3,202408
http://statistics.data.gov.uk/id/local-authority/00BU,Trafford,11/01/2019,1901291866,50,"2,450.00",Handicare Accessibility Ltd,4220,GB849757559,Capital Schemes,CAP GRANTS TO IND,400500,,321311,SOCIAL CARE : Equipment,,990000
http://statistics.data.gov.uk/id/local-authority/00BU,Trafford,23/01/2019,5100362269,10518,"1,043.77",Conlon Construction Ltd,4270,GB153476165,CN:Bldg Serv Schemes,Brickwork,200110,,391110,CONSTRUCTION: Bld Construction,altrincham leisure ctr,353025
http://statistics.data.gov.uk/id/local-authority/00BU,Trafford,30/01/2019,5100362996,8436,150.38,Redacted,Redacted,GB909292310,EXTERNAL MINOR ADAPT,EXTERNAL DAY-TO-DAY,200100,,321311,SOCIAL CARE : Equipment,Extend arm to bath hoist,250220
http://statistics.data.gov.uk/id/local-authority/00BU,Trafford,30/01/2019,5100362999,8448,140.00,Redacted,Redacted,GB909292310,EXTERNAL MINOR ADAPT,EXTERNAL DAY-TO-DAY,200100,,321311,SOCIAL CARE : Equipment,Extend arm to bath hoist,250220
http://statistics.data.gov.uk/id/local-authority/00BU,Trafford,28/01/2019,5100362195,38001164,"86,729.95",Willmott Dixon Construction Ltd,4365,GB197737796,Capital Schemes,EXT BUILDING SERV,400225,,391110,CONSTRUCTION: Bld Construction,Willmott Dixon - Urmston Leisure,990000
http://statistics.data.gov.uk/id/local-authority/00BU,Trafford,23/01/2019,5100362251,11781,"4,500.00",Proarb Limited,4388,GB821899496,GM ARBOR - WORKS MGT,EXT ARB MAINT COSTS,200410,,241600,HORTICULTURAL : Trees & Shrubs,Foxhall Road,202408
http://statistics.data.gov.uk/id/local-authority/00BU,Trafford,23/01/2019,5100362058,177415,285.00,proAV Limited,4486,,MEETING ROOM REPAIRS,IT PURCHASES,220545,,271200,ICT : Hardware,Repair microphone,630540
http://statistics.data.gov.uk/id/local-authority/00BU,Trafford,23/01/2019,5100362058,177415,10.00,proAV Limited,4486,,MEETING ROOM REPAIRS,IT PURCHASES,220545,,271200,ICT : Hardware,Shipping,630540
http://statistics.data.gov.uk/id/local-authority/00BU,Trafford,28/01/2019,5100362881,177415,-285.00,proAV Limited,4486,,MEETING ROOM REPAIRS,IT PURCHASES,220545,,271200,ICT : Hardware,Repair microphone,630540
http://statistics.data.gov.uk/id/local-authority/00BU,Trafford,28/01/2019,5100362881,177415,-10.00,proAV Limited,4486,,MEETING ROOM REPAIRS,IT PURCHASES,220545,,271200,ICT : Hardware,Shipping,630540
http://statistics.data.gov.uk/id/local-authority/00BU,Trafford,28/01/2019,5100362883,177415,285.00,proAV Limited,4486,,MEETING ROOM REPAIRS,IT PURCHASES,220545,,271200,ICT : Hardware,Repair microphone,630540
http://statistics.data.gov.uk/id/local-authority/00BU,Trafford,28/01/2019,5100362883,177415,10.00,proAV Limited,4486,,MEETING ROOM REPAIRS,IT PURCHASES,220545,,271200,ICT : Hardware,Shipping,630540
http://statistics.data.gov.uk/id/local-authority/00BU,Trafford,28/01/2019,5100362881,177415,-285.00,proAV Limited,4486,,MEETING ROOM REPAIRS,IT PURCHASES,220545,,271200,ICT : Hardware,Repair microphone,630540
http://statistics.data.gov.uk/id/local-authority/00BU,Trafford,28/01/2019,5100362881,177415,-10.00,proAV Limited,4486,,MEETING ROOM REPAIRS,IT PURCHASES,220545,,271200,ICT : Hardware,Shipping,630540
http://statistics.data.gov.uk/id/local-authority/00BU,Trafford,28/01/2019,5100362883,177415,285.00,proAV Limited,4486,,MEETING ROOM REPAIRS,IT PURCHASES,220545,,271200,ICT : Hardware,Repair microphone,630540
http://statistics.data.gov.uk/id/local-authority/00BU,Trafford,28/01/2019,5100362883,177415,10.00,proAV Limited,4486,,MEETING ROOM REPAIRS,IT PURCHASES,220545,,271200,ICT : Hardware,Shipping,630540
http://statistics.data.gov.uk/id/local-authority/00BU,Trafford,11/01/2019,5100361259,31856,118.00,Commsec Ltd,4496,GB187840074,SAFER PROJECTS,EARMARKED GRANTS,220710,,192200,FACILITIES MGT : Security,Redacted,510090
http://statistics.data.gov.uk/id/local-authority/00BU,Trafford,02/01/2019,5100360974,90650655,650.00,Amey LG Limited,4521,GB813047950,JVC: Flood risk,CONSULTANTS,220428,,151300,CONSULTANCY : Environmental,Flood Risk Register,235307
http://statistics.data.gov.uk/id/local-authority/00BU,Trafford,02/01/2019,5100360975,90719645,143.79,Amey LG Limited,4521,GB813047950,MES,EXTERNAL DAY-TO-DAY,200100,,182013,Waste Mgt : Waste Collection,Amey Asbestos SLA TMES Dec 18 QTR2,120615
http://statistics.data.gov.uk/id/local-authority/00BU,Trafford,02/01/2019,5100360976,90716728,55.52,Amey LG Limited,4521,GB813047950,MES,EXTERNAL DAY-TO-DAY,200100,,182013,Waste Mgt : Waste Collection,Amey Energy SLA TMES Dec 18 QTR2,120615
http://statistics.data.gov.uk/id/local-authority/00BU,Trafford,02/01/2019,5100360976,90716728,135.51,Amey LG Limited,4521,GB813047950,MES,EXTERNAL DAY-TO-DAY,200100,,182013,Waste Mgt : Waste Collection,Amey Property SLA TMES Dec 18 QTR2,120615
http://statistics.data.gov.uk/id/local-authority/00BU,Trafford,02/01/2019,5100360976,90716728,94.04,Amey LG Limited,4521,GB813047950,MES,EXTERNAL DAY-TO-DAY,200100,,182013,Waste Mgt : Waste Collection,Amey M&E SLA TMES Dec 18 QTR2,120615
http://statistics.data.gov.uk/id/local-authority/00BU,Trafford,07/01/2019,5100361031,1042260,70.92,Amey LG Limited,4521,GB813047950,NEXUS EDUCATION CENT,EXT REM OF RUBBISH,200420,,182013,Waste Mgt : Waste Collection,Amey One Trafford THS Nov 18,120631
http://statistics.data.gov.uk/id/local-authority/00BU,Trafford,09/01/2019,5100359070,90635596,750.00,Amey LG Limited,4521,GB813047950,TT:BROWN ST HALE,EXTERNAL DAY-TO-DAY,200100,,231800,HWY : Services,remove & repair fencing,400057
http://statistics.data.gov.uk/id/local-authority/00BU,Trafford,09/01/2019,5100361078,1041720,21.48,Amey LG Limited,4521,GB813047950,ASCOT HOUSE PENNINE,CLEANING MATERIALS,201130,,182013,Waste Mgt : Waste Collection,INV.1041720 Rental Mix Recycle bin,154013
http://statistics.data.gov.uk/id/local-authority/00BU,Trafford,09/01/2019,5100361078,1041720,35.28,Amey LG Limited,4521,GB813047950,ASCOT HOUSE PENNINE,CLEANING MATERIALS,201130,,182013,Waste Mgt : Waste Collection,INV.1041720 Rental Mix General wast bin,154013
http://statistics.data.gov.uk/id/local-authority/00BU,Trafford,09/01/2019,5100361078,1041720,75.90,Amey LG Limited,4521,GB813047950,ASCOT HOUSE PENNINE,CLEANING MATERIALS,201130,,182013,Waste Mgt : Waste Collection,INV.1041720 Rental Mix General Waste,154013
http://statistics.data.gov.uk/id/local-authority/00BU,Trafford,09/01/2019,5100361078,1041720,21.48,Amey LG Limited,4521,GB813047950,ASCOT HOUSE PENNINE,CLEANING MATERIALS,201130,,182013,Waste Mgt : Waste Collection,INV.1041720  Rental Mix Paper bin,154013
http://statistics.data.gov.uk/id/local-authority/00BU,Trafford,09/01/2019,5100361162,90716725,143.79,Amey LG Limited,4521,GB813047950,NEXUS EDUCATION CENT,EXTERNAL DAY-TO-DAY,200100,,182013,Waste Mgt : Waste Collection,Amey  Asbestos SLA THS Dec 18 QTR2,120631
http://statistics.data.gov.uk/id/local-authority/00BU,Trafford,09/01/2019,5100361162,90716725,86.60,Amey LG Limited,4521,GB813047950,NEXUS EDUCATION CENT,EXTERNAL DAY-TO-DAY,200100,,182013,Waste Mgt : Waste Collection,Amey Energy SLA THS Dec 18 QTR2,120631
http://statistics.data.gov.uk/id/local-authority/00BU,Trafford,09/01/2019,5100361162,90716725,197.30,Amey LG Limited,4521,GB813047950,NEXUS EDUCATION CENT,EXTERNAL DAY-TO-DAY,200100,,182013,Waste Mgt : Waste Collection,Amey M&E SLA THS Dec 18 QTR2,120631
http://statistics.data.gov.uk/id/local-authority/00BU,Trafford,09/01/2019,5100361162,90716725,277.58,Amey LG Limited,4521,GB813047950,NEXUS EDUCATION CENT,EXTERNAL DAY-TO-DAY,200100,,182013,Waste Mgt : Waste Collection,Amey  Property SLA THS Dec 18 QTR2,120631
http://statistics.data.gov.uk/id/local-authority/00BU,Trafford,09/01/2019,5100361163,1042329,14.32,Amey LG Limited,4521,GB813047950,ASCOT HOUSE PENNINE,CLEANING MATERIALS,201130,,182013,Waste Mgt : Waste Collection,INV.1042329 Rental Mix Recycle bin,154013
http://statistics.data.gov.uk/id/local-authority/00BU,Trafford,09/01/2019,5100361163,1042329,44.10,Amey LG Limited,4521,GB813047950,ASCOT HOUSE PENNINE,CLEANING MATERIALS,201130,,182013,Waste Mgt : Waste Collection,INV.1042329 Rental Mix General wast bin,154013
http://statistics.data.gov.uk/id/local-authority/00BU,Trafford,09/01/2019,5100361163,1042329,60.72,Amey LG Limited,4521,GB813047950,ASCOT HOUSE PENNINE,CLEANING MATERIALS,201130,,182013,Waste Mgt : Waste Collection,INV.1042329 Rental Mix General Waste,154013
http://statistics.data.gov.uk/id/local-authority/00BU,Trafford,09/01/2019,5100361163,1042329,21.48,Amey LG Limited,4521,GB813047950,ASCOT HOUSE PENNINE,CLEANING MATERIALS,201130,,182013,Waste Mgt : Waste Collection,INV.1042329  Rental Mix Paper bin,154013
http://statistics.data.gov.uk/id/local-authority/00BU,Trafford,09/01/2019,5100361164,90700270,"23,000.00",Amey LG Limited,4521,GB813047950,Capital Schemes,CAP STREET LIGHTING,400465,,231400,HWY : Street Lighting,Columns & Structural Works,990000
http://statistics.data.gov.uk/id/local-authority/00BU,Trafford,21/01/2019,5100362088,90719492,"3,129.72",Amey LG Limited,4521,GB813047950,EN:Tree Maint,SUPPLIES/SERVICES,220472,,231800,HWY : Services,Redacted,411450
http://statistics.data.gov.uk/id/local-authority/00BU,Trafford,21/01/2019,5100362090,90720999,"6,885.00",Amey LG Limited,4521,GB813047950,CORPORATE EVENTS,OUTSIDE TECHNICAL SU,201160,,231800,HWY : Services,TM for Remembrance Sunday,710125
http://statistics.data.gov.uk/id/local-authority/00BU,Trafford,21/01/2019,5100362091,90723319,"5,355.00",Amey LG Limited,4521,GB813047950,TT:OAKFIELD ROAD,EXTERNAL DAY-TO-DAY,200100,,151100,CONSULTANCY : Construction,ORCP works,400028
http://statistics.data.gov.uk/id/local-authority/00BU,Trafford,21/01/2019,5100362092,90720563,40.00,Amey LG Limited,4521,GB813047950,MES,EXTERNAL DAY-TO-DAY,200100,,182013,Waste Mgt : Waste Collection,Amey Water hygiene servTMES Sep/Oct 18,120615
http://statistics.data.gov.uk/id/local-authority/00BU,Trafford,21/01/2019,5100362095,90719904,"620,868.92",Amey LG Limited,4521,GB813047950,JVC monthly bill,SUPPLIES/SERVICES,220472,,151300,CONSULTANCY : Environmental,Fixed Fees,233002
http://statistics.data.gov.uk/id/local-authority/00BU,Trafford,21/01/2019,5100362096,90719956,"54,593.13",Amey LG Limited,4521,GB813047950,JVC monthly bill,SUPPLIES/SERVICES,220472,,151300,CONSULTANCY : Environmental,Fixed Fees,233002
http://statistics.data.gov.uk/id/local-authority/00BU,Trafford,21/01/2019,5100362097,90719965,"185,436.97",Amey LG Limited,4521,GB813047950,JVC monthly bill,SUPPLIES/SERVICES,220472,,151300,CONSULTANCY : Environmental,Fixed Fees,233002
http://statistics.data.gov.uk/id/local-authority/00BU,Trafford,21/01/2019,5100362099,90719288,"12,746.00",Amey LG Limited,4521,GB813047950,Bikeability Scheme,SUPPLIES/SERVICES,220472,,151300,CONSULTANCY : Environmental,Bikeability Scheme,401008
http://statistics.data.gov.uk/id/local-authority/00BU,Trafford,21/01/2019,5100362104,90719938,"146,929.84",Amey LG Limited,4521,GB813047950,JVC monthly bill,SUPPLIES/SERVICES,220472,,151300,CONSULTANCY : Environmental,Fixed Fees,233002
http://statistics.data.gov.uk/id/local-authority/00BU,Trafford,21/01/2019,5100362158,90719285,"28,977.00",Amey LG Limited,4521,GB813047950,Capital Schemes,EXT ENG HIGHWAY,400205,,151100,CONSULTANCY : Construction,CONSULTANCY Construction,990000
http://statistics.data.gov.uk/id/local-authority/00BU,Trafford,21/01/2019,5100362189,90723553,"14,258.83",Amey LG Limited,4521,GB813047950,Capital Schemes,EXT PROJECT MAN,400220,,201700,FINANCIAL SERVICES : Grants,Capital Project Fees,990000
http://statistics.data.gov.uk/id/local-authority/00BU,Trafford,21/01/2019,5100362190,90723554,"74,884.40",Amey LG Limited,4521,GB813047950,Capital Schemes,EXT PROJECT MAN,400220,,201700,FINANCIAL SERVICES : Grants,Capital Project Fees,990000
http://statistics.data.gov.uk/id/local-authority/00BU,Trafford,21/01/2019,5100362191,90723227,"4,111.13",Amey LG Limited,4521,GB813047950,OTP: Fly Tipping SLA,OTHER MISC EXPENSES,220850,,182013,Waste Mgt : Waste Collection,Fly Tipping,233005
http://statistics.data.gov.uk/id/local-authority/00BU,Trafford,21/01/2019,5100362192,90723229,"16,444.46",Amey LG Limited,4521,GB813047950,OTP: Fly Tipping SLA,OTHER MISC EXPENSES,220850,,182013,Waste Mgt : Waste Collection,Fly Tipping,233005
http://statistics.data.gov.uk/id/local-authority/00BU,Trafford,21/01/2019,5100362192,90723229,585.68,Amey LG Limited,4521,GB813047950,OTP: Fly Tipping SLA,OTHER MISC EXPENSES,220850,,182013,Waste Mgt : Waste Collection,Fly Tipping,233005
http://statistics.data.gov.uk/id/local-authority/00BU,Trafford,21/01/2019,5100362198,90709357,"3,348.63",Amey LG Limited,4521,GB813047950,Capital Schemes,EXT PROJECT MAN,400220,,201700,FINANCIAL SERVICES : Grants,Capital Project Fees,990000
http://statistics.data.gov.uk/id/local-authority/00BU,Trafford,28/01/2019,5100362894,19100321,"3,450.00",Facultatieve Technologies Ltd,4536,GB169285327,PP:ALTRINCHAM CREMAT,REPAIRS TO FIXTURES,201010,,121100,CEMETERY : Equipment,test,540020
http://statistics.data.gov.uk/id/local-authority/00BU,Trafford,21/01/2019,5100362100,1800332935,"25,588.77",Engie FM Ltd,4537,GB578153121,Capital Schemes,A&M PAY TO CONTRACTO,400400,,131300,CLEANING: Services,Medical room development,990000
http://statistics.data.gov.uk/id/local-authority/00BU,Trafford,16/01/2019,5100362007,14560,360.00,J and J Oliver Ltd,4538,GB224433926,GM ARBOR - WORKS MGT,EXT GR MAINT CONT WK,200405,,241200,HORTICULTURAL : Services,Urgent tree works 4/1/2019,202408
http://statistics.data.gov.uk/id/local-authority/00BU,Trafford,16/01/2019,5100362007,14560,270.00,J and J Oliver Ltd,4538,GB224433926,GM ARBOR - WORKS MGT,EXT GR MAINT CONT WK,200405,,241200,HORTICULTURAL : Services,Dunham Road,202408
http://statistics.data.gov.uk/id/local-authority/00BU,Trafford,16/01/2019,5100362007,14560,240.00,J and J Oliver Ltd,4538,GB224433926,GM ARBOR - WORKS MGT,EXT GR MAINT CONT WK,200405,,241200,HORTICULTURAL : Services,Redacted,202408
http://statistics.data.gov.uk/id/local-authority/00BU,Trafford,16/01/2019,5100362007,14560,640.00,J and J Oliver Ltd,4538,GB224433926,GM ARBOR - WORKS MGT,EXT GR MAINT CONT WK,200405,,241200,HORTICULTURAL : Services,Urgent Jobs: 5/12/2018,202408
http://statistics.data.gov.uk/id/local-authority/00BU,Trafford,16/01/2019,5100362007,14560,640.00,J and J Oliver Ltd,4538,GB224433926,GM ARBOR - WORKS MGT,EXT GR MAINT CONT WK,200405,,241200,HORTICULTURAL : Services,Storm damage 6/12/2018,202408
http://statistics.data.gov.uk/id/local-authority/00BU,Trafford,16/01/2019,5100362007,14560,400.00,J and J Oliver Ltd,4538,GB224433926,GM ARBOR - WORKS MGT,EXT GR MAINT CONT WK,200405,,241200,HORTICULTURAL : Services,Storm damage 10/12/2018,202408
http://statistics.data.gov.uk/id/local-authority/00BU,Trafford,16/01/2019,5100362007,14560,400.00,J and J Oliver Ltd,4538,GB224433926,GM ARBOR - WORKS MGT,EXT GR MAINT CONT WK,200405,,241200,HORTICULTURAL : Services,Urgent jobs 13/12/2018,202408
http://statistics.data.gov.uk/id/local-authority/00BU,Trafford,28/01/2019,5100362645,83272,195.00,Champion Cleaning Services Ltd,4575,GB185011332,ASCOT HOUSE PENNINE,CLEANING MATERIALS,201130,,131310,CLEANING : Services : Building,Window Cleaning January 2019,154013
http://statistics.data.gov.uk/id/local-authority/00BU,Trafford,07/01/2019,5100349466,9278,"5,834.45",UPS Building & Maintenance Limited,4600,GB901576633,Capital Schemes,A&M PAY TO CONTRACTO,400400,,391110,CONSTRUCTION: Bld Construction,Disabled Facilities Grant DF2/16310,990000
http://statistics.data.gov.uk/id/local-authority/00BU,Trafford,07/01/2019,5100361027,10046,165.60,UPS Building & Maintenance Limited,4600,GB901576633,LIFT REPAIRS & MTCE,EXTERNAL DAY-TO-DAY,200100,,391110,CONSTRUCTION: Bld Construction,Additional Hand Rail,250210
http://statistics.data.gov.uk/id/local-authority/00BU,Trafford,07/01/2019,5100361030,9708,"5,903.88",UPS Building & Maintenance Limited,4600,GB901576633,Capital Schemes,A&M PAY TO CONTRACTO,400400,,391110,CONSTRUCTION: Bld Construction,Disabled Facilities Grant DF2/16562,990000
http://statistics.data.gov.uk/id/local-authority/00BU,Trafford,07/01/2019,5100361032,9891,"5,605.83",UPS Building & Maintenance Limited,4600,GB901576633,Capital Schemes,A&M PAY TO CONTRACTO,400400,,391110,CONSTRUCTION: Bld Construction,Disabled Facilities Grant DF2/16248,990000
http://statistics.data.gov.uk/id/local-authority/00BU,Trafford,07/01/2019,5100361035,9956,"5,160.47",UPS Building & Maintenance Limited,4600,GB901576633,Capital Schemes,A&M PAY TO CONTRACTO,400400,,391110,CONSTRUCTION: Bld Construction,Disabled Facilities Grant Df2/16508,990000
http://statistics.data.gov.uk/id/local-authority/00BU,Trafford,07/01/2019,5100361036,9700,"4,117.69",UPS Building & Maintenance Limited,4600,GB901576633,Capital Schemes,A&M PAY TO CONTRACTO,400400,,391110,CONSTRUCTION: Bld Construction,Disabled Facilities Grant DF2/16339,990000
http://statistics.data.gov.uk/id/local-authority/00BU,Trafford,07/01/2019,5100361037,9278,"-5,834.45",UPS Building & Maintenance Limited,4600,GB901576633,Capital Schemes,A&M PAY TO CONTRACTO,400400,,391110,CONSTRUCTION: Bld Construction,Disabled Facilities Grant DF2/16310,990000
http://statistics.data.gov.uk/id/local-authority/00BU,Trafford,07/01/2019,5100349466,9278,"5,834.45",UPS Building & Maintenance Limited,4600,GB901576633,Capital Schemes,A&M PAY TO CONTRACTO,400400,,391110,CONSTRUCTION: Bld Construction,Disabled Facilities Grant DF2/16310,990000
http://statistics.data.gov.uk/id/local-authority/00BU,Trafford,07/01/2019,5100361027,10046,165.60,UPS Building & Maintenance Limited,4600,GB901576633,LIFT REPAIRS & MTCE,EXTERNAL DAY-TO-DAY,200100,,391110,CONSTRUCTION: Bld Construction,Additional Hand Rail,250210
http://statistics.data.gov.uk/id/local-authority/00BU,Trafford,07/01/2019,5100361030,9708,"5,903.88",UPS Building & Maintenance Limited,4600,GB901576633,Capital Schemes,A&M PAY TO CONTRACTO,400400,,391110,CONSTRUCTION: Bld Construction,Disabled Facilities Grant DF2/16562,990000
http://statistics.data.gov.uk/id/local-authority/00BU,Trafford,07/01/2019,5100361032,9891,"5,605.83",UPS Building & Maintenance Limited,4600,GB901576633,Capital Schemes,A&M PAY TO CONTRACTO,400400,,391110,CONSTRUCTION: Bld Construction,Disabled Facilities Grant DF2/16248,990000
http://statistics.data.gov.uk/id/local-authority/00BU,Trafford,07/01/2019,5100361035,9956,"5,160.47",UPS Building & Maintenance Limited,4600,GB901576633,Capital Schemes,A&M PAY TO CONTRACTO,400400,,391110,CONSTRUCTION: Bld Construction,Disabled Facilities Grant Df2/16508,990000
http://statistics.data.gov.uk/id/local-authority/00BU,Trafford,07/01/2019,5100361036,9700,"4,117.69",UPS Building & Maintenance Limited,4600,GB901576633,Capital Schemes,A&M PAY TO CONTRACTO,400400,,391110,CONSTRUCTION: Bld Construction,Disabled Facilities Grant DF2/16339,990000
http://statistics.data.gov.uk/id/local-authority/00BU,Trafford,07/01/2019,5100361037,9278,"-5,834.45",UPS Building & Maintenance Limited,4600,GB901576633,Capital Schemes,A&M PAY TO CONTRACTO,400400,,391110,CONSTRUCTION: Bld Construction,Disabled Facilities Grant DF2/16310,990000
http://statistics.data.gov.uk/id/local-authority/00BU,Trafford,09/01/2019,5100361129,9565,"15,616.86",UPS Building & Maintenance Limited,4600,GB901576633,Capital Schemes,A&M PAY TO CONTRACTO,400400,,391110,CONSTRUCTION: Bld Construction,Disabled Facilities Grant DF6/16635,990000
http://statistics.data.gov.uk/id/local-authority/00BU,Trafford,11/01/2019,5100361230,9972,"10,522.60",UPS Building & Maintenance Limited,4600,GB901576633,Capital Schemes,A&M PAY TO CONTRACTO,400400,,391110,CONSTRUCTION: Bld Construction,Disabled Facilities Grant DF2/16253,990000
http://statistics.data.gov.uk/id/local-authority/00BU,Trafford,16/01/2019,5100361865,10071,"6,364.71",UPS Building & Maintenance Limited,4600,GB901576633,Capital Schemes,A&M PAY TO CONTRACTO,400400,,391110,CONSTRUCTION: Bld Construction,Disabled Facilities Grant DF2/16746,990000
http://statistics.data.gov.uk/id/local-authority/00BU,Trafford,16/01/2019,5100361866,9971,"6,543.87",UPS Building & Maintenance Limited,4600,GB901576633,Capital Schemes,A&M PAY TO CONTRACTO,400400,,391110,CONSTRUCTION: Bld Construction,Disabled Facilities DF6/16745,990000
http://statistics.data.gov.uk/id/local-authority/00BU,Trafford,28/01/2019,5100359728,9966,"13,724.65",UPS Building & Maintenance Limited,4600,GB901576633,Capital Schemes,A&M PAY TO CONTRACTO,400400,,391110,CONSTRUCTION: Bld Construction,Interim Payment DF6/16726,990000
http://statistics.data.gov.uk/id/local-authority/00BU,Trafford,28/01/2019,5100360283,9777,"6,241.08",UPS Building & Maintenance Limited,4600,GB901576633,Capital Schemes,A&M PAY TO CONTRACTO,400400,,391110,CONSTRUCTION: Bld Construction,Disabled Facilities Grant DF6/16576,990000
http://statistics.data.gov.uk/id/local-authority/00BU,Trafford,28/01/2019,5100361987,9945,"6,242.05",UPS Building & Maintenance Limited,4600,GB901576633,Capital Schemes,A&M PAY TO CONTRACTO,400400,,391110,CONSTRUCTION: Bld Construction,Disabled Facilities Grant DF6/16987,990000
http://statistics.data.gov.uk/id/local-authority/00BU,Trafford,28/01/2019,5100361988,9982,"7,115.25",UPS Building & Maintenance Limited,4600,GB901576633,Capital Schemes,A&M PAY TO CONTRACTO,400400,,391110,CONSTRUCTION: Bld Construction,Disabled Facilities Grant,990000
http://statistics.data.gov.uk/id/local-authority/00BU,Trafford,28/01/2019,5100361989,9983,"4,495.47",UPS Building & Maintenance Limited,4600,GB901576633,Capital Schemes,A&M PAY TO CONTRACTO,400400,,391110,CONSTRUCTION: Bld Construction,Disabled Facilities Grant DF2/16514,990000
http://statistics.data.gov.uk/id/local-authority/00BU,Trafford,28/01/2019,5100361990,9699,"4,309.85",UPS Building & Maintenance Limited,4600,GB901576633,Capital Schemes,A&M PAY TO CONTRACTO,400400,,391110,CONSTRUCTION: Bld Construction,Disabled Facilities Grant DF2/16503,990000
http://statistics.data.gov.uk/id/local-authority/00BU,Trafford,28/01/2019,5100362651,10114,"7,555.40",UPS Building & Maintenance Limited,4600,GB901576633,Capital Schemes,A&M PAY TO CONTRACTO,400400,,391110,CONSTRUCTION: Bld Construction,Disabled Facilities Grant DF6/16191,990000
http://statistics.data.gov.uk/id/local-authority/00BU,Trafford,30/01/2019,5100363023,10160,250.00,UPS Building & Maintenance Limited,4600,GB901576633,HS:ADAPTATIONS,PROFESSIONAL FEES,220456,,391110,CONSTRUCTION: Bld Construction,Cancellation of Design,302300
http://statistics.data.gov.uk/id/local-authority/00BU,Trafford,21/01/2019,5100362130,499263,"4,680.00",Kingdom Services Group Limited,4630,GB582329526,Kingdom Enforcement,SUPPLIES/SERVICES,220472,,181600,ENVIRONMENT : Street Cleansing,Paid fixed penalty notices November 2018,515043
http://statistics.data.gov.uk/id/local-authority/00BU,Trafford,21/01/2019,5100362194,18120115,"133,670.79",Dawnus Construction Holdings Ltd,4632,GB840683717,Capital Schemes,A&M PAY TO CONTRACTO,400400,,391110,CONSTRUCTION: Bld Construction,Gorse Hill Primary School Expansion,990000
http://statistics.data.gov.uk/id/local-authority/00BU,Trafford,09/01/2019,5100361131,7495267,360.00,VPS (UK) Ltd,4633,GB100196072,MENT HLT 18-64 LT,PROF CLEANING SERVIC,220484,,131312,CLEANING : Washroom Sanitation,Redacted,157004
http://statistics.data.gov.uk/id/local-authority/00BU,Trafford,03/01/2019,1901290296,1000000001064,50.00,The Bridgewater Canal Company Ltd,10121,GB927441517,EN:CR Emerg Rep Unma,GROUND RENTS,200710,,,,*GC credit-side basic rent 01.01.19,410010
http://statistics.data.gov.uk/id/local-authority/00BU,Trafford,03/01/2019,1901290297,1000000001090,50.00,The Bridgewater Canal Company Ltd,10121,GB927441517,EN:PR Ill Signs Repa,GROUND RENTS,200710,,,,*GC credit-side basic rent 01.01.19,411025
http://statistics.data.gov.uk/id/local-authority/00BU,Trafford,21/01/2019,1901293084,1000000001084,4.74,Scanlans Property Management,10146,,AM:GROUND RENTS,GROUND RENTS,200710,,,,*GC credit-side basic rent 25.06.12,622860
http://statistics.data.gov.uk/id/local-authority/00BU,Trafford,21/01/2019,1901293084,1000000001084,4.74,Scanlans Property Management,10146,,AM:GROUND RENTS,GROUND RENTS,200710,,,,*GC credit-side basic rent 25.06.13,622860
http://statistics.data.gov.uk/id/local-authority/00BU,Trafford,21/01/2019,1901293084,1000000001084,4.74,Scanlans Property Management,10146,,AM:GROUND RENTS,GROUND RENTS,200710,,,,*GC credit-side basic rent 25.06.14,622860
http://statistics.data.gov.uk/id/local-authority/00BU,Trafford,21/01/2019,1901293084,1000000001084,4.74,Scanlans Property Management,10146,,AM:GROUND RENTS,GROUND RENTS,200710,,,,*GC credit-side basic rent 25.06.15,622860
http://statistics.data.gov.uk/id/local-authority/00BU,Trafford,21/01/2019,1901293084,1000000001084,4.74,Scanlans Property Management,10146,,AM:GROUND RENTS,GROUND RENTS,200710,,,,*GC credit-side basic rent 25.06.16,622860
http://statistics.data.gov.uk/id/local-authority/00BU,Trafford,21/01/2019,1901293084,1000000001084,4.74,Scanlans Property Management,10146,,AM:GROUND RENTS,GROUND RENTS,200710,,,,*GC credit-side basic rent 25.06.17,622860
http://statistics.data.gov.uk/id/local-authority/00BU,Trafford,21/01/2019,1901293084,1000000001084,4.74,Scanlans Property Management,10146,,AM:GROUND RENTS,GROUND RENTS,200710,,,,*GC credit-side basic rent 25.06.18,622860
http://statistics.data.gov.uk/id/local-authority/00BU,Trafford,21/01/2019,1901293084,1000000001084,4.74,Scanlans Property Management,10146,,AM:GROUND RENTS,GROUND RENTS,200710,,,,*GC credit-side basic rent 25.06.12,622860
http://statistics.data.gov.uk/id/local-authority/00BU,Trafford,21/01/2019,1901293084,1000000001084,4.74,Scanlans Property Management,10146,,AM:GROUND RENTS,GROUND RENTS,200710,,,,*GC credit-side basic rent 25.06.13,622860
http://statistics.data.gov.uk/id/local-authority/00BU,Trafford,21/01/2019,1901293084,1000000001084,4.74,Scanlans Property Management,10146,,AM:GROUND RENTS,GROUND RENTS,200710,,,,*GC credit-side basic rent 25.06.14,622860
http://statistics.data.gov.uk/id/local-authority/00BU,Trafford,21/01/2019,1901293084,1000000001084,4.74,Scanlans Property Management,10146,,AM:GROUND RENTS,GROUND RENTS,200710,,,,*GC credit-side basic rent 25.06.15,622860
http://statistics.data.gov.uk/id/local-authority/00BU,Trafford,21/01/2019,1901293084,1000000001084,4.74,Scanlans Property Management,10146,,AM:GROUND RENTS,GROUND RENTS,200710,,,,*GC credit-side basic rent 25.06.16,622860
http://statistics.data.gov.uk/id/local-authority/00BU,Trafford,21/01/2019,1901293084,1000000001084,4.74,Scanlans Property Management,10146,,AM:GROUND RENTS,GROUND RENTS,200710,,,,*GC credit-side basic rent 25.06.17,622860
http://statistics.data.gov.uk/id/local-authority/00BU,Trafford,21/01/2019,1901293084,1000000001084,4.74,Scanlans Property Management,10146,,AM:GROUND RENTS,GROUND RENTS,200710,,,,*GC credit-side basic rent 25.06.18,622860
http://statistics.data.gov.uk/id/local-authority/00BU,Trafford,21/01/2019,1901293084,1000000001084,4.74,Scanlans Property Management,10146,,AM:GROUND RENTS,GROUND RENTS,200710,,,,*GC credit-side basic rent 25.06.12,622860
http://statistics.data.gov.uk/id/local-authority/00BU,Trafford,21/01/2019,1901293084,1000000001084,4.74,Scanlans Property Management,10146,,AM:GROUND RENTS,GROUND RENTS,200710,,,,*GC credit-side basic rent 25.06.13,622860
http://statistics.data.gov.uk/id/local-authority/00BU,Trafford,21/01/2019,1901293084,1000000001084,4.74,Scanlans Property Management,10146,,AM:GROUND RENTS,GROUND RENTS,200710,,,,*GC credit-side basic rent 25.06.14,622860
http://statistics.data.gov.uk/id/local-authority/00BU,Trafford,21/01/2019,1901293084,1000000001084,4.74,Scanlans Property Management,10146,,AM:GROUND RENTS,GROUND RENTS,200710,,,,*GC credit-side basic rent 25.06.15,622860
http://statistics.data.gov.uk/id/local-authority/00BU,Trafford,21/01/2019,1901293084,1000000001084,4.74,Scanlans Property Management,10146,,AM:GROUND RENTS,GROUND RENTS,200710,,,,*GC credit-side basic rent 25.06.16,622860
http://statistics.data.gov.uk/id/local-authority/00BU,Trafford,21/01/2019,1901293084,1000000001084,4.74,Scanlans Property Management,10146,,AM:GROUND RENTS,GROUND RENTS,200710,,,,*GC credit-side basic rent 25.06.17,622860
http://statistics.data.gov.uk/id/local-authority/00BU,Trafford,21/01/2019,1901293084,1000000001084,4.74,Scanlans Property Management,10146,,AM:GROUND RENTS,GROUND RENTS,200710,,,,*GC credit-side basic rent 25.06.18,622860
http://statistics.data.gov.uk/id/local-authority/00BU,Trafford,21/01/2019,1901293084,1000000001084,4.74,Scanlans Property Management,10146,,AM:GROUND RENTS,GROUND RENTS,200710,,,,*GC credit-side basic rent 25.06.12,622860
http://statistics.data.gov.uk/id/local-authority/00BU,Trafford,21/01/2019,1901293084,1000000001084,4.74,Scanlans Property Management,10146,,AM:GROUND RENTS,GROUND RENTS,200710,,,,*GC credit-side basic rent 25.06.13,622860
http://statistics.data.gov.uk/id/local-authority/00BU,Trafford,21/01/2019,1901293084,1000000001084,4.74,Scanlans Property Management,10146,,AM:GROUND RENTS,GROUND RENTS,200710,,,,*GC credit-side basic rent 25.06.14,622860
http://statistics.data.gov.uk/id/local-authority/00BU,Trafford,21/01/2019,1901293084,1000000001084,4.74,Scanlans Property Management,10146,,AM:GROUND RENTS,GROUND RENTS,200710,,,,*GC credit-side basic rent 25.06.15,622860
http://statistics.data.gov.uk/id/local-authority/00BU,Trafford,21/01/2019,1901293084,1000000001084,4.74,Scanlans Property Management,10146,,AM:GROUND RENTS,GROUND RENTS,200710,,,,*GC credit-side basic rent 25.06.16,622860
http://statistics.data.gov.uk/id/local-authority/00BU,Trafford,21/01/2019,1901293084,1000000001084,4.74,Scanlans Property Management,10146,,AM:GROUND RENTS,GROUND RENTS,200710,,,,*GC credit-side basic rent 25.06.17,622860
http://statistics.data.gov.uk/id/local-authority/00BU,Trafford,21/01/2019,1901293084,1000000001084,4.74,Scanlans Property Management,10146,,AM:GROUND RENTS,GROUND RENTS,200710,,,,*GC credit-side basic rent 25.06.18,622860
http://statistics.data.gov.uk/id/local-authority/00BU,Trafford,21/01/2019,1901293084,1000000001084,4.74,Scanlans Property Management,10146,,AM:GROUND RENTS,GROUND RENTS,200710,,,,*GC credit-side basic rent 25.06.12,622860
http://statistics.data.gov.uk/id/local-authority/00BU,Trafford,21/01/2019,1901293084,1000000001084,4.74,Scanlans Property Management,10146,,AM:GROUND RENTS,GROUND RENTS,200710,,,,*GC credit-side basic rent 25.06.13,622860
http://statistics.data.gov.uk/id/local-authority/00BU,Trafford,21/01/2019,1901293084,1000000001084,4.74,Scanlans Property Management,10146,,AM:GROUND RENTS,GROUND RENTS,200710,,,,*GC credit-side basic rent 25.06.14,622860
http://statistics.data.gov.uk/id/local-authority/00BU,Trafford,21/01/2019,1901293084,1000000001084,4.74,Scanlans Property Management,10146,,AM:GROUND RENTS,GROUND RENTS,200710,,,,*GC credit-side basic rent 25.06.15,622860
http://statistics.data.gov.uk/id/local-authority/00BU,Trafford,21/01/2019,1901293084,1000000001084,4.74,Scanlans Property Management,10146,,AM:GROUND RENTS,GROUND RENTS,200710,,,,*GC credit-side basic rent 25.06.16,622860
http://statistics.data.gov.uk/id/local-authority/00BU,Trafford,21/01/2019,1901293084,1000000001084,4.74,Scanlans Property Management,10146,,AM:GROUND RENTS,GROUND RENTS,200710,,,,*GC credit-side basic rent 25.06.17,622860
http://statistics.data.gov.uk/id/local-authority/00BU,Trafford,21/01/2019,1901293084,1000000001084,4.74,Scanlans Property Management,10146,,AM:GROUND RENTS,GROUND RENTS,200710,,,,*GC credit-side basic rent 25.06.18,622860
http://statistics.data.gov.uk/id/local-authority/00BU,Trafford,21/01/2019,1901293084,1000000001084,4.74,Scanlans Property Management,10146,,AM:GROUND RENTS,GROUND RENTS,200710,,,,*GC credit-side basic rent 25.06.12,622860
http://statistics.data.gov.uk/id/local-authority/00BU,Trafford,21/01/2019,1901293084,1000000001084,4.74,Scanlans Property Management,10146,,AM:GROUND RENTS,GROUND RENTS,200710,,,,*GC credit-side basic rent 25.06.13,622860
http://statistics.data.gov.uk/id/local-authority/00BU,Trafford,21/01/2019,1901293084,1000000001084,4.74,Scanlans Property Management,10146,,AM:GROUND RENTS,GROUND RENTS,200710,,,,*GC credit-side basic rent 25.06.14,622860
http://statistics.data.gov.uk/id/local-authority/00BU,Trafford,21/01/2019,1901293084,1000000001084,4.74,Scanlans Property Management,10146,,AM:GROUND RENTS,GROUND RENTS,200710,,,,*GC credit-side basic rent 25.06.15,622860
http://statistics.data.gov.uk/id/local-authority/00BU,Trafford,21/01/2019,1901293084,1000000001084,4.74,Scanlans Property Management,10146,,AM:GROUND RENTS,GROUND RENTS,200710,,,,*GC credit-side basic rent 25.06.16,622860
http://statistics.data.gov.uk/id/local-authority/00BU,Trafford,21/01/2019,1901293084,1000000001084,4.74,Scanlans Property Management,10146,,AM:GROUND RENTS,GROUND RENTS,200710,,,,*GC credit-side basic rent 25.06.17,622860
http://statistics.data.gov.uk/id/local-authority/00BU,Trafford,21/01/2019,1901293084,1000000001084,4.74,Scanlans Property Management,10146,,AM:GROUND RENTS,GROUND RENTS,200710,,,,*GC credit-side basic rent 25.06.18,622860
http://statistics.data.gov.uk/id/local-authority/00BU,Trafford,21/01/2019,1901293084,1000000001084,4.74,Scanlans Property Management,10146,,AM:GROUND RENTS,GROUND RENTS,200710,,,,*GC credit-side basic rent 25.06.12,622860
http://statistics.data.gov.uk/id/local-authority/00BU,Trafford,21/01/2019,1901293084,1000000001084,4.74,Scanlans Property Management,10146,,AM:GROUND RENTS,GROUND RENTS,200710,,,,*GC credit-side basic rent 25.06.13,622860
http://statistics.data.gov.uk/id/local-authority/00BU,Trafford,21/01/2019,1901293084,1000000001084,4.74,Scanlans Property Management,10146,,AM:GROUND RENTS,GROUND RENTS,200710,,,,*GC credit-side basic rent 25.06.14,622860
http://statistics.data.gov.uk/id/local-authority/00BU,Trafford,21/01/2019,1901293084,1000000001084,4.74,Scanlans Property Management,10146,,AM:GROUND RENTS,GROUND RENTS,200710,,,,*GC credit-side basic rent 25.06.15,622860
http://statistics.data.gov.uk/id/local-authority/00BU,Trafford,21/01/2019,1901293084,1000000001084,4.74,Scanlans Property Management,10146,,AM:GROUND RENTS,GROUND RENTS,200710,,,,*GC credit-side basic rent 25.06.16,622860
http://statistics.data.gov.uk/id/local-authority/00BU,Trafford,21/01/2019,1901293084,1000000001084,4.74,Scanlans Property Management,10146,,AM:GROUND RENTS,GROUND RENTS,200710,,,,*GC credit-side basic rent 25.06.17,622860
http://statistics.data.gov.uk/id/local-authority/00BU,Trafford,21/01/2019,1901293084,1000000001084,4.74,Scanlans Property Management,10146,,AM:GROUND RENTS,GROUND RENTS,200710,,,,*GC credit-side basic rent 25.06.18,622860
http://statistics.data.gov.uk/id/local-authority/00BU,Trafford,03/01/2019,1901290295,1000000001085,16.30,Jacobs UK Ltd,10166,GB624298920,AM:CHIEF RENTS,GROUND RENTS,200710,,,,*GC credit-side basic rent 01.01.19,622865
http://statistics.data.gov.uk/id/local-authority/00BU,Trafford,23/01/2019,5100362361,9201812,"2,407.00",Redacted,Redacted,,PP:ALTRINCHAM CREMAT,MEDICAL FEES,220432,,121000,CEMETERY: Burial & Cremation,med ref,540020
http://statistics.data.gov.uk/id/local-authority/00BU,Trafford,21/01/2019,1901293238,643360,"1,286.56",UBU,100030,GB687081992,LEARN DIS 18-64 LT,SUPP LIVING CONT,230530,,,,Redacted,157003
http://statistics.data.gov.uk/id/local-authority/00BU,Trafford,21/01/2019,1901293238,643360,"1,578.96",UBU,100030,GB687081992,LEARN DIS 18-64 LT,SUPP LIVING CONT,230530,,,,Redacted,157003
http://statistics.data.gov.uk/id/local-authority/00BU,Trafford,21/01/2019,1901293238,643360,"1,345.04",UBU,100030,GB687081992,LEARN DIS 18-64 LT,SUPP LIVING CONT,230530,,,,Redacted,157003
http://statistics.data.gov.uk/id/local-authority/00BU,Trafford,21/01/2019,1901293238,643360,"1,286.56",UBU,100030,GB687081992,PHYS SUPP 18-64 LT,SUPP LIVING CONT,230530,,,,Redacted,157000
http://statistics.data.gov.uk/id/local-authority/00BU,Trafford,21/01/2019,1901293238,643360,"1,345.04",UBU,100030,GB687081992,LEARN DIS 18-64 LT,SUPP LIVING CONT,230530,,,,Redacted,157003
http://statistics.data.gov.uk/id/local-authority/00BU,Trafford,21/01/2019,1901293238,643360,"23,324.60",UBU,100030,GB687081992,Redacted,SUPP LIVING CONT,230530,,,,Redacted,251381
http://statistics.data.gov.uk/id/local-authority/00BU,Trafford,21/01/2019,1901293239,643359,"1,000.16",UBU,100030,GB687081992,LEARN DIS 18-64 LT,SUPP LIVING CONT,230530,,,,Redacted,157003
http://statistics.data.gov.uk/id/local-authority/00BU,Trafford,21/01/2019,1901293239,643359,500.08,UBU,100030,GB687081992,PHYS SUPP 65-74 LT,SUPP LIVING CONT,230530,,,,Redacted,157010
http://statistics.data.gov.uk/id/local-authority/00BU,Trafford,21/01/2019,1901293239,643359,"1,105.44",UBU,100030,GB687081992,LEARN DIS 18-64 LT,SUPP LIVING CONT,230530,,,,Redacted,157003
http://statistics.data.gov.uk/id/local-authority/00BU,Trafford,21/01/2019,1901293239,643359,526.40,UBU,100030,GB687081992,LEARN DIS 65-74 LT,SUPP LIVING CONT,230530,,,,Redacted,157013
http://statistics.data.gov.uk/id/local-authority/00BU,Trafford,21/01/2019,1901293239,643359,"1,052.80",UBU,100030,GB687081992,LEARN DIS 18-64 LT,SUPP LIVING CONT,230530,,,,Redacted,157003
http://statistics.data.gov.uk/id/local-authority/00BU,Trafford,21/01/2019,1901293239,643359,"13,318.00",UBU,100030,GB687081992,Redacted,SUPP LIVING CONT,230530,,,,Redacted,251362
http://statistics.data.gov.uk/id/local-authority/00BU,Trafford,21/01/2019,1901293240,643361,783.00,UBU,100030,GB687081992,LEARN DIS 18-64 LT,SUPP LIVING CONT,230530,,,,Redacted,157003
http://statistics.data.gov.uk/id/local-authority/00BU,Trafford,21/01/2019,1901293240,643361,"1,107.00",UBU,100030,GB687081992,LEARN DIS 18-64 LT,SUPP LIVING CONT,230530,,,,Redacted,157003
http://statistics.data.gov.uk/id/local-authority/00BU,Trafford,21/01/2019,1901293240,643361,"1,377.00",UBU,100030,GB687081992,LEARN DIS 18-64 LT,SUPP LIVING CONT,230530,,,,Redacted,157003
http://statistics.data.gov.uk/id/local-authority/00BU,Trafford,21/01/2019,1901293240,643361,"10,578.96",UBU,100030,GB687081992,Redacted,SUPP LIVING CONT,230530,,,,Redacted,251364
http://statistics.data.gov.uk/id/local-authority/00BU,Trafford,21/01/2019,1901293241,643358,473.76,UBU,100030,GB687081992,LEARN DIS 18-64 LT,SUPP LIVING CONT,230530,,,,Redacted,157003
http://statistics.data.gov.uk/id/local-authority/00BU,Trafford,21/01/2019,1901293241,643358,368.48,UBU,100030,GB687081992,LEARN DIS 85+ LT,SUPP LIVING CONT,230530,,,,Redacted,157033
http://statistics.data.gov.uk/id/local-authority/00BU,Trafford,21/01/2019,1901293241,643358,473.76,UBU,100030,GB687081992,LEARN DIS 75-84 LT,SUPP LIVING CONT,230530,,,,Redacted,157023
http://statistics.data.gov.uk/id/local-authority/00BU,Trafford,21/01/2019,1901293241,643358,"12,686.20",UBU,100030,GB687081992,Redacted,SUPP LIVING CONT,230530,,,,Redacted,251361
http://statistics.data.gov.uk/id/local-authority/00BU,Trafford,16/01/2019,1901292954,361144,787.36,Creative Support Ltd,100160,,MENT HLT 18-64 LT,SUPP LIVING CONT,230530,,321014,SOCIAL CARE : Domiciliary Care,Redacted,157004
http://statistics.data.gov.uk/id/local-authority/00BU,Trafford,16/01/2019,1901292954,361144,"1,102.30",Creative Support Ltd,100160,,MENT HLT 18-64 LT,SUPP LIVING CONT,230530,,321014,SOCIAL CARE : Domiciliary Care,Redacted,157004
http://statistics.data.gov.uk/id/local-authority/00BU,Trafford,16/01/2019,1901292955,361145,787.36,Creative Support Ltd,100160,,MENT HLT 18-64 LT,SUPP LIVING CONT,230530,,321014,SOCIAL CARE : Domiciliary Care,Redacted,157004
http://statistics.data.gov.uk/id/local-authority/00BU,Trafford,16/01/2019,1901292955,361145,"1,102.30",Creative Support Ltd,100160,,MENT HLT 18-64 LT,SUPP LIVING CONT,230530,,321014,SOCIAL CARE : Domiciliary Care,Redacted,157004
http://statistics.data.gov.uk/id/local-authority/00BU,Trafford,16/01/2019,1901292956,361146,787.36,Creative Support Ltd,100160,,MENT HLT 18-64 LT,SUPP LIVING CONT,230530,,321014,SOCIAL CARE : Domiciliary Care,Redacted,157004
http://statistics.data.gov.uk/id/local-authority/00BU,Trafford,16/01/2019,1901292956,361146,"1,102.30",Creative Support Ltd,100160,,MENT HLT 18-64 LT,SUPP LIVING CONT,230530,,321014,SOCIAL CARE : Domiciliary Care,Redacted,157004
http://statistics.data.gov.uk/id/local-authority/00BU,Trafford,16/01/2019,1901292957,361147,787.36,Creative Support Ltd,100160,,MENT HLT 18-64 LT,SUPP LIVING CONT,230530,,321014,SOCIAL CARE : Domiciliary Care,Redacted,157004
http://statistics.data.gov.uk/id/local-authority/00BU,Trafford,16/01/2019,1901292957,361147,"1,102.30",Creative Support Ltd,100160,,MENT HLT 18-64 LT,SUPP LIVING CONT,230530,,321014,SOCIAL CARE : Domiciliary Care,Redacted,157004
http://statistics.data.gov.uk/id/local-authority/00BU,Trafford,16/01/2019,1901292958,361050,914.56,Creative Support Ltd,100160,,LEARN DIS 18-64 LT,SUPP LIVING CONT,230530,,321014,SOCIAL CARE : Domiciliary Care,Redacted,157003
http://statistics.data.gov.uk/id/local-authority/00BU,Trafford,16/01/2019,1901292958,361050,"1,829.12",Creative Support Ltd,100160,,LEARN DIS 18-64 LT,SUPP LIVING CONT,230530,,321014,SOCIAL CARE : Domiciliary Care,Redacted,157003
http://statistics.data.gov.uk/id/local-authority/00BU,Trafford,16/01/2019,1901292958,361050,914.56,Creative Support Ltd,100160,,LEARN DIS 18-64 LT,SUPP LIVING CONT,230530,,321014,SOCIAL CARE : Domiciliary Care,Redacted,157003
http://statistics.data.gov.uk/id/local-authority/00BU,Trafford,16/01/2019,1901292958,361050,"5,487.36",Creative Support Ltd,100160,,LEARN DIS 18-64 LT,SUPP LIVING CONT,230530,,321014,SOCIAL CARE : Domiciliary Care,Redacted,157003
http://statistics.data.gov.uk/id/local-authority/00BU,Trafford,16/01/2019,1901292958,361050,"1,257.52",Creative Support Ltd,100160,,LEARN DIS 65-74 LT,SUPP LIVING CONT,230530,,321014,SOCIAL CARE : Domiciliary Care,Redacted,157013
http://statistics.data.gov.uk/id/local-authority/00BU,Trafford,16/01/2019,1901292958,361050,"18,355.20",Creative Support Ltd,100160,,SUPPORTED LVG BLOCKS,SUPP LIVING CONT,230530,,321014,SOCIAL CARE : Domiciliary Care,Redacted,251342
http://statistics.data.gov.uk/id/local-authority/00BU,Trafford,16/01/2019,1901292959,361047,"2,400.72",Creative Support Ltd,100160,,LEARN DIS 18-64 LT,SUPP LIVING CONT,230530,,321014,SOCIAL CARE : Domiciliary Care,Redacted,157003
http://statistics.data.gov.uk/id/local-authority/00BU,Trafford,16/01/2019,1901292959,361047,"1,714.80",Creative Support Ltd,100160,,LEARN DIS 18-64 LT,SUPP LIVING CONT,230530,,321014,SOCIAL CARE : Domiciliary Care,Redacted,157003
http://statistics.data.gov.uk/id/local-authority/00BU,Trafford,16/01/2019,1901292959,361047,"1,429.00",Creative Support Ltd,100160,,LEARN DIS 18-64 LT,SUPP LIVING CONT,230530,,321014,SOCIAL CARE : Domiciliary Care,Redacted,157003
http://statistics.data.gov.uk/id/local-authority/00BU,Trafford,16/01/2019,1901292959,361047,"12,718.08",Creative Support Ltd,100160,,SUPPORTED LVG BLOCKS,SUPP LIVING CONT,230530,,321014,SOCIAL CARE : Domiciliary Care,Redacted,251342
http://statistics.data.gov.uk/id/local-authority/00BU,Trafford,16/01/2019,1901292960,361046,700.21,Creative Support Ltd,100160,,LEARN DIS 65-74 LT,SUPP LIVING CONT,230530,,321014,SOCIAL CARE : Domiciliary Care,Redacted,157013
http://statistics.data.gov.uk/id/local-authority/00BU,Trafford,16/01/2019,1901292960,361046,700.21,Creative Support Ltd,100160,,LEARN DIS 18-64 LT,SUPP LIVING CONT,230530,,321014,SOCIAL CARE : Domiciliary Care,Redacted,157003
http://statistics.data.gov.uk/id/local-authority/00BU,Trafford,16/01/2019,1901292960,361046,50.02,Creative Support Ltd,100160,,LEARN DIS 75-84 LT,SUPP LIVING CONT,230530,,321014,SOCIAL CARE : Domiciliary Care,Redacted,157023
http://statistics.data.gov.uk/id/local-authority/00BU,Trafford,16/01/2019,1901292960,361046,700.21,Creative Support Ltd,100160,,LEARN DIS 65-74 LT,SUPP LIVING CONT,230530,,321014,SOCIAL CARE : Domiciliary Care,Redacted,157013
http://statistics.data.gov.uk/id/local-authority/00BU,Trafford,16/01/2019,1901292960,361046,"8,752.32",Creative Support Ltd,100160,,SUPPORTED LVG BLOCKS,SUPP LIVING CONT,230530,,321014,SOCIAL CARE : Domiciliary Care,Redacted,251342
http://statistics.data.gov.uk/id/local-authority/00BU,Trafford,16/01/2019,1901292961,361048,"1,343.26",Creative Support Ltd,100160,,LEARN DIS 18-64 LT,SUPP LIVING CONT,230530,,321014,SOCIAL CARE : Domiciliary Care,Redacted,157003
http://statistics.data.gov.uk/id/local-authority/00BU,Trafford,16/01/2019,1901292961,361048,"1,343.26",Creative Support Ltd,100160,,LEARN DIS 18-64 LT,SUPP LIVING CONT,230530,,321014,SOCIAL CARE : Domiciliary Care,Redacted,157003
http://statistics.data.gov.uk/id/local-authority/00BU,Trafford,16/01/2019,1901292961,361048,"9,602.08",Creative Support Ltd,100160,,SUPPORTED LVG BLOCKS,SUPP LIVING CONT,230530,,321014,SOCIAL CARE : Domiciliary Care,Redacted,251342
http://statistics.data.gov.uk/id/local-authority/00BU,Trafford,16/01/2019,1901292962,361049,"1,028.88",Creative Support Ltd,100160,,LEARN DIS 18-64 LT,SUPP LIVING CONT,230530,,321014,SOCIAL CARE : Domiciliary Care,Redacted,157003
http://statistics.data.gov.uk/id/local-authority/00BU,Trafford,16/01/2019,1901292962,361049,857.40,Creative Support Ltd,100160,,LEARN DIS 75-84 LT,SUPP LIVING CONT,230530,,321014,SOCIAL CARE : Domiciliary Care,Redacted,157023
http://statistics.data.gov.uk/id/local-authority/00BU,Trafford,16/01/2019,1901292962,361049,857.40,Creative Support Ltd,100160,,LEARN DIS 18-64 LT,SUPP LIVING CONT,230530,,321014,SOCIAL CARE : Domiciliary Care,Redacted,157003
http://statistics.data.gov.uk/id/local-authority/00BU,Trafford,16/01/2019,1901292962,361049,"16,547.80",Creative Support Ltd,100160,,SUPPORTED LVG BLOCKS,SUPP LIVING CONT,230530,,321014,SOCIAL CARE : Domiciliary Care,Redacted,251342
http://statistics.data.gov.uk/id/local-authority/00BU,Trafford,16/01/2019,1901292963,360334,81.11,Creative Support Ltd,100160,,SOCIAL SUPPORT 18-64,SUPP LIVING CONT,230530,,321014,SOCIAL CARE : Domiciliary Care,Redacted,157005
http://statistics.data.gov.uk/id/local-authority/00BU,Trafford,16/01/2019,1901292963,360334,"2,270.96",Creative Support Ltd,100160,,SOCIAL SUPPORT 18-64,SUPP LIVING CONT,230530,,321014,SOCIAL CARE : Domiciliary Care,Redacted,157005
http://statistics.data.gov.uk/id/local-authority/00BU,Trafford,16/01/2019,1901292963,360334,"2,270.96",Creative Support Ltd,100160,,SOCIAL SUPPORT 18-64,SUPP LIVING CONT,230530,,321014,SOCIAL CARE : Domiciliary Care,Redacted,157005
http://statistics.data.gov.uk/id/local-authority/00BU,Trafford,16/01/2019,1901292963,360334,"2,270.96",Creative Support Ltd,100160,,SOCIAL SUPPORT 18-64,SUPP LIVING CONT,230530,,321014,SOCIAL CARE : Domiciliary Care,Redacted,157005
http://statistics.data.gov.uk/id/local-authority/00BU,Trafford,16/01/2019,1901292963,360334,"2,270.96",Creative Support Ltd,100160,,SOCIAL SUPPORT 18-64,SUPP LIVING CONT,230530,,321014,SOCIAL CARE : Domiciliary Care,Redacted,157005
http://statistics.data.gov.uk/id/local-authority/00BU,Trafford,16/01/2019,1901292963,360334,"2,270.96",Creative Support Ltd,100160,,SOCIAL SUPPORT 18-64,SUPP LIVING CONT,230530,,321014,SOCIAL CARE : Domiciliary Care,Redacted,157005
http://statistics.data.gov.uk/id/local-authority/00BU,Trafford,16/01/2019,1901292963,360334,"2,270.96",Creative Support Ltd,100160,,SOCIAL SUPPORT 18-64,SUPP LIVING CONT,230530,,321014,SOCIAL CARE : Domiciliary Care,Redacted,157005
http://statistics.data.gov.uk/id/local-authority/00BU,Trafford,16/01/2019,1901292963,360334,"2,270.96",Creative Support Ltd,100160,,SOCIAL SUPPORT 18-64,SUPP LIVING CONT,230530,,321014,SOCIAL CARE : Domiciliary Care,Redacted,157005
http://statistics.data.gov.uk/id/local-authority/00BU,Trafford,16/01/2019,1901292963,360334,"2,270.96",Creative Support Ltd,100160,,SOCIAL SUPPORT 18-64,SUPP LIVING CONT,230530,,321014,SOCIAL CARE : Domiciliary Care,Redacted,157005
http://statistics.data.gov.uk/id/local-authority/00BU,Trafford,16/01/2019,1901292963,360334,"2,270.96",Creative Support Ltd,100160,,SOCIAL SUPPORT 18-64,SUPP LIVING CONT,230530,,321014,SOCIAL CARE : Domiciliary Care,Redacted,157005
http://statistics.data.gov.uk/id/local-authority/00BU,Trafford,16/01/2019,1901292963,360334,"2,270.96",Creative Support Ltd,100160,,SOCIAL SUPPORT 18-64,SUPP LIVING CONT,230530,,321014,SOCIAL CARE : Domiciliary Care,Redacted,157005
http://statistics.data.gov.uk/id/local-authority/00BU,Trafford,16/01/2019,1901292963,360334,"2,448.72",Creative Support Ltd,100160,,SOCIAL SUPPORT 18-64,SUPP LIVING CONT,230530,,321014,SOCIAL CARE : Domiciliary Care,Redacted,157005
http://statistics.data.gov.uk/id/local-authority/00BU,Trafford,16/01/2019,1901292963,360334,-85.00,Creative Support Ltd,100160,,SOCIAL SUPPORT 18-64,SUPP LIVING CONT,230530,,321014,SOCIAL CARE : Domiciliary Care,Redacted,157005
http://statistics.data.gov.uk/id/local-authority/00BU,Trafford,16/01/2019,1901292963,360334,"-2,380.00",Creative Support Ltd,100160,,SOCIAL SUPPORT 18-64,SUPP LIVING CONT,230530,,321014,SOCIAL CARE : Domiciliary Care,Redacted,157005
http://statistics.data.gov.uk/id/local-authority/00BU,Trafford,16/01/2019,1901292963,360334,"-2,380.00",Creative Support Ltd,100160,,SOCIAL SUPPORT 18-64,SUPP LIVING CONT,230530,,321014,SOCIAL CARE : Domiciliary Care,Redacted,157005
http://statistics.data.gov.uk/id/local-authority/00BU,Trafford,16/01/2019,1901292963,360334,"-2,380.00",Creative Support Ltd,100160,,SOCIAL SUPPORT 18-64,SUPP LIVING CONT,230530,,321014,SOCIAL CARE : Domiciliary Care,Redacted,157005
http://statistics.data.gov.uk/id/local-authority/00BU,Trafford,16/01/2019,1901292963,360334,"-2,448.72",Creative Support Ltd,100160,,SOCIAL SUPPORT 18-64,SUPP LIVING CONT,230530,,321014,SOCIAL CARE : Domiciliary Care,Redacted,157005
http://statistics.data.gov.uk/id/local-authority/00BU,Trafford,16/01/2019,1901292963,360334,"-2,448.72",Creative Support Ltd,100160,,SOCIAL SUPPORT 18-64,SUPP LIVING CONT,230530,,321014,SOCIAL CARE : Domiciliary Care,Redacted,157005
http://statistics.data.gov.uk/id/local-authority/00BU,Trafford,16/01/2019,1901292963,360334,"-2,448.72",Creative Support Ltd,100160,,SOCIAL SUPPORT 18-64,SUPP LIVING CONT,230530,,321014,SOCIAL CARE : Domiciliary Care,Redacted,157005
http://statistics.data.gov.uk/id/local-authority/00BU,Trafford,16/01/2019,1901292963,360334,"-2,448.72",Creative Support Ltd,100160,,SOCIAL SUPPORT 18-64,SUPP LIVING CONT,230530,,321014,SOCIAL CARE : Domiciliary Care,Redacted,157005
http://statistics.data.gov.uk/id/local-authority/00BU,Trafford,16/01/2019,1901292964,361136,58.52,Creative Support Ltd,100160,,MENT HLT 18-64 LT,EXT DOM CARE SPOT CO,230845,,321014,SOCIAL CARE : Domiciliary Care,Redacted,157004
http://statistics.data.gov.uk/id/local-authority/00BU,Trafford,16/01/2019,1901292964,361136,58.52,Creative Support Ltd,100160,,MENT HLT 18-64 LT,EXT DOM CARE SPOT CO,230845,,321014,SOCIAL CARE : Domiciliary Care,Redacted,157004
http://statistics.data.gov.uk/id/local-authority/00BU,Trafford,16/01/2019,1901292964,361136,58.52,Creative Support Ltd,100160,,MENT HLT 18-64 LT,EXT DOM CARE SPOT CO,230845,,321014,SOCIAL CARE : Domiciliary Care,Redacted,157004
http://statistics.data.gov.uk/id/local-authority/00BU,Trafford,16/01/2019,1901292964,361136,58.52,Creative Support Ltd,100160,,MENT HLT 18-64 LT,EXT DOM CARE SPOT CO,230845,,321014,SOCIAL CARE : Domiciliary Care,Redacted,157004
http://statistics.data.gov.uk/id/local-authority/00BU,Trafford,16/01/2019,1901292965,361137,43.89,Creative Support Ltd,100160,,MENT HLT 18-64 LT,EXT DOM CARE SPOT CO,230845,,321014,SOCIAL CARE : Domiciliary Care,Redacted,157004
http://statistics.data.gov.uk/id/local-authority/00BU,Trafford,16/01/2019,1901292965,361137,43.89,Creative Support Ltd,100160,,MENT HLT 18-64 LT,EXT DOM CARE SPOT CO,230845,,321014,SOCIAL CARE : Domiciliary Care,Redacted,157004
http://statistics.data.gov.uk/id/local-authority/00BU,Trafford,16/01/2019,1901292965,361137,43.89,Creative Support Ltd,100160,,MENT HLT 18-64 LT,EXT DOM CARE SPOT CO,230845,,321014,SOCIAL CARE : Domiciliary Care,Redacted,157004
http://statistics.data.gov.uk/id/local-authority/00BU,Trafford,16/01/2019,1901292965,361137,43.89,Creative Support Ltd,100160,,MENT HLT 18-64 LT,EXT DOM CARE SPOT CO,230845,,321014,SOCIAL CARE : Domiciliary Care,Redacted,157004
http://statistics.data.gov.uk/id/local-authority/00BU,Trafford,16/01/2019,1901292966,361138,43.89,Creative Support Ltd,100160,,MENT HLT 18-64 LT,EXT DOM CARE SPOT CO,230845,,321014,SOCIAL CARE : Domiciliary Care,Redacted,157004
http://statistics.data.gov.uk/id/local-authority/00BU,Trafford,16/01/2019,1901292966,361138,43.89,Creative Support Ltd,100160,,MENT HLT 18-64 LT,EXT DOM CARE SPOT CO,230845,,321014,SOCIAL CARE : Domiciliary Care,Redacted,157004
http://statistics.data.gov.uk/id/local-authority/00BU,Trafford,16/01/2019,1901292966,361138,43.89,Creative Support Ltd,100160,,MENT HLT 18-64 LT,EXT DOM CARE SPOT CO,230845,,321014,SOCIAL CARE : Domiciliary Care,Redacted,157004
http://statistics.data.gov.uk/id/local-authority/00BU,Trafford,16/01/2019,1901292966,361138,43.89,Creative Support Ltd,100160,,MENT HLT 18-64 LT,EXT DOM CARE SPOT CO,230845,,321014,SOCIAL CARE : Domiciliary Care,Redacted,157004
http://statistics.data.gov.uk/id/local-authority/00BU,Trafford,16/01/2019,1901292967,361139,153.62,Creative Support Ltd,100160,,MENT HLT 65-74 LT,EXT DOM CARE SPOT CO,230845,,321014,SOCIAL CARE : Domiciliary Care,Redacted,157014
http://statistics.data.gov.uk/id/local-authority/00BU,Trafford,16/01/2019,1901292967,361139,153.62,Creative Support Ltd,100160,,MENT HLT 65-74 LT,EXT DOM CARE SPOT CO,230845,,321014,SOCIAL CARE : Domiciliary Care,Redacted,157014
http://statistics.data.gov.uk/id/local-authority/00BU,Trafford,16/01/2019,1901292967,361139,153.62,Creative Support Ltd,100160,,MENT HLT 65-74 LT,EXT DOM CARE SPOT CO,230845,,321014,SOCIAL CARE : Domiciliary Care,Redacted,157014
http://statistics.data.gov.uk/id/local-authority/00BU,Trafford,16/01/2019,1901292967,361139,153.62,Creative Support Ltd,100160,,MENT HLT 65-74 LT,EXT DOM CARE SPOT CO,230845,,321014,SOCIAL CARE : Domiciliary Care,Redacted,157014
http://statistics.data.gov.uk/id/local-authority/00BU,Trafford,16/01/2019,1901292968,361140,256.03,Creative Support Ltd,100160,,MENT HLT 18-64 LT,EXT DOM CARE SPOT CO,230845,,321014,SOCIAL CARE : Domiciliary Care,Redacted,157004
http://statistics.data.gov.uk/id/local-authority/00BU,Trafford,16/01/2019,1901292968,361140,256.03,Creative Support Ltd,100160,,MENT HLT 18-64 LT,EXT DOM CARE SPOT CO,230845,,321014,SOCIAL CARE : Domiciliary Care,Redacted,157004
http://statistics.data.gov.uk/id/local-authority/00BU,Trafford,16/01/2019,1901292968,361140,256.03,Creative Support Ltd,100160,,MENT HLT 18-64 LT,EXT DOM CARE SPOT CO,230845,,321014,SOCIAL CARE : Domiciliary Care,Redacted,157004
http://statistics.data.gov.uk/id/local-authority/00BU,Trafford,16/01/2019,1901292968,361140,256.03,Creative Support Ltd,100160,,MENT HLT 18-64 LT,EXT DOM CARE SPOT CO,230845,,321014,SOCIAL CARE : Domiciliary Care,Redacted,157004
http://statistics.data.gov.uk/id/local-authority/00BU,Trafford,16/01/2019,1901292969,361141,73.15,Creative Support Ltd,100160,,PHYS SUPP 18-64 LT,EXT DOM CARE SPOT CO,230845,,321014,SOCIAL CARE : Domiciliary Care,Redacted,157000
http://statistics.data.gov.uk/id/local-authority/00BU,Trafford,16/01/2019,1901292969,361141,73.15,Creative Support Ltd,100160,,PHYS SUPP 18-64 LT,EXT DOM CARE SPOT CO,230845,,321014,SOCIAL CARE : Domiciliary Care,Redacted,157000
http://statistics.data.gov.uk/id/local-authority/00BU,Trafford,16/01/2019,1901292969,361141,73.15,Creative Support Ltd,100160,,PHYS SUPP 18-64 LT,EXT DOM CARE SPOT CO,230845,,321014,SOCIAL CARE : Domiciliary Care,Redacted,157000
http://statistics.data.gov.uk/id/local-authority/00BU,Trafford,16/01/2019,1901292969,361141,73.15,Creative Support Ltd,100160,,PHYS SUPP 18-64 LT,EXT DOM CARE SPOT CO,230845,,321014,SOCIAL CARE : Domiciliary Care,Redacted,157000
http://statistics.data.gov.uk/id/local-authority/00BU,Trafford,16/01/2019,1901292970,361142,"10,287.20",Creative Support Ltd,100160,,LEARN DIS 18-64 LT,SUPP LIVING CONT,230530,,321014,SOCIAL CARE : Domiciliary Care,Redacted,157003
http://statistics.data.gov.uk/id/local-authority/00BU,Trafford,16/01/2019,1901292982,361518,"7,247.76",Creative Support Ltd,100160,,JOULES HOUSE PROJECT,SUPP LIVING CONT,230530,,321014,SOCIAL CARE : Domiciliary Care,Redacted,253075
http://statistics.data.gov.uk/id/local-authority/00BU,Trafford,16/01/2019,1901292983,361935,745.92,Creative Support Ltd,100160,,LEARN DIS 18-64 LT,SUPP LIVING CONT,230530,,321014,SOCIAL CARE : Domiciliary Care,Redacted,157003
http://statistics.data.gov.uk/id/local-authority/00BU,Trafford,16/01/2019,1901292983,361935,"1,731.60",Creative Support Ltd,100160,,LEARN DIS 18-64 LT,SUPP LIVING CONT,230530,,321014,SOCIAL CARE : Domiciliary Care,Redacted,157003
http://statistics.data.gov.uk/id/local-authority/00BU,Trafford,16/01/2019,1901292983,361935,119.88,Creative Support Ltd,100160,,LEARN DIS 18-64 LT,SUPP LIVING CONT,230530,,321014,SOCIAL CARE : Domiciliary Care,Redacted,157003
http://statistics.data.gov.uk/id/local-authority/00BU,Trafford,16/01/2019,1901292983,361935,905.76,Creative Support Ltd,100160,,LEARN DIS 18-64 LT,SUPP LIVING CONT,230530,,321014,SOCIAL CARE : Domiciliary Care,Redacted,157003
http://statistics.data.gov.uk/id/local-authority/00BU,Trafford,16/01/2019,1901292983,361935,"1,571.76",Creative Support Ltd,100160,,LEARN DIS 18-64 LT,SUPP LIVING CONT,230530,,321014,SOCIAL CARE : Domiciliary Care,Redacted,157003
http://statistics.data.gov.uk/id/local-authority/00BU,Trafford,16/01/2019,1901292983,361935,426.24,Creative Support Ltd,100160,,LEARN DIS 18-64 LT,SUPP LIVING CONT,230530,,321014,SOCIAL CARE : Domiciliary Care,Redacted,157003
http://statistics.data.gov.uk/id/local-authority/00BU,Trafford,16/01/2019,1901292983,361935,852.48,Creative Support Ltd,100160,,LEARN DIS 18-64 LT,SUPP LIVING CONT,230530,,321014,SOCIAL CARE : Domiciliary Care,Redacted,157003
http://statistics.data.gov.uk/id/local-authority/00BU,Trafford,16/01/2019,1901292983,361935,"15,326.16",Creative Support Ltd,100160,,Creative Support Blo,SUPP LIVING CONT,230530,,321014,SOCIAL CARE : Domiciliary Care,Redacted,251390
http://statistics.data.gov.uk/id/local-authority/00BU,Trafford,16/01/2019,1901292985,362274,426.24,Creative Support Ltd,100160,,LEARN DIS 18-64 LT,SUPP LIVING CONT,230530,,321014,SOCIAL CARE : Domiciliary Care,Redacted,157003
http://statistics.data.gov.uk/id/local-authority/00BU,Trafford,16/01/2019,1901292985,362274,852.48,Creative Support Ltd,100160,,LEARN DIS 18-64 LT,SUPP LIVING CONT,230530,,321014,SOCIAL CARE : Domiciliary Care,Redacted,157003
http://statistics.data.gov.uk/id/local-authority/00BU,Trafford,16/01/2019,1901292985,362274,852.48,Creative Support Ltd,100160,,LEARN DIS 18-64 LT,SUPP LIVING CONT,230530,,321014,SOCIAL CARE : Domiciliary Care,Redacted,157003
http://statistics.data.gov.uk/id/local-authority/00BU,Trafford,16/01/2019,1901292985,362274,-612.72,Creative Support Ltd,100160,,LEARN DIS 18-64 LT,SUPP LIVING CONT,230530,,321014,SOCIAL CARE : Domiciliary Care,Redacted,157003
http://statistics.data.gov.uk/id/local-authority/00BU,Trafford,16/01/2019,1901292985,362274,"-1,225.44",Creative Support Ltd,100160,,LEARN DIS 18-64 LT,SUPP LIVING CONT,230530,,321014,SOCIAL CARE : Domiciliary Care,Redacted,157003
http://statistics.data.gov.uk/id/local-authority/00BU,Trafford,16/01/2019,1901292985,362274,"1,704.96",Creative Support Ltd,100160,,LEARN DIS 18-64 LT,SUPP LIVING CONT,230530,,321014,SOCIAL CARE : Domiciliary Care,Redacted,157003
http://statistics.data.gov.uk/id/local-authority/00BU,Trafford,16/01/2019,1901292985,362274,799.20,Creative Support Ltd,100160,,LEARN DIS 18-64 LT,SUPP LIVING CONT,230530,,321014,SOCIAL CARE : Domiciliary Care,Redacted,157003
http://statistics.data.gov.uk/id/local-authority/00BU,Trafford,16/01/2019,1901292985,362274,"1,118.88",Creative Support Ltd,100160,,LEARN DIS 18-64 LT,SUPP LIVING CONT,230530,,321014,SOCIAL CARE : Domiciliary Care,Redacted,157003
http://statistics.data.gov.uk/id/local-authority/00BU,Trafford,16/01/2019,1901292985,362274,"1,065.60",Creative Support Ltd,100160,,LEARN DIS 18-64 LT,SUPP LIVING CONT,230530,,321014,SOCIAL CARE : Domiciliary Care,Redacted,157003
http://statistics.data.gov.uk/id/local-authority/00BU,Trafford,16/01/2019,1901292985,362274,"12,654.00",Creative Support Ltd,100160,,UBU-25 SEAMONS ROAD,SUPP LIVING CONT,230530,,321014,SOCIAL CARE : Domiciliary Care,Redacted,251360
http://statistics.data.gov.uk/id/local-authority/00BU,Trafford,16/01/2019,1901292986,362275,852.48,Creative Support Ltd,100160,,LEARN DIS 18-64 LT,SUPP LIVING CONT,230530,,321014,SOCIAL CARE : Domiciliary Care,Redacted,157003
http://statistics.data.gov.uk/id/local-authority/00BU,Trafford,16/01/2019,1901292986,362275,"1,704.96",Creative Support Ltd,100160,,LEARN DIS 18-64 LT,SUPP LIVING CONT,230530,,321014,SOCIAL CARE : Domiciliary Care,Redacted,157003
http://statistics.data.gov.uk/id/local-authority/00BU,Trafford,16/01/2019,1901292986,362275,799.20,Creative Support Ltd,100160,,LEARN DIS 18-64 LT,SUPP LIVING CONT,230530,,321014,SOCIAL CARE : Domiciliary Care,Redacted,157003
http://statistics.data.gov.uk/id/local-authority/00BU,Trafford,16/01/2019,1901292986,362275,"1,118.88",Creative Support Ltd,100160,,LEARN DIS 18-64 LT,SUPP LIVING CONT,230530,,321014,SOCIAL CARE : Domiciliary Care,Redacted,157003
http://statistics.data.gov.uk/id/local-authority/00BU,Trafford,16/01/2019,1901292986,362275,"1,065.60",Creative Support Ltd,100160,,LEARN DIS 18-64 LT,SUPP LIVING CONT,230530,,321014,SOCIAL CARE : Domiciliary Care,Redacted,157003
http://statistics.data.gov.uk/id/local-authority/00BU,Trafford,16/01/2019,1901292986,362275,"12,654.00",Creative Support Ltd,100160,,UBU-25 SEAMONS ROAD,SUPP LIVING CONT,230530,,321014,SOCIAL CARE : Domiciliary Care,Redacted,251360
http://statistics.data.gov.uk/id/local-authority/00BU,Trafford,16/01/2019,1901292987,361517,"1,704.64",Creative Support Ltd,100160,,JOULES HOUSE PROJECT,SUPP LIVING CONT,230530,,321014,SOCIAL CARE : Domiciliary Care,Redacted,253075
http://statistics.data.gov.uk/id/local-authority/00BU,Trafford,16/01/2019,1901292998,361525,"1,134.00",Creative Support Ltd,100160,,CRISIS BED,SUPP LIVING CONT,230530,,321014,SOCIAL CARE : Domiciliary Care,Redacted,253246
http://statistics.data.gov.uk/id/local-authority/00BU,Trafford,16/01/2019,1901292999,361526,"19,493.80",Creative Support Ltd,100160,,CreativeSupp Respite,EXT RES CARE FEES,230842,,321014,SOCIAL CARE : Domiciliary Care,Redacted,251216
http://statistics.data.gov.uk/id/local-authority/00BU,Trafford,16/01/2019,1901293002,361519,"19,764.68",Creative Support Ltd,100160,,JOULES HOUSE PROJECT,SUPP LIVING CONT,230530,,321014,SOCIAL CARE : Domiciliary Care,Redacted,253075
http://statistics.data.gov.uk/id/local-authority/00BU,Trafford,16/01/2019,1901293008,361148,787.36,Creative Support Ltd,100160,,MENT HLT 18-64 LT,SUPP LIVING CONT,230530,,321014,SOCIAL CARE : Domiciliary Care,Redacted,157004
http://statistics.data.gov.uk/id/local-authority/00BU,Trafford,16/01/2019,1901293008,361148,"1,102.30",Creative Support Ltd,100160,,MENT HLT 18-64 LT,SUPP LIVING CONT,230530,,321014,SOCIAL CARE : Domiciliary Care,Redacted,157004
http://statistics.data.gov.uk/id/local-authority/00BU,Trafford,16/01/2019,1901293009,361159,"2,057.76",Creative Support Ltd,100160,,LEARN DIS 18-64 LT,SUPP LIVING CONT,230530,,321014,SOCIAL CARE : Domiciliary Care,Redacted,157003
http://statistics.data.gov.uk/id/local-authority/00BU,Trafford,16/01/2019,1901293009,361159,"2,172.08",Creative Support Ltd,100160,,LEARN DIS 18-64 LT,SUPP LIVING CONT,230530,,321014,SOCIAL CARE : Domiciliary Care,Redacted,157003
http://statistics.data.gov.uk/id/local-authority/00BU,Trafford,16/01/2019,1901293009,361159,"1,714.80",Creative Support Ltd,100160,,LEARN DIS 18-64 LT,SUPP LIVING CONT,230530,,321014,SOCIAL CARE : Domiciliary Care,Redacted,157003
http://statistics.data.gov.uk/id/local-authority/00BU,Trafford,16/01/2019,1901293009,361159,"15,204.60",Creative Support Ltd,100160,,SUPPORTED LVG BLOCKS,SUPP LIVING CONT,230530,,321014,SOCIAL CARE : Domiciliary Care,Redacted,251342
http://statistics.data.gov.uk/id/local-authority/00BU,Trafford,16/01/2019,1901293010,361151,87.78,Creative Support Ltd,100160,,MENT HLT 18-64 LT,EXT DOM CARE SPOT CO,230845,,321014,SOCIAL CARE : Domiciliary Care,Redacted,157004
http://statistics.data.gov.uk/id/local-authority/00BU,Trafford,16/01/2019,1901293010,361151,87.78,Creative Support Ltd,100160,,MENT HLT 18-64 LT,EXT DOM CARE SPOT CO,230845,,321014,SOCIAL CARE : Domiciliary Care,Redacted,157004
http://statistics.data.gov.uk/id/local-authority/00BU,Trafford,16/01/2019,1901293010,361151,87.78,Creative Support Ltd,100160,,MENT HLT 18-64 LT,EXT DOM CARE SPOT CO,230845,,321014,SOCIAL CARE : Domiciliary Care,Redacted,157004
http://statistics.data.gov.uk/id/local-authority/00BU,Trafford,16/01/2019,1901293010,361151,87.78,Creative Support Ltd,100160,,MENT HLT 18-64 LT,EXT DOM CARE SPOT CO,230845,,321014,SOCIAL CARE : Domiciliary Care,Redacted,157004
http://statistics.data.gov.uk/id/local-authority/00BU,Trafford,16/01/2019,1901293011,361153,95.10,Creative Support Ltd,100160,,MENT HLT 18-64 LT,EXT DOM CARE SPOT CO,230845,,321014,SOCIAL CARE : Domiciliary Care,Redacted,157004
http://statistics.data.gov.uk/id/local-authority/00BU,Trafford,16/01/2019,1901293011,361153,95.10,Creative Support Ltd,100160,,MENT HLT 18-64 LT,EXT DOM CARE SPOT CO,230845,,321014,SOCIAL CARE : Domiciliary Care,Redacted,157004
http://statistics.data.gov.uk/id/local-authority/00BU,Trafford,16/01/2019,1901293011,361153,95.10,Creative Support Ltd,100160,,MENT HLT 18-64 LT,EXT DOM CARE SPOT CO,230845,,321014,SOCIAL CARE : Domiciliary Care,Redacted,157004
http://statistics.data.gov.uk/id/local-authority/00BU,Trafford,16/01/2019,1901293011,361153,95.10,Creative Support Ltd,100160,,MENT HLT 18-64 LT,EXT DOM CARE SPOT CO,230845,,321014,SOCIAL CARE : Domiciliary Care,Redacted,157004
http://statistics.data.gov.uk/id/local-authority/00BU,Trafford,16/01/2019,1901293012,361158,43.89,Creative Support Ltd,100160,,MENT HLT 18-64 LT,EXT DOM CARE SPOT CO,230845,,321014,SOCIAL CARE : Domiciliary Care,Redacted,157004
http://statistics.data.gov.uk/id/local-authority/00BU,Trafford,16/01/2019,1901293012,361158,43.89,Creative Support Ltd,100160,,MENT HLT 18-64 LT,EXT DOM CARE SPOT CO,230845,,321014,SOCIAL CARE : Domiciliary Care,Redacted,157004
http://statistics.data.gov.uk/id/local-authority/00BU,Trafford,16/01/2019,1901293012,361158,43.89,Creative Support Ltd,100160,,MENT HLT 18-64 LT,EXT DOM CARE SPOT CO,230845,,321014,SOCIAL CARE : Domiciliary Care,Redacted,157004
http://statistics.data.gov.uk/id/local-authority/00BU,Trafford,16/01/2019,1901293012,361158,43.89,Creative Support Ltd,100160,,MENT HLT 18-64 LT,EXT DOM CARE SPOT CO,230845,,321014,SOCIAL CARE : Domiciliary Care,Redacted,157004
http://statistics.data.gov.uk/id/local-authority/00BU,Trafford,16/01/2019,1901293013,361160,58.52,Creative Support Ltd,100160,,MENT HLT 18-64 LT,EXT DOM CARE SPOT CO,230845,,321014,SOCIAL CARE : Domiciliary Care,Redacted,157004
http://statistics.data.gov.uk/id/local-authority/00BU,Trafford,16/01/2019,1901293013,361160,58.52,Creative Support Ltd,100160,,MENT HLT 18-64 LT,EXT DOM CARE SPOT CO,230845,,321014,SOCIAL CARE : Domiciliary Care,Redacted,157004
http://statistics.data.gov.uk/id/local-authority/00BU,Trafford,16/01/2019,1901293014,361161,29.26,Creative Support Ltd,100160,,MENT HLT 18-64 LT,EXT DOM CARE SPOT CO,230845,,321014,SOCIAL CARE : Domiciliary Care,Redacted,157004
http://statistics.data.gov.uk/id/local-authority/00BU,Trafford,16/01/2019,1901293014,361161,58.52,Creative Support Ltd,100160,,MENT HLT 18-64 LT,EXT DOM CARE SPOT CO,230845,,321014,SOCIAL CARE : Domiciliary Care,Redacted,157004
http://statistics.data.gov.uk/id/local-authority/00BU,Trafford,16/01/2019,1901293014,361161,58.52,Creative Support Ltd,100160,,MENT HLT 18-64 LT,EXT DOM CARE SPOT CO,230845,,321014,SOCIAL CARE : Domiciliary Care,Redacted,157004
http://statistics.data.gov.uk/id/local-authority/00BU,Trafford,16/01/2019,1901293014,361161,58.52,Creative Support Ltd,100160,,MENT HLT 18-64 LT,EXT DOM CARE SPOT CO,230845,,321014,SOCIAL CARE : Domiciliary Care,Redacted,157004
http://statistics.data.gov.uk/id/local-authority/00BU,Trafford,16/01/2019,1901293015,361162,58.52,Creative Support Ltd,100160,,MENT HLT 18-64 LT,EXT DOM CARE SPOT CO,230845,,321014,SOCIAL CARE : Domiciliary Care,Redacted,157004
http://statistics.data.gov.uk/id/local-authority/00BU,Trafford,16/01/2019,1901293015,361162,58.52,Creative Support Ltd,100160,,MENT HLT 18-64 LT,EXT DOM CARE SPOT CO,230845,,321014,SOCIAL CARE : Domiciliary Care,Redacted,157004
http://statistics.data.gov.uk/id/local-authority/00BU,Trafford,16/01/2019,1901293015,361162,58.52,Creative Support Ltd,100160,,MENT HLT 18-64 LT,EXT DOM CARE SPOT CO,230845,,321014,SOCIAL CARE : Domiciliary Care,Redacted,157004
http://statistics.data.gov.uk/id/local-authority/00BU,Trafford,16/01/2019,1901293015,361162,58.52,Creative Support Ltd,100160,,MENT HLT 18-64 LT,EXT DOM CARE SPOT CO,230845,,321014,SOCIAL CARE : Domiciliary Care,Redacted,157004
http://statistics.data.gov.uk/id/local-authority/00BU,Trafford,16/01/2019,1901293016,361163,36.58,Creative Support Ltd,100160,,MENT HLT 18-64 LT,EXT DOM CARE SPOT CO,230845,,321014,SOCIAL CARE : Domiciliary Care,Redacted,157004
http://statistics.data.gov.uk/id/local-authority/00BU,Trafford,16/01/2019,1901293016,361163,36.58,Creative Support Ltd,100160,,MENT HLT 18-64 LT,EXT DOM CARE SPOT CO,230845,,321014,SOCIAL CARE : Domiciliary Care,Redacted,157004
http://statistics.data.gov.uk/id/local-authority/00BU,Trafford,16/01/2019,1901293017,361164,58.52,Creative Support Ltd,100160,,MENT HLT 18-64 LT,EXT DOM CARE SPOT CO,230845,,321014,SOCIAL CARE : Domiciliary Care,Redacted,157004
http://statistics.data.gov.uk/id/local-authority/00BU,Trafford,16/01/2019,1901293017,361164,58.52,Creative Support Ltd,100160,,MENT HLT 18-64 LT,EXT DOM CARE SPOT CO,230845,,321014,SOCIAL CARE : Domiciliary Care,Redacted,157004
http://statistics.data.gov.uk/id/local-authority/00BU,Trafford,16/01/2019,1901293017,361164,58.52,Creative Support Ltd,100160,,MENT HLT 18-64 LT,EXT DOM CARE SPOT CO,230845,,321014,SOCIAL CARE : Domiciliary Care,Redacted,157004
http://statistics.data.gov.uk/id/local-authority/00BU,Trafford,16/01/2019,1901293017,361164,58.52,Creative Support Ltd,100160,,MENT HLT 18-64 LT,EXT DOM CARE SPOT CO,230845,,321014,SOCIAL CARE : Domiciliary Care,Redacted,157004
http://statistics.data.gov.uk/id/local-authority/00BU,Trafford,16/01/2019,1901293018,361165,117.04,Creative Support Ltd,100160,,MENT HLT 18-64 LT,EXT DOM CARE SPOT CO,230845,,321014,SOCIAL CARE : Domiciliary Care,Redacted,157004
http://statistics.data.gov.uk/id/local-authority/00BU,Trafford,16/01/2019,1901293018,361165,117.04,Creative Support Ltd,100160,,MENT HLT 18-64 LT,EXT DOM CARE SPOT CO,230845,,321014,SOCIAL CARE : Domiciliary Care,Redacted,157004
http://statistics.data.gov.uk/id/local-authority/00BU,Trafford,16/01/2019,1901293018,361165,117.04,Creative Support Ltd,100160,,MENT HLT 18-64 LT,EXT DOM CARE SPOT CO,230845,,321014,SOCIAL CARE : Domiciliary Care,Redacted,157004
http://statistics.data.gov.uk/id/local-authority/00BU,Trafford,16/01/2019,1901293018,361165,117.04,Creative Support Ltd,100160,,MENT HLT 18-64 LT,EXT DOM CARE SPOT CO,230845,,321014,SOCIAL CARE : Domiciliary Care,Redacted,157004
http://statistics.data.gov.uk/id/local-authority/00BU,Trafford,16/01/2019,1901293019,361166,29.26,Creative Support Ltd,100160,,MENT HLT 18-64 LT,EXT DOM CARE SPOT CO,230845,,321014,SOCIAL CARE : Domiciliary Care,Redacted,157004
http://statistics.data.gov.uk/id/local-authority/00BU,Trafford,16/01/2019,1901293019,361166,29.26,Creative Support Ltd,100160,,MENT HLT 18-64 LT,EXT DOM CARE SPOT CO,230845,,321014,SOCIAL CARE : Domiciliary Care,Redacted,157004
http://statistics.data.gov.uk/id/local-authority/00BU,Trafford,16/01/2019,1901293019,361166,58.52,Creative Support Ltd,100160,,MENT HLT 18-64 LT,EXT DOM CARE SPOT CO,230845,,321014,SOCIAL CARE : Domiciliary Care,Redacted,157004
http://statistics.data.gov.uk/id/local-authority/00BU,Trafford,16/01/2019,1901293019,361166,58.52,Creative Support Ltd,100160,,MENT HLT 18-64 LT,EXT DOM CARE SPOT CO,230845,,321014,SOCIAL CARE : Domiciliary Care,Redacted,157004
http://statistics.data.gov.uk/id/local-authority/00BU,Trafford,16/01/2019,1901293020,361167,248.71,Creative Support Ltd,100160,,MENT HLT 18-64 LT,EXT DOM CARE SPOT CO,230845,,321014,SOCIAL CARE : Domiciliary Care,Redacted,157004
http://statistics.data.gov.uk/id/local-authority/00BU,Trafford,16/01/2019,1901293020,361167,248.71,Creative Support Ltd,100160,,MENT HLT 18-64 LT,EXT DOM CARE SPOT CO,230845,,321014,SOCIAL CARE : Domiciliary Care,Redacted,157004
http://statistics.data.gov.uk/id/local-authority/00BU,Trafford,16/01/2019,1901293020,361167,248.71,Creative Support Ltd,100160,,MENT HLT 18-64 LT,EXT DOM CARE SPOT CO,230845,,321014,SOCIAL CARE : Domiciliary Care,Redacted,157004
http://statistics.data.gov.uk/id/local-authority/00BU,Trafford,16/01/2019,1901293020,361167,248.71,Creative Support Ltd,100160,,MENT HLT 18-64 LT,EXT DOM CARE SPOT CO,230845,,321014,SOCIAL CARE : Domiciliary Care,Redacted,157004
http://statistics.data.gov.uk/id/local-authority/00BU,Trafford,16/01/2019,1901293021,361168,21.95,Creative Support Ltd,100160,,MENT HLT 18-64 LT,EXT DOM CARE SPOT CO,230845,,321014,SOCIAL CARE : Domiciliary Care,Redacted,157004
http://statistics.data.gov.uk/id/local-authority/00BU,Trafford,16/01/2019,1901293021,361168,43.89,Creative Support Ltd,100160,,MENT HLT 18-64 LT,EXT DOM CARE SPOT CO,230845,,321014,SOCIAL CARE : Domiciliary Care,Redacted,157004
http://statistics.data.gov.uk/id/local-authority/00BU,Trafford,16/01/2019,1901293021,361168,43.89,Creative Support Ltd,100160,,MENT HLT 18-64 LT,EXT DOM CARE SPOT CO,230845,,321014,SOCIAL CARE : Domiciliary Care,Redacted,157004
http://statistics.data.gov.uk/id/local-authority/00BU,Trafford,16/01/2019,1901293021,361168,43.89,Creative Support Ltd,100160,,MENT HLT 18-64 LT,EXT DOM CARE SPOT CO,230845,,321014,SOCIAL CARE : Domiciliary Care,Redacted,157004
http://statistics.data.gov.uk/id/local-authority/00BU,Trafford,16/01/2019,1901293022,361170,117.04,Creative Support Ltd,100160,,PHYS SUPP 18-64 LT,EXT DOM CARE SPOT CO,230845,,321014,SOCIAL CARE : Domiciliary Care,Redacted,157000
http://statistics.data.gov.uk/id/local-authority/00BU,Trafford,16/01/2019,1901293022,361170,117.04,Creative Support Ltd,100160,,PHYS SUPP 18-64 LT,EXT DOM CARE SPOT CO,230845,,321014,SOCIAL CARE : Domiciliary Care,Redacted,157000
http://statistics.data.gov.uk/id/local-authority/00BU,Trafford,16/01/2019,1901293022,361170,117.04,Creative Support Ltd,100160,,PHYS SUPP 18-64 LT,EXT DOM CARE SPOT CO,230845,,321014,SOCIAL CARE : Domiciliary Care,Redacted,157000
http://statistics.data.gov.uk/id/local-authority/00BU,Trafford,16/01/2019,1901293022,361170,117.04,Creative Support Ltd,100160,,PHYS SUPP 18-64 LT,EXT DOM CARE SPOT CO,230845,,321014,SOCIAL CARE : Domiciliary Care,Redacted,157000
http://statistics.data.gov.uk/id/local-authority/00BU,Trafford,16/01/2019,1901293023,361171,58.52,Creative Support Ltd,100160,,PHYS SUPP 18-64 LT,EXT DOM CARE SPOT CO,230845,,321014,SOCIAL CARE : Domiciliary Care,Redacted,157000
http://statistics.data.gov.uk/id/local-authority/00BU,Trafford,16/01/2019,1901293023,361171,87.78,Creative Support Ltd,100160,,PHYS SUPP 18-64 LT,EXT DOM CARE SPOT CO,230845,,321014,SOCIAL CARE : Domiciliary Care,Redacted,157000
http://statistics.data.gov.uk/id/local-authority/00BU,Trafford,16/01/2019,1901293023,361171,87.78,Creative Support Ltd,100160,,PHYS SUPP 18-64 LT,EXT DOM CARE SPOT CO,230845,,321014,SOCIAL CARE : Domiciliary Care,Redacted,157000
http://statistics.data.gov.uk/id/local-authority/00BU,Trafford,16/01/2019,1901293023,361171,87.78,Creative Support Ltd,100160,,PHYS SUPP 18-64 LT,EXT DOM CARE SPOT CO,230845,,321014,SOCIAL CARE : Domiciliary Care,Redacted,157000
http://statistics.data.gov.uk/id/local-authority/00BU,Trafford,16/01/2019,1901293024,361172,87.78,Creative Support Ltd,100160,,LEARN DIS 18-64 LT,EXT DOM CARE SPOT CO,230845,,321014,SOCIAL CARE : Domiciliary Care,Redacted,157003
http://statistics.data.gov.uk/id/local-authority/00BU,Trafford,16/01/2019,1901293024,361172,87.78,Creative Support Ltd,100160,,LEARN DIS 18-64 LT,EXT DOM CARE SPOT CO,230845,,321014,SOCIAL CARE : Domiciliary Care,Redacted,157003
http://statistics.data.gov.uk/id/local-authority/00BU,Trafford,16/01/2019,1901293024,361172,87.78,Creative Support Ltd,100160,,LEARN DIS 18-64 LT,EXT DOM CARE SPOT CO,230845,,321014,SOCIAL CARE : Domiciliary Care,Redacted,157003
http://statistics.data.gov.uk/id/local-authority/00BU,Trafford,16/01/2019,1901293025,361516,"3,920.00",Creative Support Ltd,100160,,JOULES HOUSE PROJECT,SUPP LIVING CONT,230530,,321014,SOCIAL CARE : Domiciliary Care,Redacted,253075
http://statistics.data.gov.uk/id/local-authority/00BU,Trafford,21/01/2019,1901293256,361143,87.78,Creative Support Ltd,100160,,MENT HLT 18-64 LT,EXT DOM CARE SPOT CO,230845,,321014,SOCIAL CARE : Domiciliary Care,Redacted,157004
http://statistics.data.gov.uk/id/local-authority/00BU,Trafford,21/01/2019,1901293256,361143,87.78,Creative Support Ltd,100160,,MENT HLT 18-64 LT,EXT DOM CARE SPOT CO,230845,,321014,SOCIAL CARE : Domiciliary Care,Redacted,157004
http://statistics.data.gov.uk/id/local-authority/00BU,Trafford,21/01/2019,1901293256,361143,87.78,Creative Support Ltd,100160,,MENT HLT 18-64 LT,EXT DOM CARE SPOT CO,230845,,321014,SOCIAL CARE : Domiciliary Care,Redacted,157004
http://statistics.data.gov.uk/id/local-authority/00BU,Trafford,21/01/2019,1901293256,361143,87.78,Creative Support Ltd,100160,,MENT HLT 18-64 LT,EXT DOM CARE SPOT CO,230845,,321014,SOCIAL CARE : Domiciliary Care,Redacted,157004
http://statistics.data.gov.uk/id/local-authority/00BU,Trafford,21/01/2019,1901293256,361143,80.47,Creative Support Ltd,100160,,MENT HLT 18-64 LT,EXT DOM CARE SPOT CO,230845,,321014,SOCIAL CARE : Domiciliary Care,Redacted,157004
http://statistics.data.gov.uk/id/local-authority/00BU,Trafford,21/01/2019,1901293256,361143,80.47,Creative Support Ltd,100160,,MENT HLT 18-64 LT,EXT DOM CARE SPOT CO,230845,,321014,SOCIAL CARE : Domiciliary Care,Redacted,157004
http://statistics.data.gov.uk/id/local-authority/00BU,Trafford,21/01/2019,1901293256,361143,80.47,Creative Support Ltd,100160,,MENT HLT 18-64 LT,EXT DOM CARE SPOT CO,230845,,321014,SOCIAL CARE : Domiciliary Care,Redacted,157004
http://statistics.data.gov.uk/id/local-authority/00BU,Trafford,21/01/2019,1901293256,361143,80.47,Creative Support Ltd,100160,,MENT HLT 18-64 LT,EXT DOM CARE SPOT CO,230845,,321014,SOCIAL CARE : Domiciliary Care,Redacted,157004
http://statistics.data.gov.uk/id/local-authority/00BU,Trafford,21/01/2019,1901293256,361143,146.30,Creative Support Ltd,100160,,MENT HLT 18-64 LT,EXT DOM CARE SPOT CO,230845,,321014,SOCIAL CARE : Domiciliary Care,Redacted,157004
http://statistics.data.gov.uk/id/local-authority/00BU,Trafford,21/01/2019,1901293256,361143,146.30,Creative Support Ltd,100160,,MENT HLT 18-64 LT,EXT DOM CARE SPOT CO,230845,,321014,SOCIAL CARE : Domiciliary Care,Redacted,157004
http://statistics.data.gov.uk/id/local-authority/00BU,Trafford,21/01/2019,1901293256,361143,146.30,Creative Support Ltd,100160,,MENT HLT 18-64 LT,EXT DOM CARE SPOT CO,230845,,321014,SOCIAL CARE : Domiciliary Care,Redacted,157004
http://statistics.data.gov.uk/id/local-authority/00BU,Trafford,21/01/2019,1901293256,361143,146.30,Creative Support Ltd,100160,,MENT HLT 18-64 LT,EXT DOM CARE SPOT CO,230845,,321014,SOCIAL CARE : Domiciliary Care,Redacted,157004
http://statistics.data.gov.uk/id/local-authority/00BU,Trafford,21/01/2019,1901293256,361143,263.34,Creative Support Ltd,100160,,MENT HLT 18-64 LT,EXT DOM CARE SPOT CO,230845,,321014,SOCIAL CARE : Domiciliary Care,Redacted,157004
http://statistics.data.gov.uk/id/local-authority/00BU,Trafford,21/01/2019,1901293256,361143,263.34,Creative Support Ltd,100160,,MENT HLT 18-64 LT,EXT DOM CARE SPOT CO,230845,,321014,SOCIAL CARE : Domiciliary Care,Redacted,157004
http://statistics.data.gov.uk/id/local-authority/00BU,Trafford,21/01/2019,1901293256,361143,263.34,Creative Support Ltd,100160,,MENT HLT 18-64 LT,EXT DOM CARE SPOT CO,230845,,321014,SOCIAL CARE : Domiciliary Care,Redacted,157004
http://statistics.data.gov.uk/id/local-authority/00BU,Trafford,21/01/2019,1901293256,361143,263.34,Creative Support Ltd,100160,,MENT HLT 18-64 LT,EXT DOM CARE SPOT CO,230845,,321014,SOCIAL CARE : Domiciliary Care,Redacted,157004
http://statistics.data.gov.uk/id/local-authority/00BU,Trafford,21/01/2019,1901293256,361143,58.52,Creative Support Ltd,100160,,MENT HLT 18-64 LT,EXT DOM CARE SPOT CO,230845,,321014,SOCIAL CARE : Domiciliary Care,Redacted,157004
http://statistics.data.gov.uk/id/local-authority/00BU,Trafford,21/01/2019,1901293256,361143,58.52,Creative Support Ltd,100160,,MENT HLT 18-64 LT,EXT DOM CARE SPOT CO,230845,,321014,SOCIAL CARE : Domiciliary Care,Redacted,157004
http://statistics.data.gov.uk/id/local-authority/00BU,Trafford,21/01/2019,1901293256,361143,58.52,Creative Support Ltd,100160,,MENT HLT 18-64 LT,EXT DOM CARE SPOT CO,230845,,321014,SOCIAL CARE : Domiciliary Care,Redacted,157004
http://statistics.data.gov.uk/id/local-authority/00BU,Trafford,21/01/2019,1901293256,361143,58.52,Creative Support Ltd,100160,,MENT HLT 18-64 LT,EXT DOM CARE SPOT CO,230845,,321014,SOCIAL CARE : Domiciliary Care,Redacted,157004
http://statistics.data.gov.uk/id/local-authority/00BU,Trafford,21/01/2019,1901293256,361143,58.52,Creative Support Ltd,100160,,MENT HLT 18-64 LT,EXT DOM CARE SPOT CO,230845,,321014,SOCIAL CARE : Domiciliary Care,Redacted,157004
http://statistics.data.gov.uk/id/local-authority/00BU,Trafford,21/01/2019,1901293256,361143,58.52,Creative Support Ltd,100160,,MENT HLT 18-64 LT,EXT DOM CARE SPOT CO,230845,,321014,SOCIAL CARE : Domiciliary Care,Redacted,157004
http://statistics.data.gov.uk/id/local-authority/00BU,Trafford,21/01/2019,1901293256,361143,58.52,Creative Support Ltd,100160,,MENT HLT 18-64 LT,EXT DOM CARE SPOT CO,230845,,321014,SOCIAL CARE : Domiciliary Care,Redacted,157004
http://statistics.data.gov.uk/id/local-authority/00BU,Trafford,21/01/2019,1901293256,361143,58.52,Creative Support Ltd,100160,,MENT HLT 18-64 LT,EXT DOM CARE SPOT CO,230845,,321014,SOCIAL CARE : Domiciliary Care,Redacted,157004
http://statistics.data.gov.uk/id/local-authority/00BU,Trafford,21/01/2019,1901293256,361143,65.84,Creative Support Ltd,100160,,MENT HLT 18-64 LT,EXT DOM CARE SPOT CO,230845,,321014,SOCIAL CARE : Domiciliary Care,Redacted,157004
http://statistics.data.gov.uk/id/local-authority/00BU,Trafford,21/01/2019,1901293256,361143,65.84,Creative Support Ltd,100160,,MENT HLT 18-64 LT,EXT DOM CARE SPOT CO,230845,,321014,SOCIAL CARE : Domiciliary Care,Redacted,157004
http://statistics.data.gov.uk/id/local-authority/00BU,Trafford,21/01/2019,1901293256,361143,65.84,Creative Support Ltd,100160,,MENT HLT 18-64 LT,EXT DOM CARE SPOT CO,230845,,321014,SOCIAL CARE : Domiciliary Care,Redacted,157004
http://statistics.data.gov.uk/id/local-authority/00BU,Trafford,21/01/2019,1901293256,361143,65.84,Creative Support Ltd,100160,,MENT HLT 18-64 LT,EXT DOM CARE SPOT CO,230845,,321014,SOCIAL CARE : Domiciliary Care,Redacted,157004
http://statistics.data.gov.uk/id/local-authority/00BU,Trafford,21/01/2019,1901293256,361143,102.41,Creative Support Ltd,100160,,MENT HLT 18-64 LT,EXT DOM CARE SPOT CO,230845,,321014,SOCIAL CARE : Domiciliary Care,Redacted,157004
http://statistics.data.gov.uk/id/local-authority/00BU,Trafford,21/01/2019,1901293256,361143,102.41,Creative Support Ltd,100160,,MENT HLT 18-64 LT,EXT DOM CARE SPOT CO,230845,,321014,SOCIAL CARE : Domiciliary Care,Redacted,157004
http://statistics.data.gov.uk/id/local-authority/00BU,Trafford,21/01/2019,1901293256,361143,102.41,Creative Support Ltd,100160,,MENT HLT 18-64 LT,EXT DOM CARE SPOT CO,230845,,321014,SOCIAL CARE : Domiciliary Care,Redacted,157004
http://statistics.data.gov.uk/id/local-authority/00BU,Trafford,21/01/2019,1901293256,361143,102.41,Creative Support Ltd,100160,,MENT HLT 18-64 LT,EXT DOM CARE SPOT CO,230845,,321014,SOCIAL CARE : Domiciliary Care,Redacted,157004
http://statistics.data.gov.uk/id/local-authority/00BU,Trafford,21/01/2019,1901293256,361143,58.52,Creative Support Ltd,100160,,MENT HLT 18-64 LT,EXT DOM CARE SPOT CO,230845,,321014,SOCIAL CARE : Domiciliary Care,Redacted,157004
http://statistics.data.gov.uk/id/local-authority/00BU,Trafford,21/01/2019,1901293256,361143,58.52,Creative Support Ltd,100160,,MENT HLT 18-64 LT,EXT DOM CARE SPOT CO,230845,,321014,SOCIAL CARE : Domiciliary Care,Redacted,157004
http://statistics.data.gov.uk/id/local-authority/00BU,Trafford,21/01/2019,1901293256,361143,58.52,Creative Support Ltd,100160,,MENT HLT 18-64 LT,EXT DOM CARE SPOT CO,230845,,321014,SOCIAL CARE : Domiciliary Care,Redacted,157004
http://statistics.data.gov.uk/id/local-authority/00BU,Trafford,21/01/2019,1901293256,361143,58.52,Creative Support Ltd,100160,,MENT HLT 18-64 LT,EXT DOM CARE SPOT CO,230845,,321014,SOCIAL CARE : Domiciliary Care,Redacted,157004
http://statistics.data.gov.uk/id/local-authority/00BU,Trafford,21/01/2019,1901293256,361143,58.52,Creative Support Ltd,100160,,MENT HLT 18-64 LT,EXT DOM CARE SPOT CO,230845,,321014,SOCIAL CARE : Domiciliary Care,Redacted,157004
http://statistics.data.gov.uk/id/local-authority/00BU,Trafford,21/01/2019,1901293256,361143,58.52,Creative Support Ltd,100160,,MENT HLT 18-64 LT,EXT DOM CARE SPOT CO,230845,,321014,SOCIAL CARE : Domiciliary Care,Redacted,157004
http://statistics.data.gov.uk/id/local-authority/00BU,Trafford,21/01/2019,1901293256,361143,58.52,Creative Support Ltd,100160,,MENT HLT 18-64 LT,EXT DOM CARE SPOT CO,230845,,321014,SOCIAL CARE : Domiciliary Care,Redacted,157004
http://statistics.data.gov.uk/id/local-authority/00BU,Trafford,21/01/2019,1901293256,361143,58.52,Creative Support Ltd,100160,,MENT HLT 18-64 LT,EXT DOM CARE SPOT CO,230845,,321014,SOCIAL CARE : Domiciliary Care,Redacted,157004
http://statistics.data.gov.uk/id/local-authority/00BU,Trafford,28/01/2019,1901293844,365400,"4,447.52",Creative Support Ltd,100160,,LEARN DIS 18-64 LT,SUPP LIVING CONT,230530,,321014,SOCIAL CARE : Domiciliary Care,Redacted,157003
http://statistics.data.gov.uk/id/local-authority/00BU,Trafford,16/01/2019,5100357190,166157,-7.49,Child Poverty Action Group,100213,GB690808117,BENEFIT ADVICE TEAM,SUBSCRIPTIONS,220770,,202100,FINANCIAL : Subscriptions,Housing Benefit and CT Legislat. 2018-19,254010
http://statistics.data.gov.uk/id/local-authority/00BU,Trafford,16/01/2019,5100357191,185397,108.30,Child Poverty Action Group,100213,GB690808117,BENEFIT ADVICE TEAM,SUBSCRIPTIONS,220770,,202100,FINANCIAL : Subscriptions,Housing Benefit and CT Legislat. 2018-19,254010
http://statistics.data.gov.uk/id/local-authority/00BU,Trafford,16/01/2019,5100357191,185397,7.49,Child Poverty Action Group,100213,GB690808117,BENEFIT ADVICE TEAM,SUBSCRIPTIONS,220770,,202100,FINANCIAL : Subscriptions,Housing Benefit and CT Legislat. 2018-19,254010
http://statistics.data.gov.uk/id/local-authority/00BU,Trafford,16/01/2019,5100361913,185408,22.10,Child Poverty Action Group,100213,GB690808117,BENEFIT ADVICE TEAM,SUBSCRIPTIONS,220770,,202100,FINANCIAL : Subscriptions,Council Tax Handbook 12th Edition,254010
http://statistics.data.gov.uk/id/local-authority/00BU,Trafford,11/01/2019,5100361408,00026295,173.25,Reed Business Information Ltd,100215,GB235723565,HRSSC GMP (GF),PROFESSIONAL FEES,220456,,201000,FINANCIAL : Accountancy,Reed Business Information,740020
http://statistics.data.gov.uk/id/local-authority/00BU,Trafford,07/01/2019,5100360997,905879444,27.06,Royal Mail Group Ltd,100228,GB243170002,CSWT SOUTH,POSTAGES,220515,,301200,MAIL SERVICES : Postage,response post inv no. 9057879444,151028
http://statistics.data.gov.uk/id/local-authority/00BU,Trafford,16/01/2019,1901291863,9057996604,16.38,Royal Mail Group Ltd,100228,GB243170002,BENEFIT ADVICE TEAM,POSTAGES,220515,,301200,MAIL SERVICES : Postage,,254010
http://statistics.data.gov.uk/id/local-authority/00BU,Trafford,16/01/2019,1901291863,9057996604,32.90,Royal Mail Group Ltd,100228,GB243170002,HS:ADAPTATIONS,POSTAGES,220515,,301200,MAIL SERVICES : Postage,,302300
http://statistics.data.gov.uk/id/local-authority/00BU,Trafford,16/01/2019,1901291863,9057996604,42.12,Royal Mail Group Ltd,100228,GB243170002,OTP: Garden Waste,POSTAGES,220515,,301200,MAIL SERVICES : Postage,,233004
http://statistics.data.gov.uk/id/local-authority/00BU,Trafford,16/01/2019,1901291863,9057996604,46.47,Royal Mail Group Ltd,100228,GB243170002,CYPS Corp Director,POSTAGES,220515,,301200,MAIL SERVICES : Postage,,140305
http://statistics.data.gov.uk/id/local-authority/00BU,Trafford,16/01/2019,1901291863,9057996604,12.29,Royal Mail Group Ltd,100228,GB243170002,HOUSING STRATEGY,POSTAGES,220515,,301200,MAIL SERVICES : Postage,,546200
http://statistics.data.gov.uk/id/local-authority/00BU,Trafford,16/01/2019,1901291863,9057996604,12.74,Royal Mail Group Ltd,100228,GB243170002,CWB OFFICERS & MRO'S,POSTAGES,220515,,301200,MAIL SERVICES : Postage,,150004
http://statistics.data.gov.uk/id/local-authority/00BU,Trafford,16/01/2019,1901291863,9057996604,104.11,Royal Mail Group Ltd,100228,GB243170002,CENTRAL OVERHEADS,POSTAGES,220515,,301200,MAIL SERVICES : Postage,,145000
http://statistics.data.gov.uk/id/local-authority/00BU,Trafford,16/01/2019,1901292315,9058032506,639.19,Royal Mail Group Ltd,100228,GB243170002,Groundforce Prks Nth,POSTAGES,220515,,301200,MAIL SERVICES : Postage,,491000
http://statistics.data.gov.uk/id/local-authority/00BU,Trafford,16/01/2019,5100361571,9056376832,-269.19,Royal Mail Group Ltd,100228,GB243170002,REGISTRATION TEAM,POSTAGES,220515,,301200,MAIL SERVICES : Postage,Royal Mail 09/04/18 9056367832,602020
http://statistics.data.gov.uk/id/local-authority/00BU,Trafford,23/01/2019,5100362265,9058072972,18.57,Royal Mail Group Ltd,100228,GB243170002,CSWT CENTRAL,POSTAGES,220515,,301200,MAIL SERVICES : Postage,Response post - Invoice no. 9058072972,151032
http://statistics.data.gov.uk/id/local-authority/00BU,Trafford,23/01/2019,5100362360,9057956974,689.34,Royal Mail Group Ltd,100228,GB243170002,REGISTRATION TEAM,POSTAGES,220515,,301200,MAIL SERVICES : Postage,Royal Mail 27/12/18 9057956974,602020
http://statistics.data.gov.uk/id/local-authority/00BU,Trafford,23/01/2019,5100362360,9057956974,137.87,Royal Mail Group Ltd,100228,GB243170002,REGISTRATION TEAM,POSTAGES,220515,,301200,MAIL SERVICES : Postage,Royal Mail 27/12/18 9057956974 VAT,602020
http://statistics.data.gov.uk/id/local-authority/00BU,Trafford,28/01/2019,5100362737,9058080697,137.50,Royal Mail Group Ltd,100228,GB243170002,FI:COUNCIL TAX ADMIN,POSTAGES,220515,,301200,MAIL SERVICES : Postage,Royal Mail Postage 610300,610300
http://statistics.data.gov.uk/id/local-authority/00BU,Trafford,28/01/2019,5100362737,9058080697,137.50,Royal Mail Group Ltd,100228,GB243170002,FI:NNDR ADMINISTRATI,POSTAGES,220515,,301200,MAIL SERVICES : Postage,Royal Mail Postage 610350,610350
http://statistics.data.gov.uk/id/local-authority/00BU,Trafford,07/01/2019,5100360879,35566,250.00,Carrington Business Park Limited,100239,GB177608867,TSCB,HIRE OF ROOMS,200735,,281100,LEGAL SERVICES : Elections,TSSB Room Hire: 2044,130861
